Workbook

Sheet LDC Info
AA3: Algoma Power Inc.
AA4: Atikokan Hydro Inc.
AA5: Attawapiskat Power Corporation
AA6: Bluewater Power Distribution Corp.
AA7: Brant County Power
AA8: Brantford Power Inc.
AA9: Burlington Hydro Inc.
AA10: Cambridge and North Dumfries Hydro
AA11: Canadian Niagara Power Inc. – Eastern Ontario Power/Fort Erie/Port Colborne
AA12: Centre Wellington Hydro Ltd.
N13: Version 1.1 | AA13: Chapleau Public Utilities Corporation
D14: Utility Name | E14: Kitchener-Wilmot Hydro Inc. | AA14: COLLUS Power Corp.
AA15: Cooperative Hydro Embrun Inc.
D16: Service Territory | AA16: E.L.K. Energy Inc.
AA17: Enersource Hydro Mississauga Inc.
D18: Assigned EB Number | E18: EB-2013-0147 | AA18: Entegrus Powerlines Inc.
AA19: ENWIN Utilities Ltd.
D20: Name of Contact and Title | E20: Margaret Nanninga, Vice-President Finance | AA20: Erie Thames Powerlines Corp.
AA21: Espanola Regional Hydro Distribution Corporation
D22: Phone Number | E22: 519-749-6177 | AA22: Essex Powerlines Corporation
AA23: Festival Hydro Inc.
D24: Email Address | E24: mnanninga@kwhydro.on.ca | AA24: Fort Albany Power Corporation
AA25: Fort Frances Power Corporation
D26: Bridge Year | E26: 2013 | AA26: Greater Sudbury Hydro Inc.
AA27: Grimsby Power Inc.
D28: Test Year | E28: 2013 | AA28: Guelph Hydro Electric Systems Inc.
AA29: Haldimand County Hydro Inc.
D30: Last Rebasing Year | E30: 2010 | AA30: Guelph Hydro Electric Systems Inc.
AA31: Halton Hills Hydro Inc.
B32: Notes | AA32: Hearst Power Distribution Co. Ltd.
AA33: Horizon Utilities Corporation
C34: Pale green cells represent input cells. | AA34: Hydro 2000 Inc.
AA35: Hydro Hawkesbury Inc.
C36: Pale blue cells represent drop-down lists. The applicant should select the appropriate item from the drop-down list. | AA36: Hydro One Brampton Networks Inc.
AA37: Hydro One Networks Inc.
C38: White cells contain fixed values, automatically generated values or formulae. | AA38: Hydro One Remote Communities Inc.
AA39: Hydro Ottawa Limited
AA40: Innisfil Hydro Dist. Systems Limited
AA41: Kashechewan Power Corporation
AA42: Kenora Hydro Electric Corporation Ltd.
AA43: Kingston Hydro Corporation
AA44: Kitchener-Wilmot Hydro Inc.
AA45: Lakefront Utilities Inc.
AA46: Lakeland Power Distribution Ltd.
AA47: London Hydro Inc.
AA48: Midland Power Utility Corporation
AA49: Milton Hydro Distribution Inc.
AA50: Newmarket – Tay Power Distribution Ltd.
AA51: Niagara Peninsula Energy Inc.
AA52: Niagara-on-the-Lake Hydro Inc.
AA53: Norfolk Power Distribution Ltd.
AA54: North Bay Hydro Distribution Limited
AA55: Northern Ontario Wires Inc.
AA56: Oakville Hydro Distribution Inc.
AA57: Orangeville Hydro Limited
AA58: Orillia Power Distribution Corp.
AA59: Oshawa PUC Networks Inc.
AA60: Ottawa River Power Corporation
AA61: Parry Sound Power Corporation
AA62: Peterborough Distribution Inc.
AA63: PowerStream Inc.
AA64: PUC Distribution Inc.
AA65: Renfrew Hydro Inc.
AA66: Rideau St. Lawrence Distribution Inc.
AA67: St. Thomas Energy Inc.
AA68: Sioux Lookout Hydro Inc.
AA69: Thunder Bay Hydro Electricity Distribution
AA70: Tillsonburg Hydro Inc.
AA71: Toronto Hydro-Electric System Limited
AA72: Veridian Connections Inc.
AA73: Wasaga Distribution Inc.
AA74: Waterloo North Hydro Inc.
AA75: Welland Hydro Electric System Corp.
AA76: Wellington North Power Inc.
AA77: West Coast Huron Energy Inc.
AA78: Westario Power Inc.
AA79: Whitby Hydro Electric Corporation
AA80: Woodstock Hydro Services Inc.

Sheet Index
A15: 1 | B15: LDC Information Sheet | E15: 19 | F15: Appendix 2-H OM&A Detailed Analysis
A16: 2 | B16: Index | E16: 20 | F16: Appendix 2-I OM&A Summary Analysis
A17: 3 | B17: Appendix 2-A Capital Projects | E17: 21 | F17: Appendix 2-J OM&A Cost Drivers
A18: 4 | B18: Appendix 2-B Fixed Asset Continuity | E18: 22 | F18: Appendix 2-K Employee Costs
A19: 5 | B19: Appendix 2-CA CGAAP Depreciation Expense 2011 | E19: 23 | F19: Appendix 2-L OM&A per Cust FTEE
A20: 6 | B20: Appendix 2-CB MIFRS Depreciation Expense 2011 | E20: 24 | F20: Appendix 2-M Regulatory Costs
A21: 7 | B21: Appendix 2-CC MIFRS Depreciation Expense 2012 | E21: 25 | F21: Appendix 2-N Corp Cost Allocation
A22: 8 | B22: Appendix 2-CD MIFRS Depreciation Expense 2013 | E22: 26 | F22: Appendix 2-OA Capital Structure and Cost of Capital
A23: 9 | B23: Appendix 2-CE CGAAP Depreciation Expense 2011 | E23: 27 | F23: Appendix 2-OB Debt Instruments
A24: 10 | B24: Appendix 2-CF CGAAP Depreciation Expense 2012 | E24: 28 | F24: Appendix 2-P Cost Allocation
A25: 11 | B25: Appendix 2-CG MIFRS Depreciation Expense 2012 | E25: 29 | F25: Appendix 2-Q Cost of Service Embedded Distributor
A26: 12 | B26: Appendix 2-CH MIFRS Depreciation Expense 2013 | E26: 30 | F26: Appendix 2-R Loss Factors
A27: 13 | B27: Appendix 2-CI Alternative Accounting Standards Depreciation Expense | E27: 31 | F27: Appendix 2-S Stranded Meters
A28: 14 | B28: Appendix 2-D Overhead | E28: 32 | F28: Appendix 2-T 1592 Tax Variance
A29: 15 | B29: Appendix 2-EA PP&E Deferral Account - 2012 IFRS Adopters | E29: 33 | F29: Appendix 2-U IFRS Transition Costs
A30: 16 | B30: Appendix 2-EB PP&E Deferral Account - 2013 IFRS Adopters | E30: 34 | F30: Appendix 2-V Rev Reconciliation
A31: 17 | B31: Appendix 2-F Other Operating Revenue | E31: 35 | F31: Appendix 2-W Bill Impacts
A32: 18 | B32: Appendix 2-G Detailed OM&A Expenses | E32: 36 | F32: Appendix 2-X CoS Flowchart

Sheet App.2-CA_CGAAP_DepExp_2012COL (hidden)
K1: File Number: | L1: ='LDC Info'!$E$18 -> EB-2013-0147
K2: Exhibit: | L2: 4
K3: Tab:
K4: Schedule:
K5: Page:
K7: Date:
A9: Appendix 2-CA
A10: Depreciation and Amortization Expense
A11: Assumes the applicant adopted IFRS for financial reporting purposes January 1, 2013
C12: Year | D12: 2012 | E12: CGAAP
A14: Account | B14: Description | C14: Opening Regulatory Gross PP&E as at Jan 1, 2012 | D14: Less Fully Depreciated | E14: Net for Depreciation | F14: Additions | G14: Total for Depreciation | H14: Years | I14: Depreciation Rate | J14: Depreciation Expense | K14: 2012 Depreciation Expense per Appendix 2-B Fixed Assets, Column K (l) | L14: Variance 2
C15: (a) | D15: (b) | E15: (c) | F15: (d) | G15: (e) = (c) + ½ x (d) 1 | H15: (f) | I15: (g) = 1 / (f) | J15: (h) = (e) / (f) | L15: (m) = (h) - (l) | M15: 1/2 Year Deprec
A16: 1611 | B16: Computer Software (Formally known as Account 1925) | C16: 3266775 | D16: =2470199+6616.65 -> 2476815.65 | E16: =C16-D16 -> 789959.35 | F16: =+#REF! ->  | G16: =E16+0.5*F16 ->  | H16: 5 | I16: =IF(H16=0,0,1/H16) -> 0.2 | J16: =IF(H16=0,0,G16/H16) ->  | K16: =-#REF! ->  | L16: =IF(ISERROR(+J16-K16), 0, +J16-K16) -> 0 | M16: =F16/H16*0.5 ->  | N16: =L16+M16 -> 
A17: 1611 | B17: Computer Software (Formally known as Account 1925) - Smart Meters | E17: =C17-D17 -> 0 | F17: =+#REF! ->  | G17: =E17+0.5*F17 ->  | H17: 3 | I17: 0.3333333333 | J17: =IF(H17=0,0,G17/H17) ->  | K17: =-#REF! ->  | L17: =IF(ISERROR(+J17-K17), 0, +J17-K17) -> 0 | M17: =F17/H17*0.5 ->  | N17: =L17+M17 ->  | O17: Additions during the year were from Regulatory accounts. Most are transferred in.
A18: 1612 | B18: Land Rights (Formally known as Account 1906) | C18: 265449 | D18: 199174 | E18: =C18-D18 -> 66275 | F18: 0 | G18: =E18+0.5*F18 -> 66275 | H18: 25 | I18: 0.04 | J18: 2651 | K18: =-#REF! ->  | L18: =IF(ISERROR(+J18-K18), 0, +J18-K18) -> 0 | M18: 0 | N18: 0 | O18: Changed years. Is this correct? (assets fully depreciated?)
A19: 1805 | B19: Land | C19: 2339958 | E19: 2339958 | F19: 0 | G19: 2339958 | H19: 0 | I19: 0 | J19: 0 | K19: 0 | L19: 0 | N19: 0
A20: 1808 | B20: Buildings | C20: =9268665-C21 -> 7461078.7 | E20: 7461078.7 | F20: -20178 | G20: 7450989.7 | H20: 50 | I20: 0.02 | J20: 149019.794 | K20: =-#REF!-K21 ->  | L20: 0 | M20: -201.78 | N20: -201.78
A21: 1808 | B21: Buildings | C21: =110211+31314.3+94138+15528+135517+459713+57293+94760+269175+539937 -> 1807586.3 | E21: 1807586.3 | G21: 1807586.3 | H21: 60 | I21: 0.01666666667 | J21: 30126.43833 | K21: =1900+522+1827+2258+7661+983+1664+4584+8998 -> 30397 | L21: -270.5616667 | M21: 0 | N21: -270.5616667
A22: 1810 | B22: Leasehold Improvements | E22: 0 | F22: 0 | G22: 0 | H22: 0 | I22: 0 | J22: 0 | L22: 0 | N22: 0
A23: 1815 | B23: Transformer Station Equipment >50 kV | C23: 59878130 | D23: =1424846.22-54981.59 -> 1369864.63 | E23: 58508265.37 | F23: 93639 | G23: 58555084.87 | H23: 40 | I23: 0.025 | J23: 1463877.122 | K23: =-#REF! ->  | L23: 0 | M23: 1170.4875 | N23: 1170.4875 | O23: 2012 deprec error
A24: 1820 | B24: Distribution Station Equipment <50 kV | C24: 2853105 | D24: 527835.24 | E24: 2325269.76 | F24: 0 | G24: 2325269.76 | H24: 30 | I24: 0.03333333333 | J24: 77508.992 | K24: =-#REF! ->  | L24: 0 | M24: 0 | N24: 0
A25: 1825 | B25: Storage Battery Equipment | E25: 0 | F25: 0 | G25: 0 | H25: 0 | I25: 0 | J25: 0 | L25: 0 | N25: 0
A26: 1830 | B26: Poles, Towers & Fixtures | C26: 29644768 | E26: 29644768 | F26: 2894738 | G26: 31092137 | H26: 25 | I26: 0.04 | J26: 1243685.48 | K26: =-#REF! ->  | L26: 0 | M26: 57894.76 | N26: 57894.76
A27: 1835 | B27: Overhead Conductors & Devices | C27: 32204259 | E27: 32204259 | F27: 2259990 | G27: 33334254 | H27: 25 | I27: 0.04 | J27: 1333370.16 | K27: =-#REF! ->  | L27: 0 | M27: 45199.8 | N27: 45199.8
A28: 1840 | B28: Underground Conduit | C28: =22040741-1232070.21 -> 20808670.79 | E28: 20808670.79 | F28: 1910830 | G28: 21764085.79 | H28: 25 | I28: 0.04 | J28: 870563.4316 | K28: =-#REF!-35220 ->  | L28: 0 | M28: 38216.6 | N28: 38216.6
A29: 1840 | B29: Underground Conduit | C29: 1232070.21 | E29: 1232070.21 | G29: 1232070.21 | H29: 35 | I29: 0.02857142857 | J29: 35202.006 | K29: 35220.11 | L29: -18.104 | M29: 0 | N29: -18.104
A30: 1845 | B30: Underground Conductors & Devices | C30: =37324957-3058251.48 -> 34266705.52 | E30: 34266705.52 | F30: 2430148 | G30: 35481779.52 | H30: 25 | I30: 0.04 | J30: =IF(H30=0,0,G30/H30) -> 1419271.181 | K30: =1555093-87423.55 -> 1467669.45 | L30: -48398.2692 | M30: 48602.96 | N30: 204.6908
A31: 1845 | B31: Underground Conductors & Devices | C31: 3058251.48 | E31: 3058251.48 | G31: 3058251.48 | H31: 35 | I31: 0.02857142857 | J31: =IF(H31=0,0,G31/H31) -> 87378.61371 | K31: 87423.55 | L31: -44.93628571 | M31: 0 | N31: -44.93628571
A32: 1850 | B32: Line Transformers | C32: =49922477-2180161.15 -> 47742315.85 | E32: 47742315.85 | F32: 3398190 | G32: 49441410.85 | H32: 25 | I32: 0.04 | J32: 1977656.434 | K32: =2045477-72672 -> 1972805 | L32: 4851.434 | M32: 67963.8 | N32: 72815.234 | O32: transfers
A33: 1850 | B33: Line Transformers | C33: 2180161.15 | E33: 2180161.15 | G33: 2180161.15 | H33: 30 | I33: 0.03333333333 | J33: 72672.03833 | K33: 72672.04 | L33: -0.001666666663 | M33: 0 | N33: -0.001666666663
A34: 1855 | B34: Services (Overhead & Underground) | C34: =41475703-1885469.85 -> 39590233.15 | E34: 39590233.15 | F34: 2762234 | G34: 40971350.15 | H34: 25 | I34: 0.04 | J34: 1638854.006 | K34: =1748284-53898.24 -> 1694385.76 | L34: -55531.754 | M34: 55244.68 | N34: -287.074
A35: 1855 | B35: Services (Overhead & Underground) | C35: 1885468.85 | E35: 1885468.85 | G35: 1885468.85 | H35: 35 | I35: 0.02857142857 | J35: 53870.53857 | K35: 53898.24 | L35: -27.70142857 | M35: 0 | N35: -27.70142857
A36: 1860 | B36: Meters | C36: =11503383-706 -> 11502677 | D36: 9578658 | E36: 1924019 | F36: =+#REF! ->  | H36: 25 | I36: 0.04 | K36: =-+#REF!-K37 ->  | L36: 0
A37: 1860 | B37: Meters | C37: 706 | E37: 706 | G37: 706 | H37: 35 | I37: 0.02857142857 | J37: 20.17142857 | K37: 20 | L37: 0.1714285714 | M37: 0 | N37: 0.1714285714
A38: 1860 | B38: Meters (Smart Meters) | E38: 0 | F38: =+#REF! ->  | H38: 15 | I38: 0.06666666667 | K38: =-+#REF! ->  | L38: 0 | O38: smart meters
A39: 1905 | B39: Land | C39: 1395300 | E39: 1395300 | F39: 0 | G39: 1395300 | H39: 0 | I39: 0 | J39: 0 | L39: 0 | N39: 0
A40: 1908 | B40: Buildings & Fixtures | C40: =10244953-290243-6077383 -> 3877327 | E40: 3877327 | F40: 31703 | G40: 3893178.5 | H40: 50 | I40: 0.02 | J40: 77863.57 | K40: =184308-4837-101290 -> 78181 | L40: -317.43 | M40: 317.03 | N40: -0.4
A41: 1908 | B41: Buildings & Fixtures | C41: =290243+6077383 -> 6367626 | E41: 6367626 | G41: 6367626 | H41: 60 | I41: 0.01666666667 | J41: 106127.1 | K41: =4837+101290 -> 106127 | L41: 0.1 | M41: 0 | N41: 0.1
A42: 1910 | B42: Leasehold Improvements | E42: 0 | F42: 0 | G42: 0 | H42: 50 | I42: 0.02 | J42: 0 | L42: 0 | M42: 0 | N42: 0
A43: 1915 | B43: Office Furniture & Equipment (10 years) | C43: 1112310 | D43: 527725 | E43: 584585 | F43: 34301 | G43: 601735.5 | H43: 10 | I43: 0.1 | J43: 60173.55 | K43: 65354 | L43: -5180.45 | M43: 1715.05 | N43: -3465.4
A44: 1915 | B44: Office Furniture & Equipment (5 years) | E44: 0 | F44: 0 | G44: 0 | H44: 5 | I44: 0.2 | J44: 0 | K44: 0 | L44: 0 | M44: 0 | N44: 0
A45: 1920 | B45: Computer Equipment - Hardware | C45: 2420464 | D45: 1813602.59 | E45: 606861.41 | F45: 227721 | G45: 720721.91 | H45: 5 | I45: 0.2 | J45: 144144.382 | K45: 151267 | L45: -7122.618 | M45: 22772.1 | N45: 15649.482
A46: 1920 | B46: Computer Equip.-Hardware - Smart Meters | E46: 0 | F46: 221261 | G46: 110630.5 | H46: 5 | I46: 0.2 | J46: 22126.1 | K46: 77441 | L46: -55314.9 | M46: 22126.1 | N46: -33188.8 | O46: smart meters
A47: 1920 | B47: Computer Equip.-Hardware(Post Mar. 19/07) | E47: 0 | G47: 0 | H47: 5 | I47: 0.2 | J47: 0 | K47: 0 | L47: 0 | M47: 0 | N47: 0
A48: 1930 | B48: Transportation Equipment < 3 Tons | C48: 1059248.37 | D48: 402788.6 | E48: =C48-D48 -> 656459.77 | F48: 52112.56 | G48: =E48+0.5*F48 -> 682516.05 | H48: 5 | I48: 0.2 | J48: 136503.21 | K48: =747189-693664-10070 -> 43455 | L48: 93048.21 | M48: 5211.256 | N48: 98259.466
A49: 1930 | B49: Transportation Equipment > 3 Tons | C49: 6846246.52 | D49: 1672923.82 | E49: =C49-D49 -> 5173322.7 | F49: 375989 | G49: =E49+0.5*F49 -> 5361317.2 | H49: 8 | I49: 0.125 | J49: 670164.65 | K49: 693664 | L49: -23499.35 | M49: 23499.3125 | N49: -0.03750000009
A50: 1930 | B50: Transportation Equipment - Trailers | C50: 249385.85 | D50: 168828.67 | E50: =C50-D50 -> 80557.18 | F50: 0 | G50: =E50+0.5*F50 -> 80557.18 | H50: 8 | I50: 0.125 | J50: 10069.6475 | K50: 10070 | L50: -0.3525 | M50: 0 | N50: -0.3525
A51: 1935 | B51: Stores Equipment | C51: 64072 | D51: 36629.72 | E51: 27442.28 | F51: 0 | G51: 27442.28 | H51: 10 | I51: 0.1 | J51: 2744.228 | K51: 3512 | L51: -767.772 | M51: 0 | N51: -767.772
A52: 1940 | B52: Tools, Shop & Garage Equipment | C52: 772798 | D52: 230418.71 | E52: 542379.29 | F52: 70533 | G52: 577645.79 | H52: 10 | I52: 0.1 | J52: 57764.579 | K52: =60503-373 -> 60130 | L52: -2365.421 | M52: 3526.65 | N52: 1161.229
A53: 1940 | B53: Tools - Smart Meters | E53: 0 | F53: 3728 | G53: 1864 | H53: 10 | I53: 0.1 | J53: 186.4 | K53: 372.8 | L53: -186.4 | M53: 186.4 | N53: 0 | O53: smart meters
A54: 1945 | B54: Measurement & Testing Equipment | C54: 866733 | D54: 614023.28 | E54: 252709.72 | F54: 96435 | G54: 300927.22 | H54: 10 | I54: 0.1 | J54: 30092.722 | K54: 32783 | L54: -2690.278 | M54: 4821.75 | N54: 2131.472
A55: 1950 | B55: Power Operated Equipment | C55: 783695 | D55: 304873.23 | E55: 478821.77 | F55: 54068 | G55: 505855.77 | H55: 10 | I55: 0.1 | J55: 50585.577 | K55: 57705 | L55: -7119.423 | M55: 2703.4 | N55: -4416.023
A56: 1955 | B56: Communications Equipment | C56: 173729 | D56: 74214.9 | E56: 99514.1 | F56: 0 | G56: 99514.1 | H56: 10 | I56: 0.1 | J56: 9951.41 | K56: 16819 | L56: -6867.59 | M56: 0 | N56: -6867.59
A57: 1955 | B57: Communication Equipment (Smart Meters) | E57: 0 | F57: 696107 | G57: 348053.5 | H57: 10 | I57: 0.1 | J57: 34805.35 | K57: 254934 | L57: -220128.65 | M57: 34805.35 | N57: -185323.3 | O57: smart meters
A58: 1960 | B58: Miscellaneous Equipment | C58: 98856 | D58: 24382.97 | E58: 74473.03 | F58: 0 | G58: 74473.03 | H58: 5 | I58: 0.2 | J58: 14894.606 | K58: 14930 | L58: -35.394 | M58: 0 | N58: -35.394
A59: 1975 | B59: Load Management Controls Utility Premises | E59: 0 | F59: 0 | G59: 0 | H59: 10 | I59: 0.1 | J59: 0 | K59: 0 | L59: 0 | M59: 0 | N59: 0
A60: 1980 | B60: System Supervisor Equipment | C60: 1507244 | D60: 5771 | E60: 1501473 | F60: 0 | G60: 1501473 | H60: 25 | I60: 0.04 | J60: 60058.92 | K60: 60058.91 | L60: 0.009999999995 | M60: =F60/H60*0.5 -> 0 | N60: 0.009999999995
A61: 1980 | B61: System Supervisor Equipment | C61: 59236 | E61: 59236 | F61: 0 | G61: 59236 | H61: 15 | I61: 0.06666666667 | J61: 3949.066667 | K61: 3946.81 | L61: 2.256666667 | M61: =F61/H61*0.5 -> 0 | N61: 2.256666667
A62: 1985 | B62: Miscellaneous Fixed Assets | E62: 0 | F62: 0 | G62: 0 | H62: 5 | I62: 0.2 | J62: 0 | L62: 0 | M62: 0 | N62: 0
A63: 1995 | B63: Contributions & Grants | C63: -44537160 | E63: -44537160 | F63: -4668971 | G63: -46871645.5 | H63: 25 | I63: 0.04 | J63: -1874865.82 | K63: -1968390 | L63: =IF(ISERROR(+J63-K63), 0, +J63-K63) -> 93524.18 | M63: -93379.42 | N63: 144.76 | O63: Rounding?
A64: etc. | E64: 0 | G64: 0 | I64: 0 | J64: 0 | L64: 0
E65: 0 | G65: 0 | J65: 0 | L65: 0
B66: Total | C66: =SUM(C16:C65) -> 285105479.7 | D66: =SUM(D16:D65) -> 20028530.01 | E66: =SUM(E16:E65) -> 265076949.7 | F66: =SUM(F16:F65) ->  | G66: =SUM(G16:G65) ->  | J66: =SUM(J16:J65) ->  | K66: =SUM(K16:K65) ->  | L66: =SUM(L16:L65) -> -244460.9947 | M66: =SUM(M16:M65) -> 
A68: Notes: | M68: =M66/K66 -> 
A70: 1 | B70: Board policy of the "half-year" rule - the applicant must ensure that additions in the year attract a half-year depreciation expense in the first year. Deviations from this standard practice must be supported in the application.
A71: 2 | B71: The applicant must provide an explanation of material variances in evidence
A73: General | B73: Applicants must provide a breakdown of depreciation and amortization expense in the above format for all relevant accounts. Asset Retirement Obligations (AROs), depreciation and accretion expense should be disclosed separately consistent with the Notes of historical Audited Financial Statements.
A78: Explanation | G78: Applying the half year rule in the Test year | L78: =+L63+L20+L23+L26+L27+L28+L30+L34+L40-M32-M36-L32 -> 
G79: Result of the smart meter decision(i.e. taking depreciation as ordered) | L79: =+L57+L53+L46+L38+L17 -> -275629.95
G80: Identifiable Assets - Depreciation taken when asset comes into service | L80: =+L56+L55+L54+L52+L51+L49+L48+L45+L43+L16 -> 37435.308
G81: Amortization on Stranded meters | L81: -502795.26
G82: Transformer adjustment | L82: 72814
G83: Rounding errors | L83: 639.29
L84: =SUM(L78:L83) -> 
L85: =+L66-L84 -> 

Sheet Appendix 2-ED
H1: File Number: | I1: =EBNUMBER -> EB-2013-0147
H2: Exhibit:
H3: Tab:
H4: Schedule:
H5: Page:
H7: Date:
A9: Appendix 2-ED
A10: Account 1576 - Accounting Changes under CGAAP
A11: 2012 Changes in Accounting Policies under CGAAP
B17: =RebaseYear &" Rebasing Year" -> 2009 Rebasing Year | C17: 2011 | D17: 2012 | E17: 2013 | F17: 2014 Rebasing Year | G17: 2015 | H17: 2016 | I17: 2017 | J17: 2018
A18: Reporting Basis | B18: CGAAP | C18: IRM | D18: IRM | E18: IRM | F18: CGAAP - ASPE | G18: IRM | H18: IRM | I18: IRM | J18: IRM
A19: Forecast vs. Actual Used in Rebasing Year | B19: Forecast | C19: Actual | D19: Actual | E19: Forecast | F19: Forecast
D20: $ | E20: $ | F20: $ | G20: $ | H20: $ | I20: $ | J20: $
A21: PP&E Values under former CGAAP
A22: Opening net PP&E - Note 1 | D22: 156582980 | E22: =+D25 -> 170299308
A23: Net Additions - Note 4 | D23: 21275856 | E23: 18621591
A24: Net Depreciation (amounts should be negative) - Note 4 | D24: -7559528 | E24: -11968981
A25: Closing net PP&E (1) | D25: =D22+D23+D24 -> 170299308 | E25: =E22+E23+E24 -> 176951918
A27: PP&E Values under revised CGAAP (Starts from 2012)
A28: Opening net PP&E - Note 1 | D28: =+D22 -> 156582980 | E28: =+D31 -> 172564699
A29: Net Additions - Note 4 | D29: 19399675 | E29: 17657712
A30: Net Depreciation (amounts should be negative) - Note 4 | D30: -3417956 | E30: -7305052
A31: Closing net PP&E (2) | D31: =+D28+D29+D30 -> 172564699 | E31: =+E28+E29+E30 -> 182917359
A33: Difference in Closing net PP&E, former CGAAP vs. revised CGAAP | D33: =D25-D31 -> -2265391 | E33: =E25-E31 -> -5965441
A36: Effect on Deferral and Variance Account Rate Riders
A37: Closing balance in Account 1576 | F37: =IF(ISERROR(E33), 0, E33) -> -5965441 | H37: WACC | I37: 0.0731
A38: Return on Rate Base Associated with Account 1576 balance at WACC - Note 2 | F38: -613779.1852 | G38: # of years of rate rider disposition period | I38: 4
A39: Amount included in Deferral and Variance Account Rate Rider Calculation | F39: =F37+F38 -> -6579220.185
A41: Notes:
A42: 1 For an applicant that made the capitalization and depreciation expense accounting policy changes on January 1, 2012, the PP&E values as of January 1, 2012 under both former CGAAP and revised CGAAP should be the same.
A43: 2 Return on rate base associated with Account 1576 balance is calculated as:
A44: the variance account opening balance as of 2014 rebasing year x WACC X # of years of rate rider disposition period
A45: * Please note that the calculation should be adjusted once WACC is updated and finalized in the rate application.
A46: 3 Account 1576 is cleared by including the total balance in the deferral and variance account rate rider calculation.
A47: 4 Net additions are additions net of disposals; Net depreciation is additions to depreciation net of disposals.

Sheet App.2-P_Cost_Allocation
E1: File Number: | F1: ='LDC Info'!$E$18 -> EB-2013-0147
E2: Exhibit: | F2: 7
E3: Tab: | F3: 1
E4: Schedule:
E5: Page:
E7: Date: | F7: 2013-05-15
A9: Appendix 2-P
A10: Cost Allocation
A12: Please complete the following four tables.
A14: A) Allocated Costs
A16: Classes | B16: Costs Allocated from Previous Study | C16: % | D16: Costs Allocated in Test Year Study (Column 7A) | E16: %
A17: Residential | B17: 23233322 | C17: =IF(B$24=0,"",B17/B$24) -> 0.5839377888 | D17: 23233982 | E17: =IF(D$24=0,"",D17/D$24) -> 0.5888898994
A18: GS < 50 kW | B18: 5145303 | C18: 0.1293201573 | D18: 5120592 | E18: 0.1297868315
A19: GS > 50 kW | B19: 10328798 | C19: 0.2596002184 | D19: 10323546 | E19: 0.2616612152
A20: Large User, if applicable | B20: 570358 | C20: 0.01433516866 | D20: 259409 | E20: 0.006574996051
A21: Street Lighting | B21: 394205 | C21: 0.009907803802 | D21: 354999 | E21: 0.008997825916
A22: Unmetered Scattered Load (USL) | B22: 115338 | C22: 0.002898862964 | D22: 97899 | E22: 0.002481353918
A23: Embedded Distributor class | C23: 0 | D23: 63437 | E23: 0.001607878002
A24: Total | B24: =SUM(B17:B23) -> 39787324 | C24: =SUM(C17:C23) -> 1 | D24: =SUM(D17:D23) -> 39453864 | E24: =SUM(E17:E23) -> 1
A26: Notes
A28: 1 Customer Classification - If proposed rate classes differ from those in place in the previous Cost Allocation study, modify the rate classes to match the current application as closely as possible.
A31: 2 Host Distributors - Provide information on embedded distributor(s) as a separate class, if applicable. If embedded distributor(s) are billed as customers in a General Service class, include the allocated cost and revenue of the embedded distributor(s) in the applicable class. Also complete Appendix 2-Q.
A35: 3 Class Revenue Requirements - If using the Board-issued model, in column 7A enter the results from Worksheet O-1, Revenue Requirement (row 40 in the 2013 model). This excludes costs in deferral and variance accounts. Note to Embedded Distributor(s), it also does not include Account 4750 - Low Voltage (LV) Costs.
A39: B) Calculated Class Revenues
C41: Column 7B | D41: Column 7C | E41: Column 7D | F41: Column 7E
A42: Classes (same as previous table) | C42: Load Forecast (LF) X current approved rates | D42: L.F. X current approved rates X (1 + d) | E42: LF X proposed rates | F42: Miscellaneous Revenue
A44: =A17 -> Residential | C44: 20949749 | D44: 20514793 | E44: 21667099 | F44: 1476306
A45: GS < 50 kW | C45: 5411737 | D45: 5299379 | E45: 4890898 | F45: 229694
A46: GS > 50 kW | C46: 10926313 | D46: 10699462 | E46: 10016438 | F46: 307108
A47: Large User, if applicable | C47: 223287 | D47: 218652 | E47: 255397 | F47: 4012
A48: Street Lighting | C48: 477296 | D48: 467386 | E48: 409664 | F48: 16335
A49: Unmetered Scattered Load (USL) | C49: 147719 | D49: 144652 | E49: 111734 | F49: 5745
A50: Embedded Distributor class | C50: 71836 | D50: 70344 | E50: 63438 | F50: 0
A51: Total | C51: =SUM(C44:C50) -> 38207937 | D51: =SUM(D44:D50) -> 37414668 | E51: =SUM(E44:E50) -> 37414668 | F51: =SUM(F44:F50) -> 2039200
A53: Notes:
A55: 1 Columns 7B to 7D - LF means Load Forecast of Annual Billing Quantities (i.e. customers or connections X 12, (kWh or kW, as applicable). Revenue Quantities should be net of Transfomrer Ownership Allowance. Exclude revenue from rate adders and rate riders.
A58: 2 Columns 7C and 7D - Column total in each column should equal the Base Revenue Requirement
A60: 3 Columns 7C - The Board cost allocation model calculates "1+d" in worksheet O-1, cell C21. "d" is defined as Revenue Deficiency/ Revenue at Current Rates.
A63: 4 Columns 7E - If using the Board-issued Cost Allocation model, enter Miscellaneous Revenue as it appears in Worksheet O-1, row 19.
A66: C) Rebalancing Revenue-to-Cost (R/C) Ratios
A68: Class | C68: Previously Approved Ratios | D68: Status Quo Ratios | E68: Proposed Ratios | F68: Policy Range
C69: Most Recent Year: | D69: (7C + 7E) / (7A) | E69: (7D + 7E) / (7A)
C70: 2010
C71: % | D71: % | E71: % | F71: %
A72: =A44 -> Residential | C72: 91.13 | D72: =IF(D17=0,"",(D44+F44)/D17*100) -> 94.6505812 | E72: =IF(D17=0,"",(E44+F44)/D17*100) -> 99.61015292 | F72: 85 - 115
A73: GS < 50 kW | C73: 104.6 | D73: 107.9772222 | E73: 100 | F73: 80 - 120
A74: GS > 50 kW | C74: 116.9 | D74: 106.6161763 | E74: 100 | F74: 80 - 120
A75: Large User, if applicable | C75: 96 | D75: 85.83510981 | E75: 100 | F75: 85 - 115
A76: Street Lighting | C76: 120 | D76: 136.2598205 | E76: 120.0000563 | F76: 70 - 120
A77: Unmetered Scattered Load (USL) | C77: 120 | D77: 153.624654 | E77: 120.0002043 | F77: 80 - 120
A78: Embedded Distributor class | D78: 110.8879676 | E78: 100.0015764
A80: Notes
A82: 1 Previously Approved Revenue-to-Cost Ratios - For most applicants, Most Recent Year would be the third year of the IRM 3 period, e.g. if the applicant rebased in 2009 with further adjustments over 2 years, the Most recent year is 2011. For applicants that have had rates adjusted only under IRM 2, the Most Recent Year is 2006, and the applicant should enter the ratios from their Informational Filing.
A85: 2 Status Quo Ratios - The Board's updated Cost Allocation Model yields the Status Quo Ratios in Worksheet O-1. Status Quo means "Before Rebalancing".
A87: D) Proposed Revenue-to-Cost Ratios
A89: Class | C89: Proposed Revenue-to-Cost Ratios | F89: Policy Range
C90: 2014 | D90: 2015 | E90: 2016
C91: % | D91: % | E91: % | F91: %
A92: =A72 -> Residential | C92: =E72 -> 99.61015292 | F92: =F72 -> 85 - 115
A93: GS < 50 kW | C93: 100 | F93: =F73 -> 80 - 120
A94: GS > 50 kW | C94: 100 | F94: =F74 -> 80 - 120
A95: Large User, if applicable | C95: 100 | F95: =F75 -> 85 - 115
A96: Street Lighting | C96: 120.0000563 | F96: =F76 -> 70 - 120
A97: Unmetered Scattered Load (USL) | C97: 120.0002043 | F97: =F77 -> 80 - 120
A98: =A78 -> Embedded Distributor class | C98: =E78 -> 100.0015764
A100: Note
A101: 1 The applicant should complete Table D if it is applying for approval of a revenue to cost ratio in 2012 that is outside the Board’s policy range for any customer class. Table (d) will show the information that the distributor would likely enter in the IRM model) in 2013. In 2013 Table (d), enter the planned ratios for the classes that will be ‘Change’ and ‘No Change’ in 2013 (in the current Revenue Cost Ratio Adjustment Workform, Worksheet C1.1 ‘Decision – Cost Revenue Adjustment’, column d), and enter TBD for class(es) that will be entered as ‘Rebalance’.

Sheet App.2-V_Rev_Reconciliation
O1: File Number: | P1: ='LDC Info'!$E$18 -> EB-2013-0147
O2: Exhibit: | P2: 8
O3: Tab:
O4: Schedule:
O5: Page:
O7: Date: | P7: 2013-05-15
A9: Appendix 2-V
A10: Revenue Reconciliation
A12: Rate Class | B12: Customers/ Connections | C12: Number of Customers/Connections | F12: Test Year Consumption | H12: Proposed Rates | K12: Revenues at Proposed Rates | M12: Class Specific Revenue Requirement | N12: Transformer Allowance Credit | O12: Total | P12: Difference
C13: Start of Test Year | D13: End of Test Year | E13: Average | F13: kWh | G13: kW | H13: Monthly Service Charge | I13: Volumetric
I14: kWh | J14: kW
A16: Residential | B16: Customers | E16: 82577 | F16: 651926620 | H16: 12.53 | I16: 0.01419 | K16: =H16*E16*12+I16*F16+J16*G16 -> 21667116.46 | M16: 21667099 | O16: =SUM(M16:N16) -> 21667099 | P16: =O16-K16 -> -17.4578
A17: GS < 50 kW | B17: Customers | E17: 7830 | F17: 241614912 | H17: 25.71 | I17: 0.0102443 | K17: 4890887.243 | M17: 4890898 | O17: 4890898 | P17: 10.7569984
A18: GS > 50 to 4,999 kW | B18: Customers | E18: 945 | F18: 844886400 | G18: 2183248 | H18: 237.72 | J18: 3.6425472 | K18: 10648328.69 | M18: 10016438 | N18: 631891 | O18: 10648329 | P18: 0.3106944002
A19: Large Use | B19: Customers | E19: 1 | G19: 63002 | H19: 14501.61 | J19: 1.8916767 | K19: 293198.7355 | M19: 255397 | N19: 37801 | O19: 293198 | P19: -0.7354534
A20: Streetlighting | B20: Connections | E20: 24613 | G20: 45145 | H20: 0.8 | J20: 3.8404674 | K20: 409662.7008 | M20: 409664 | O20: 409664 | P20: 1.299227
A21: Unmetered Scattered Load | B21: Connections | E21: 890 | F21: 3417188 | H21: 8.52 | I21: 0.00607 | K21: 111735.9312 | M21: 111734 | O21: 111734 | P21: -1.93116
A22: Embedded Distributor Class | B22: Customers | E22: 1 | G22: 44674 | H22: 0 | J22: 1.42 | K22: 63437.08 | M22: 63438 | O22: 63438 | P22: 0.92
E23: =IF(SUM(C23:D23)=0,0,AVERAGE(C23:D23)) -> 0 | K23: 0 | O23: 0 | P23: 0
E24: 0 | K24: 0 | O24: 0 | P24: 0
E25: 0 | K25: 0 | O25: 0 | P25: 0
E26: 0 | K26: 0 | O26: 0 | P26: 0
A28: Total | K28: =SUM(K16:K26) -> 38084366.84 | M28: =SUM(M16:M26) -> 37414668 | N28: =SUM(N16:N26) -> 669692 | O28: =M28+N28 -> 38084360 | P28: =O28-K28 -> -6.837493598
A30: Note
A32: 1 The class specific revenue requirements in column N must be the amounts used in the final rate design process. The total of column N should equate to the proposed base revenue requirement

Sheet App.2-W_Impacts-Res
N1: File Number: | O1: ='LDC Info'!$E$18 -> EB-2013-0147 | T1: 1
N2: Exhibit: | O2: 8
N3: Tab:
N4: Schedule:
N5: Page:
N7: Date:
B10: Appendix 2-W
B11: Bill Impacts
B14: Customer Class: | D14: Residential
D16: Consumption | F16: 100 | G16: kWh
F18: Current Board-Approved | J18: Proposed | N18: Impact
D19: Charge Unit | F19: Rate | G19: Volume | H19: Charge | J19: Rate | K19: Volume | L19: Charge | N19: $ Change | O19: % Change
F20: ($) | H20: ($) | J20: ($) | L20: ($)
B21: Monthly Service Charge | D21: Monthly | F21: 9.76 | G21: 1 | H21: =G21*F21 -> 9.76 | J21: =+'App.2-V_Rev_Reconciliation'!H16 -> 12.53 | K21: 1 | L21: =K21*J21 -> 12.53 | N21: =L21-H21 -> 2.77 | O21: =IF((H21)=0,"",(N21/H21)) -> 0.2838114754
B22: Smart Meter Disposition Rate Rider | D22: Monthly | F22: 0.13 | G22: 1 | H22: =G22*F22 -> 0.13 | J22: 0.13 | K22: 1 | L22: =K22*J22 -> 0.13 | N22: =L22-H22 -> 0 | O22: =IF((H22)=0,"",(N22/H22)) -> 0
B23: Smart Meter Incremental Revenue Rate Rider | D23: Monthly | F23: 1.62 | G23: 1 | H23: 1.62 | J23: 0 | K23: 1 | L23: =K23*J23 -> 0 | N23: =L23-H23 -> -1.62 | O23: =IF((H23)=0,"",(N23/H23)) -> -1
B24: Stranded Meter Rate Rider | D24: Monthly | F24: 0 | G24: 1 | H24: 0 | J24: 2.06 | K24: 1 | L24: 2.06 | N24: 2.06 | O24: =IF((H24)=0,"",(N24/H24)) -> 
B26: Distribution Volumetric Rate | D26: per kWh | F26: 0.0173 | G26: =$F$16 -> 100 | H26: 1.73 | J26: =+'App.2-V_Rev_Reconciliation'!I16 -> 0.01419 | K26: =$F$16 -> 100 | L26: 1.419 | N26: -0.311 | O26: -0.1797687861
B27: LRAM & SSM Rate Rider | D27: per kWh | F27: 0.0003 | G27: =$F$16 -> 100 | H27: 0.03 | J27: 0.0003 | K27: =$F$16 -> 100 | L27: 0.03 | N27: 0 | O27: 0
B28: Tax Change Rate Rider | D28: per kWh | F28: -0.0004 | G28: =$F$16 -> 100 | H28: -0.04 | J28: -0.0004 | K28: 100 | L28: -0.04 | N28: 0 | O28: 0
B29: 1576 Rate Rider | D29: per kWh | F29: 0 | G29: 100 | H29: 0 | J29: -0.0013 | K29: 100 | L29: -0.13 | N29: -0.13
B30: Sub-Total A | H30: =SUM(H21:H29) -> 13.23 | L30: =SUM(L21:L29) -> 15.999 | N30: 2.769 | O30: 0.2092970522
B31: Deferral/Variance Account Disposition Rate Rider | D31: per kWh | F31: 0 | G31: =$F$16 -> 100 | H31: =G31*F31 -> 0 | J31: -0.0003 | K31: =$F$16 -> 100 | L31: =K31*J31 -> -0.03 | N31: =L31-H31 -> -0.03 | O31: =IF((H31)=0,"",(N31/H31)) -> 
B32: Global Adjustment Rate Rider | D32: per kWh | F32: 0 | G32: =$F$16 -> 100 | H32: =G32*F32 -> 0 | J32: 0.0002 | K32: =$F$16 -> 100 | L32: =K32*J32 -> 0.02 | N32: =L32-H32 -> 0.02 | O32: =IF((H32)=0,"",(N32/H32)) -> 
G33: 100 | H33: 0 | K33: 100 | L33: 0 | N33: 0
B34: Low Voltage Service Charge | G34: 100 | H34: =G34*F34 -> 0 | K34: 100 | L34: =K34*J34 -> 0 | N34: =L34-H34 -> 0 | O34: =IF((H34)=0,"",(N34/H34)) -> 
B35: Smart Meter Entity Charge | D35: Monthly | F35: 0.79 | G35: 1 | H35: =G35*F35 -> 0.79 | J35: 0.79 | K35: 1 | L35: =K35*J35 -> 0.79 | N35: =L35-H35 -> 0
B36: Sub-Total B - Distribution (includes Sub-Total A) | H36: =SUM(H31:H34)+H30 -> 13.23 | L36: =SUM(L31:L34)+L30 -> 15.989 | N36: =L36-H36 -> 2.759 | O36: =IF((H36)=0,"",(N36/H36)) -> 0.2085411943
B37: RTSR - Network | D37: per kWh | F37: 0.0067 | G37: =F16*(1+F63) -> 103.2 | H37: =G37*F37 -> 0.69144 | J37: 0.0072 | K37: =F16*(1+J63) -> 103.5142052 | L37: =K37*J37 -> 0.7453022778 | N37: 0.0538622778 | O37: 0.07789870097
B38: RTSR - Line and Transformation Connection | D38: per kWh | F38: 0.0014 | G38: =G37 -> 103.2 | H38: =G38*F38 -> 0.14448 | J38: 0.0014 | K38: =K37 -> 103.5142052 | L38: =K38*J38 -> 0.1449198873 | N38: 0.0004398873492 | O38: 0.00304462451
B39: Sub-Total C - Delivery (including Sub-Total B) | H39: =SUM(H36:H38) -> 14.06592 | L39: =SUM(L36:L38) -> 16.87922217 | N39: 2.813302165 | O39: 0.2000084008
B40: Wholesale Market Service Charge (WMSC) | D40: per kWh | F40: 0.0044 | G40: =G38 -> 103.2 | H40: =G40*F40 -> 0.45408 | J40: 0.0044 | K40: =K38 -> 103.5142052 | L40: =K40*J40 -> 0.4554625031 | N40: 0.001382503098 | O40: 0.00304462451
B41: Rural and Remote Rate Protection (RRRP) | D41: per kWh | F41: 0.0012 | G41: =G38 -> 103.2 | H41: 0.12384 | J41: 0.0012 | K41: =K38 -> 103.5142052 | L41: 0.1242170463 | N41: 0.0003770462993 | O41: 0.00304462451
B42: Standard Supply Service Charge | D42: Monthly | F42: 0.25 | G42: 1 | H42: 0.25 | J42: 0.25 | K42: 1 | L42: 0.25 | N42: 0 | O42: 0
B43: Debt Retirement Charge (DRC) | D43: per kWh | F43: 0.007 | G43: =+F16 -> 100 | H43: 0.7 | J43: 0.007 | K43: =+F16 -> 100 | L43: 0.7 | N43: 0 | O43: 0
B44: Energy - RPP - Tier 1 | D44: per kWh | F44: 0.078 | G44: =IF($T$1=1,IF($F$16>=600,600,IF($F$16<600,$F$16*(1+$F$63),$F$16-600)),IF($T$1=2,IF($F$16>=1000,1000,IF($F$16<1000,$F$16*(1+$F$63),$F$16-1000)))) -> 103.2 | H44: =G44*F44 -> 8.0496 | J44: 0.078 | K44: =IF($T$1=1,IF($F$16>=600,600,IF($F$16<600,$F$16*(1+$J$63),$F$16-600)),IF($T$1=2,IF($F$16>=1000,1000,IF($F$16<1000,$F$16*(1+$J$63),$F$16-1000)))) -> 103.5142052 | L44: =K44*J44 -> 8.074108009 | N44: 0.02450800946 | O44: 0.00304462451
B45: Energy - RPP - Tier 2 | D45: per kWh | F45: 0.091 | G45: =IF($T$1=1,IF($F$16>=600,$F$16*(1+$F$63)-600,IF($F$16<600,0,)), IF($T$1=2,IF($F$16>=1000,$F$16*(1+$F$63)-1000,IF($F$16<1000,0)))) -> 0 | H45: =G45*F45 -> 0 | J45: 0.091 | K45: =IF($T$1=1,IF($F$16>=600,$F$16*(1+$J$63)-600,IF($F$16<600,0,)), IF($T$1=2,IF($F$16>=1000,$F$16*(1+$J$63)-1000,IF($F$16<1000,0)))) -> 0 | L45: =K45*J45 -> 0 | N45: 0
B46: TOU - Off Peak | D46: per kWh | F46: 0.067 | G46: =0.64*$F$16*(1+$F$63) -> 66.048 | H46: 4.425216 | J46: 0.067 | K46: =0.64*$F$16*(1+$J$63) -> 66.24909136 | L46: 4.438689121 | N46: 0.0134731211 | O46: 0.00304462451
B47: TOU - Mid Peak | D47: per kWh | F47: 0.104 | G47: =0.18*$F$16*(1+$F$63) -> 18.576 | H47: 1.931904 | J47: 0.104 | K47: =0.18*$F$16*(1+$J$63) -> 18.63255694 | L47: 1.937785922 | N47: 0.00588192227 | O47: 0.00304462451
B48: TOU - On Peak | D48: per kW | F48: 0.124 | G48: =0.18*$F$16*(1+$F$63) -> 18.576 | H48: 2.303424 | J48: 0.124 | K48: =0.18*$F$16*(1+$J$63) -> 18.63255694 | L48: 2.310437061 | N48: 0.007013061168 | O48: 0.00304462451
B50: Total Bill on RPP (before Taxes) | H50: =SUM(H39:H45) -> 23.64344 | L50: =SUM(L39:L45) -> 26.48300972 | N50: 2.839569724 | O50: 0.1200996862
B51: HST | F51: 0.13 | H51: =H50*F51 -> 3.0736472 | J51: 0.13 | L51: =L50*J51 -> 3.442791264 | N51: =L51-H51 -> 0.3691440641 | O51: =IF((H51)=0,"",(N51/H51)) -> 0.1200996862
B52: Total Bill (including HST) | H52: =H50+H51 -> 26.7170872 | L52: =L50+L51 -> 29.92580099 | N52: =L52-H52 -> 3.208713788 | O52: =IF((H52)=0,"",(N52/H52)) -> 0.1200996862
B53: Ontario Clean Energy Benefit 1 | H53: =ROUND(-H52*10%,2) -> -2.67 | L53: =ROUND(-L52*10%,2) -> -2.99 | N53: =L53-H53 -> -0.32 | O53: =IF((H53)=0,"",(N53/H53)) -> 0.1198501873
B54: Total Bill on RPP (including OCEB) | H54: =SUM(H52:H53) -> 24.0470872 | L54: =SUM(L52:L53) -> 26.93580099 | N54: 2.888713788 | O54: 0.1201273886
B56: Total Bill on TOU (before Taxes) | H56: =SUM(H39:H43,H46:H48) -> 24.254384 | L56: =SUM(L39:L43,L46:L48) -> 27.09581382 | N56: =L56-H56 -> 2.841429819 | O56: =IF((H56)=0,"",(N56/H56)) -> 0.1171511847
B57: HST | F57: 0.13 | H57: =H56*F57 -> 3.15306992 | J57: 0.13 | L57: =L56*J57 -> 3.522455796 | N57: 0.3693858765 | O57: 0.1171511847
B58: Total Bill (including HST) | H58: =H56+H57 -> 27.40745392 | L58: =L56+L57 -> 30.61826962 | N58: 3.210815696 | O58: 0.1171511847
B59: Ontario Clean Energy Benefit 1 | H59: =ROUND(-H58*10%,2) -> -2.74 | L59: =ROUND(-L58*10%,2) -> -3.06 | N59: -0.32 | O59: 0.1167883212
B60: Total Bill on TOU (including OCEB) | H60: =H58+H59 -> 24.66745392 | L60: =L58+L59 -> 27.55826962 | N60: 2.890815696 | O60: 0.1171914907
B63: Loss Factor (%) | F63: 0.032 | J63: 0.03514205249
A65: 1 Applicable to eligible customers only. Refer to the Ontario Clean Energy Benefit Act, 2010.
B67: Customer Class: | D67: Residential
D69: Consumption | F69: 250 | G69: kWh
F71: Current Board-Approved | J71: Proposed | N71: Impact
D72: Charge Unit | F72: Rate | G72: Volume | H72: Charge | J72: Rate | K72: Volume | L72: Charge | N72: $ Change | O72: % Change
F73: ($) | H73: ($) | J73: ($) | L73: ($)
B74: =B21 -> Monthly Service Charge | D74: Monthly | F74: =F21 -> 9.76 | G74: 1 | H74: =G74*F74 -> 9.76 | J74: =J21 -> 12.53 | K74: 1 | L74: =K74*J74 -> 12.53 | N74: =L74-H74 -> 2.77 | O74: =IF((H74)=0,"",(N74/H74)) -> 0.2838114754
B75: =B22 -> Smart Meter Disposition Rate Rider | D75: Monthly | F75: 0.13 | G75: 1 | H75: =G75*F75 -> 0.13 | J75: 0.13 | K75: 1 | L75: =K75*J75 -> 0.13 | N75: =L75-H75 -> 0 | O75: =IF((H75)=0,"",(N75/H75)) -> 0
B76: =B23 -> Smart Meter Incremental Revenue Rate Rider | D76: Monthly | F76: 1.62 | G76: 1 | H76: 1.62 | J76: 0 | K76: 1 | L76: =K76*J76 -> 0 | N76: =L76-H76 -> -1.62 | O76: =IF((H76)=0,"",(N76/H76)) -> -1
B77: =B24 -> Stranded Meter Rate Rider | D77: =D24 -> Monthly | F77: 0 | G77: 1 | H77: 0 | J77: 2.06 | K77: 1 | L77: 2.06 | N77: 2.06
B78: 0 | D78: 0 | F78: 0 | J78: 0
B79: Distribution Volumetric Rate | D79: per kWh | F79: 0.0173 | G79: =$F69 -> 250 | H79: 4.325 | J79: 0.01419 | K79: =$F69 -> 250 | L79: 3.5475 | N79: -0.7775 | O79: -0.1797687861
B80: LRAM & SSM Rate Rider | D80: per kWh | F80: 0.0003 | G80: =$F69 -> 250 | H80: 0.075 | J80: 0.0003 | K80: =$F69 -> 250 | L80: 0.075 | N80: 0 | O80: 0
B81: Tax Change Rate Rider | D81: per kWh | F81: -0.0004 | G81: =$F69 -> 250 | H81: -0.1 | J81: -0.0004 | K81: =$F69 -> 250 | L81: -0.1 | N81: 0 | O81: 0
B82: =+$B$29 -> 1576 Rate Rider | D82: =+$D$29 -> per kWh | F82: 0 | G82: =$F69 -> 250 | H82: 0 | J82: -0.0013 | K82: =$F69 -> 250 | L82: -0.325 | N82: -0.325
B83: Sub-Total A | H83: =SUM(H74:H82) -> 15.81 | L83: =SUM(L74:L82) -> 17.9175 | N83: 2.1075 | O83: 0.1333017078
B84: =B31 -> Deferral/Variance Account Disposition Rate Rider | D84: =D31 -> per kWh | F84: =F31 -> 0 | G84: =$F69 -> 250 | H84: =G84*F84 -> 0 | J84: =J31 -> -0.0003 | K84: =$F69 -> 250 | L84: =K84*J84 -> -0.075 | N84: =L84-H84 -> -0.075 | O84: =IF((H84)=0,"",(N84/H84)) -> 
B85: Global Adjustment Rate Rider | D85: per kWh | F85: 0 | G85: =$F69 -> 250 | H85: =G85*F85 -> 0 | J85: 0.0002 | K85: =$F69 -> 250 | L85: =K85*J85 -> 0.05 | N85: =L85-H85 -> 0.05 | O85: =IF((H85)=0,"",(N85/H85)) -> 
B86: 0 | D86: 0 | F86: 0 | G86: =$F69 -> 250 | H86: 0 | J86: 0 | K86: =$F69 -> 250 | L86: 0 | N86: 0
B87: Low Voltage Service Charge | F87: 0 | G87: =$F69 -> 250 | H87: =G87*F87 -> 0 | J87: 0 | K87: =$F69 -> 250 | L87: =K87*J87 -> 0 | N87: =L87-H87 -> 0 | O87: =IF((H87)=0,"",(N87/H87)) -> 
B88: Smart Meter Entity Charge | D88: Monthly | F88: 0.79 | G88: 1 | H88: =G88*F88 -> 0.79 | J88: 0.79 | K88: 1 | L88: =K88*J88 -> 0.79 | N88: =L88-H88 -> 0
B89: Sub-Total B - Distribution (includes Sub-Total A) | H89: =SUM(H84:H87)+H83 -> 15.81 | L89: =SUM(L84:L87)+L83 -> 17.8925 | N89: =L89-H89 -> 2.0825 | O89: =IF((H89)=0,"",(N89/H89)) -> 0.1317204301
B90: RTSR - Network | D90: per kWh | F90: =F37 -> 0.0067 | G90: =F69*(1+F116) -> 258 | H90: =G90*F90 -> 1.7286 | J90: =J37 -> 0.0072 | K90: =F69*(1+J116) -> 258.7855131 | L90: =K90*J90 -> 1.863255694 | N90: 0.1346556945 | O90: 0.07789870097
B91: RTSR - Line and Transformation Connection | D91: per kWh | F91: 0.0014 | G91: =G90 -> 258 | H91: =G91*F91 -> 0.3612 | J91: 0.0014 | K91: =K90 -> 258.7855131 | L91: =K91*J91 -> 0.3622997184 | N91: 0.001099718373 | O91: 0.00304462451
B92: Sub-Total C - Delivery (including Sub-Total B) | H92: =SUM(H89:H91) -> 17.8998 | L92: =SUM(L89:L91) -> 20.11805541 | N92: 2.218255413 | O92: 0.1239262681
B93: Wholesale Market Service Charge (WMSC) | D93: per kWh | F93: =F40 -> 0.0044 | G93: =G91 -> 258 | H93: =G93*F93 -> 1.1352 | J93: =J40 -> 0.0044 | K93: =K91 -> 258.7855131 | L93: =K93*J93 -> 1.138656258 | N93: 0.003456257744 | O93: 0.00304462451
B94: Rural and Remote Rate Protection (RRRP) | D94: per kWh | F94: 0.0012 | G94: =G91 -> 258 | H94: 0.3096 | J94: 0.0012 | K94: =K91 -> 258.7855131 | L94: 0.3105426157 | N94: 0.0009426157483 | O94: 0.00304462451
B95: Standard Supply Service Charge | D95: Monthly | F95: 0.25 | G95: 1 | H95: 0.25 | J95: 0.25 | K95: 1 | L95: 0.25 | N95: 0 | O95: 0
B96: Debt Retirement Charge (DRC) | D96: per kWh | F96: 0.007 | G96: =+F69 -> 250 | H96: 1.75 | J96: 0.007 | K96: =+F69 -> 250 | L96: 1.75 | N96: 0 | O96: 0
B97: Energy - RPP - Tier 1 | D97: per kWh | F97: 0.078 | G97: =IF($T$1=1,IF($F69>=600,600,IF($F69<600,$F69*(1+$F116),$F69-600)),IF($T$1=2,IF($F69>=1000,1000,IF($F69<1000,$F69*(1+$F116),$F69-1000)))) -> 258 | H97: =G97*F97 -> 20.124 | J97: 0.078 | K97: =IF($T$1=1,IF($F69>=600,600,IF($F69<600,$F69*(1+$J116),$F69-600)),IF($T$1=2,IF($F69>=1000,1000,IF($F69<1000,$F69*(1+$J116),$F69-1000)))) -> 258.7855131 | L97: =K97*J97 -> 20.18527002 | N97: 0.06127002364 | O97: 0.00304462451
B98: Energy - RPP - Tier 2 | D98: per kWh | F98: 0.091 | G98: =IF($T$1=1,IF($F69>=600,$F69*(1+$F116)-600,IF($F69<600,0,)), IF($T$1=2,IF($F69>=1000,$F69*(1+$F116)-1000,IF($F69<1000,0)))) -> 0 | H98: =G98*F98 -> 0 | J98: 0.091 | K98: =IF($T$1=1,IF($F69>=600,$F69*(1+$J116)-600,IF($F69<600,0,)), IF($T$1=2,IF($F69>=1000,$F69*(1+$J116)-1000,IF($F69<1000,0)))) -> 0 | L98: =K98*J98 -> 0 | N98: 0
B99: TOU - Off Peak | D99: per kWh | F99: 0.067 | G99: =0.64*$F69*(1+$F116) -> 165.12 | H99: =G99*F99 -> 11.06304 | J99: 0.067 | K99: =0.64*$F69*(1+$J116) -> 165.6227284 | L99: =K99*J99 -> 11.0967228 | N99: 0.03368280274 | O99: 0.00304462451
B100: TOU - Mid Peak | D100: per kWh | F100: 0.104 | G100: =0.18*$F69*(1+$F116) -> 46.44 | H100: 4.82976 | J100: 0.104 | K100: =0.18*$F69*(1+$J116) -> 46.58139236 | L100: 4.844464806 | N100: 0.01470480567 | O100: 0.00304462451
B101: TOU - On Peak | D101: per kWh | F101: 0.124 | G101: =0.18*$F69*(1+$F116) -> 46.44 | H101: 5.75856 | J101: 0.124 | K101: =0.18*$F69*(1+$J116) -> 46.58139236 | L101: 5.776092653 | N101: 0.01753265292 | O101: 0.00304462451
B103: Total Bill on RPP (before Taxes) | H103: =SUM(H92:H98) -> 41.4686 | L103: =SUM(L92:L98) -> 43.75252431 | N103: =L103-H103 -> 2.28392431 | O103: =IF((H103)=0,"",(N103/H103)) -> 0.05507599268
B104: HST | F104: 0.13 | H104: =H103*F104 -> 5.390918 | J104: 0.13 | L104: =L103*J104 -> 5.68782816 | N104: 0.2969101603 | O104: 0.05507599268
B105: Total Bill (including HST) | H105: =H103+H104 -> 46.859518 | L105: =L103+L104 -> 49.44035247 | N105: 2.58083447 | O105: 0.05507599268
B106: Ontario Clean Energy Benefit 1 | H106: =ROUND(-H105*10%,2) -> -4.69 | L106: =ROUND(-L105*10%,2) -> -4.94 | N106: -0.25 | O106: 0.05330490405
B107: Total Bill on RPP (including OCEB) | H107: =SUM(H105:H106) -> 42.169518 | L107: =SUM(L105:L106) -> 44.50035247 | N107: 2.33083447 | O107: 0.05527296922
B109: Total Bill on TOU (before Taxes) | H109: =SUM(H92:H96,H99:H101) -> 42.99596 | L109: =SUM(L92:L96,L99:L101) -> 45.28453455 | N109: =L109-H109 -> 2.288574548 | O109: =IF((H109)=0,"",(N109/H109)) -> 0.05322766482
B110: HST | F110: 0.13 | H110: =H109*F110 -> 5.5894748 | J110: 0.13 | L110: =L109*J110 -> 5.886989491 | N110: 0.2975146912 | O110: 0.05322766482
B111: Total Bill (including HST) | H111: =H109+H110 -> 48.5854348 | L111: =L109+L110 -> 51.17152404 | N111: 2.586089239 | O111: 0.05322766482
B112: Ontario Clean Energy Benefit 1 | H112: =ROUND(-H111*10%,2) -> -4.86 | L112: =ROUND(-L111*10%,2) -> -5.12 | N112: -0.26 | O112: 0.05349794239
B113: Total Bill on TOU (including OCEB) | H113: =H111+H112 -> 43.7254348 | L113: =L111+L112 -> 46.05152404 | N113: 2.326089239 | O113: 0.05319762398
B116: Loss Factor (%) | F116: =$F$63 -> 0.032 | J116: =+J63 -> 0.03514205249
A118: 1 Applicable to eligible customers only. Refer to the Ontario Clean Energy Benefit Act, 2010.
B120: Customer Class: | D120: Residential
D122: Consumption | F122: 500 | G122: kWh
F124: Current Board-Approved | J124: Proposed | N124: Impact
D125: Charge Unit | F125: Rate | G125: Volume | H125: Charge | J125: Rate | K125: Volume | L125: Charge | N125: $ Change | O125: % Change
F126: ($) | H126: ($) | J126: ($) | L126: ($)
B127: =B21 -> Monthly Service Charge | D127: Monthly | F127: =F21 -> 9.76 | G127: 1 | H127: =G127*F127 -> 9.76 | J127: =J21 -> 12.53 | K127: 1 | L127: =K127*J127 -> 12.53 | N127: =L127-H127 -> 2.77 | O127: =IF((H127)=0,"",(N127/H127)) -> 0.2838114754
B128: =B22 -> Smart Meter Disposition Rate Rider | D128: Monthly | F128: 0.13 | G128: 1 | H128: =G128*F128 -> 0.13 | J128: 0.13 | K128: 1 | L128: =K128*J128 -> 0.13 | N128: =L128-H128 -> 0 | O128: =IF((H128)=0,"",(N128/H128)) -> 0
B129: =B23 -> Smart Meter Incremental Revenue Rate Rider | D129: Monthly | F129: 1.62 | G129: 1 | H129: 1.62 | J129: 0 | K129: 1 | L129: =K129*J129 -> 0 | N129: =L129-H129 -> -1.62 | O129: =IF((H129)=0,"",(N129/H129)) -> -1
B130: =B24 -> Stranded Meter Rate Rider | D130: =D24 -> Monthly | F130: 0 | G130: 1 | H130: 0 | J130: 2.06 | K130: 1 | L130: 2.06 | N130: 2.06
B131: 0 | D131: 0 | F131: 0 | J131: 0
B132: Distribution Volumetric Rate | D132: per kWh | F132: 0.0173 | G132: =$F122 -> 500 | H132: 8.65 | J132: 0.01419 | K132: =$F122 -> 500 | L132: 7.095 | N132: -1.555 | O132: -0.1797687861
B133: LRAM & SSM Rate Rider | D133: per kWh | F133: 0.0003 | G133: =$F122 -> 500 | H133: 0.15 | J133: 0.0003 | K133: =$F122 -> 500 | L133: 0.15 | N133: 0 | O133: 0
B134: Tax Change Rate Rider | D134: per kWh | F134: -0.0004 | G134: =$F122 -> 500 | H134: -0.2 | J134: -0.0004 | K134: =$F122 -> 500 | L134: -0.2 | N134: 0 | O134: 0
B135: =+$B$29 -> 1576 Rate Rider | D135: =+$D$29 -> per kWh | F135: 0 | G135: =$F122 -> 500 | H135: 0 | J135: -0.0013 | K135: =$F122 -> 500 | L135: -0.65 | N135: -0.65
B136: Sub-Total A | H136: =SUM(H127:H135) -> 20.11 | L136: =SUM(L127:L135) -> 21.115 | N136: 1.005 | O136: 0.04997513675
B137: =B31 -> Deferral/Variance Account Disposition Rate Rider | D137: =D31 -> per kWh | F137: =F31 -> 0 | G137: =$F122 -> 500 | H137: =G137*F137 -> 0 | J137: =J31 -> -0.0003 | K137: =$F122 -> 500 | L137: =K137*J137 -> -0.15 | N137: =L137-H137 -> -0.15 | O137: =IF((H137)=0,"",(N137/H137)) -> 
B138: Global Adjustment Rate Rider | D138: per kWh | F138: 0 | G138: =$F122 -> 500 | H138: =G138*F138 -> 0 | J138: 0.0002 | K138: =$F122 -> 500 | L138: =K138*J138 -> 0.1 | N138: =L138-H138 -> 0.1 | O138: =IF((H138)=0,"",(N138/H138)) -> 
B139: 0 | D139: 0 | F139: 0 | G139: =$F122 -> 500 | H139: 0 | J139: 0 | K139: =$F122 -> 500 | L139: 0 | N139: 0
B140: Low Voltage Service Charge | F140: 0 | G140: =$F122 -> 500 | H140: =G140*F140 -> 0 | J140: 0 | K140: =$F122 -> 500 | L140: =K140*J140 -> 0 | N140: =L140-H140 -> 0 | O140: =IF((H140)=0,"",(N140/H140)) -> 
B141: Smart Meter Entity Charge | D141: Monthly | F141: 0.79 | G141: 1 | H141: =G141*F141 -> 0.79 | J141: 0.79 | K141: 1 | L141: =K141*J141 -> 0.79 | N141: =L141-H141 -> 0
B142: Sub-Total B - Distribution (includes Sub-Total A) | H142: =SUM(H137:H140)+H136 -> 20.11 | L142: =SUM(L137:L140)+L136 -> 21.065 | N142: =L142-H142 -> 0.955 | O142: =IF((H142)=0,"",(N142/H142)) -> 0.04748881154
B143: RTSR - Network | D143: per kWh | F143: =F37 -> 0.0067 | G143: =F122*(1+F169) -> 516 | H143: =G143*F143 -> 3.4572 | J143: =J37 -> 0.0072 | K143: =F122*(1+J169) -> 517.5710262 | L143: =K143*J143 -> 3.726511389 | N143: 0.269311389 | O143: 0.07789870097
B144: RTSR - Line and Transformation Connection | D144: per kWh | F144: 0.0014 | G144: =G143 -> 516 | H144: =G144*F144 -> 0.7224 | J144: 0.0014 | K144: =K143 -> 517.5710262 | L144: =K144*J144 -> 0.7245994367 | N144: 0.002199436746 | O144: 0.00304462451
B145: Sub-Total C - Delivery (including Sub-Total B) | H145: =SUM(H142:H144) -> 24.2896 | L145: =SUM(L142:L144) -> 25.51611083 | N145: 1.226510826 | O145: 0.05049530769
B146: Wholesale Market Service Charge (WMSC) | D146: per kWh | F146: =F40 -> 0.0044 | G146: =G144 -> 516 | H146: =G146*F146 -> 2.2704 | J146: =J40 -> 0.0044 | K146: =K144 -> 517.5710262 | L146: =K146*J146 -> 2.277312515 | N146: 0.006912515488 | O146: 0.00304462451
B147: Rural and Remote Rate Protection (RRRP) | D147: per kWh | F147: 0.0012 | G147: =G144 -> 516 | H147: 0.6192 | J147: 0.0012 | K147: =K144 -> 517.5710262 | L147: 0.6210852315 | N147: 0.001885231497 | O147: 0.00304462451
B148: Standard Supply Service Charge | D148: Monthly | F148: 0.25 | G148: 1 | H148: 0.25 | J148: 0.25 | K148: 1 | L148: 0.25 | N148: 0 | O148: 0
B149: Debt Retirement Charge (DRC) | D149: per kWh | F149: 0.007 | G149: =+F122 -> 500 | H149: 3.5 | J149: 0.007 | K149: =+F122 -> 500 | L149: 3.5 | N149: 0 | O149: 0
B150: Energy - RPP - Tier 1 | D150: per kWh | F150: 0.078 | G150: =IF($T$1=1,IF($F122>=600,600,IF($F122<600,$F122*(1+$F169),$F122-600)),IF($T$1=2,IF($F122>=1000,1000,IF($F122<1000,$F122*(1+$F169),$F122-1000)))) -> 516 | H150: =G150*F150 -> 40.248 | J150: 0.078 | K150: =IF($T$1=1,IF($F122>=600,600,IF($F122<600,$F122*(1+$J169),$F122-600)),IF($T$1=2,IF($F122>=1000,1000,IF($F122<1000,$F122*(1+$J169),$F122-1000)))) -> 517.5710262 | L150: =K150*J150 -> 40.37054005 | N150: 0.1225400473 | O150: 0.00304462451
B151: Energy - RPP - Tier 2 | D151: per kWh | F151: 0.091 | G151: =IF($T$1=1,IF($F122>=600,$F122*(1+$F169)-600,IF($F122<600,0,)), IF($T$1=2,IF($F122>=1000,$F122*(1+$F169)-1000,IF($F122<1000,0)))) -> 0 | H151: =G151*F151 -> 0 | J151: 0.091 | K151: =IF($T$1=1,IF($F122>=600,$F122*(1+$J169)-600,IF($F122<600,0,)), IF($T$1=2,IF($F122>=1000,$F122*(1+$J169)-1000,IF($F122<1000,0)))) -> 0 | L151: =K151*J151 -> 0 | N151: 0
B152: TOU - Off Peak | D152: per kWh | F152: 0.067 | G152: =0.64*$F122*(1+$F169) -> 330.24 | H152: =G152*F152 -> 22.12608 | J152: 0.067 | K152: =0.64*$F122*(1+$J169) -> 331.2454568 | L152: =K152*J152 -> 22.19344561 | N152: 0.06736560548 | O152: 0.00304462451
B153: TOU - Mid Peak | D153: per kWh | F153: 0.104 | G153: =0.18*$F122*(1+$F169) -> 92.88 | H153: 9.65952 | J153: 0.104 | K153: =0.18*$F122*(1+$J169) -> 93.16278472 | L153: 9.688929611 | N153: 0.02940961135 | O153: 0.00304462451
B154: TOU - On Peak | D154: per kWh | F154: 0.124 | G154: =0.18*$F122*(1+$F169) -> 92.88 | H154: 11.51712 | J154: 0.124 | K154: =0.18*$F122*(1+$J169) -> 93.16278472 | L154: 11.55218531 | N154: 0.03506530584 | O154: 0.00304462451
B156: Total Bill on RPP (before Taxes) | H156: =SUM(H145:H151) -> 71.1772 | L156: =SUM(L145:L151) -> 72.53504862 | N156: =L156-H156 -> 1.35784862 | O156: =IF((H156)=0,"",(N156/H156)) -> 0.01907701652
B157: HST | F157: 0.13 | H157: =H156*F157 -> 9.253036 | J157: 0.13 | L157: =L156*J157 -> 9.429556321 | N157: 0.1765203206 | O157: 0.01907701652
B158: Total Bill (including HST) | H158: =H156+H157 -> 80.430236 | L158: =L156+L157 -> 81.96460494 | N158: 1.534368941 | O158: 0.01907701652
B159: Ontario Clean Energy Benefit 1 | H159: =ROUND(-H158*10%,2) -> -8.04 | L159: =ROUND(-L158*10%,2) -> -8.2 | N159: -0.16 | O159: 0.01990049751
B160: Total Bill on RPP (including OCEB) | H160: =SUM(H158:H159) -> 72.390236 | L160: =SUM(L158:L159) -> 73.76460494 | N160: 1.374368941 | O160: 0.01898555684
B162: Total Bill on TOU (before Taxes) | H162: =SUM(H145:H149,H152:H154) -> 74.23192 | L162: =SUM(L145:L149,L152:L154) -> 75.5990691 | N162: =L162-H162 -> 1.367149095 | O162: =IF((H162)=0,"",(N162/H162)) -> 0.01841726706
B163: HST | F163: 0.13 | H163: =H162*F163 -> 9.6501496 | J163: 0.13 | L163: =L162*J163 -> 9.827878982 | N163: 0.1777293824 | O163: 0.01841726706
B164: Total Bill (including HST) | H164: =H162+H163 -> 83.8820696 | L164: =L162+L163 -> 85.42694808 | N164: 1.544878478 | O164: 0.01841726706
B165: Ontario Clean Energy Benefit 1 | H165: =ROUND(-H164*10%,2) -> -8.39 | L165: =ROUND(-L164*10%,2) -> -8.54 | N165: -0.15 | O165: 0.0178784267
B166: Total Bill on TOU (including OCEB) | H166: =H164+H165 -> 75.4920696 | L166: =L164+L165 -> 76.88694808 | N166: 1.394878478 | O166: 0.01847715244
B169: Loss Factor (%) | F169: =$F$63 -> 0.032 | J169: =+J116 -> 0.03514205249
A171: 1 Applicable to eligible customers only. Refer to the Ontario Clean Energy Benefit Act, 2010.
B173: Customer Class: | D173: Residential
D175: Consumption | F175: 800 | G175: kWh
F177: Current Board-Approved | J177: Proposed | N177: Impact
D178: Charge Unit | F178: Rate | G178: Volume | H178: Charge | J178: Rate | K178: Volume | L178: Charge | N178: $ Change | O178: % Change
F179: ($) | H179: ($) | J179: ($) | L179: ($)
B180: =B21 -> Monthly Service Charge | D180: Monthly | F180: =F21 -> 9.76 | G180: 1 | H180: =G180*F180 -> 9.76 | J180: =J21 -> 12.53 | K180: 1 | L180: =K180*J180 -> 12.53 | N180: =L180-H180 -> 2.77 | O180: =IF((H180)=0,"",(N180/H180)) -> 0.2838114754
B181: =B22 -> Smart Meter Disposition Rate Rider | D181: Monthly | F181: 0.13 | G181: 1 | H181: =G181*F181 -> 0.13 | J181: 0.13 | K181: 1 | L181: =K181*J181 -> 0.13 | N181: =L181-H181 -> 0 | O181: =IF((H181)=0,"",(N181/H181)) -> 0
B182: =B23 -> Smart Meter Incremental Revenue Rate Rider | D182: Monthly | F182: 1.62 | G182: 1 | H182: 1.62 | J182: 0 | K182: 1 | L182: =K182*J182 -> 0 | N182: =L182-H182 -> -1.62 | O182: =IF((H182)=0,"",(N182/H182)) -> -1
B183: =B24 -> Stranded Meter Rate Rider | D183: =D24 -> Monthly | F183: 0 | G183: 1 | H183: 0 | J183: 2.06 | K183: 1 | L183: 2.06 | N183: 2.06
B184: 0 | D184: 0 | F184: 0 | J184: 0
B185: Distribution Volumetric Rate | D185: per kWh | F185: 0.0173 | G185: =$F175 -> 800 | H185: 13.84 | J185: 0.01419 | K185: =$F175 -> 800 | L185: 11.352 | N185: -2.488 | O185: -0.1797687861
B186: LRAM & SSM Rate Rider | D186: per kWh | F186: 0.0003 | G186: =$F175 -> 800 | H186: 0.24 | J186: 0.0003 | K186: =$F175 -> 800 | L186: 0.24 | N186: 0 | O186: 0
B187: Tax Change Rate Rider | D187: per kWh | F187: -0.0004 | G187: =$F175 -> 800 | H187: -0.32 | J187: -0.0004 | K187: =$F175 -> 800 | L187: -0.32 | N187: 0 | O187: 0
B188: =+$B$29 -> 1576 Rate Rider | D188: =+$D$29 -> per kWh | F188: 0 | G188: =$F175 -> 800 | H188: 0 | J188: -0.0013 | K188: =$F175 -> 800 | L188: -1.04 | N188: -1.04
B189: Sub-Total A | H189: =SUM(H180:H188) -> 25.27 | L189: =SUM(L180:L188) -> 24.952 | N189: -0.318 | O189: -0.01258409181
B190: =B31 -> Deferral/Variance Account Disposition Rate Rider | D190: =D31 -> per kWh | F190: =F31 -> 0 | G190: =$F175 -> 800 | H190: =G190*F190 -> 0 | J190: =J31 -> -0.0003 | K190: =$F175 -> 800 | L190: =K190*J190 -> -0.24 | N190: =L190-H190 -> -0.24 | O190: =IF((H190)=0,"",(N190/H190)) -> 
B191: Global Adjustment Rate Rider | D191: per kWh | F191: 0 | G191: =$F175 -> 800 | H191: =G191*F191 -> 0 | J191: 0.0002 | K191: =$F175 -> 800 | L191: =K191*J191 -> 0.16 | N191: =L191-H191 -> 0.16 | O191: =IF((H191)=0,"",(N191/H191)) -> 
B192: 0 | D192: 0 | F192: 0 | G192: =$F175 -> 800 | H192: 0 | J192: 0 | K192: =$F175 -> 800 | L192: 0 | N192: 0
B193: Low Voltage Service Charge | F193: 0 | G193: =$F175 -> 800 | H193: =G193*F193 -> 0 | J193: 0 | K193: =$F175 -> 800 | L193: =K193*J193 -> 0 | N193: =L193-H193 -> 0 | O193: =IF((H193)=0,"",(N193/H193)) -> 
B194: Smart Meter Entity Charge | D194: Monthly | F194: 0.79 | G194: 1 | H194: =G194*F194 -> 0.79 | J194: 0.79 | K194: 1 | L194: =K194*J194 -> 0.79 | N194: =L194-H194 -> 0
B195: Sub-Total B - Distribution (includes Sub-Total A) | H195: =SUM(H190:H193)+H189 -> 25.27 | L195: =SUM(L190:L193)+L189 -> 24.872 | N195: =L195-H195 -> -0.398 | O195: =IF((H195)=0,"",(N195/H195)) -> -0.01574990107
B196: RTSR - Network | D196: per kWh | F196: =F37 -> 0.0067 | G196: =F175*(1+F222) -> 825.6 | H196: =G196*F196 -> 5.53152 | J196: =J37 -> 0.0072 | K196: =F175*(1+J222) -> 828.113642 | L196: =K196*J196 -> 5.962418222 | N196: 0.4308982224 | O196: 0.07789870097
B197: RTSR - Line and Transformation Connection | D197: per kWh | F197: 0.0014 | G197: =G196 -> 825.6 | H197: =G197*F197 -> 1.15584 | J197: 0.0014 | K197: =K196 -> 828.113642 | L197: =K197*J197 -> 1.159359099 | N197: 0.003519098794 | O197: 0.00304462451
B198: Sub-Total C - Delivery (including Sub-Total B) | H198: =SUM(H195:H197) -> 31.95736 | L198: =SUM(L195:L197) -> 31.99377732 | N198: 0.03641732116 | O198: 0.00113955975
B199: Wholesale Market Service Charge (WMSC) | D199: per kWh | F199: =F40 -> 0.0044 | G199: =G197 -> 825.6 | H199: =G199*F199 -> 3.63264 | J199: =J40 -> 0.0044 | K199: =K197 -> 828.113642 | L199: =K199*J199 -> 3.643700025 | N199: 0.01106002478 | O199: 0.00304462451
B200: Rural and Remote Rate Protection (RRRP) | D200: per kWh | F200: 0.0012 | G200: =G197 -> 825.6 | H200: 0.99072 | J200: 0.0012 | K200: =K197 -> 828.113642 | L200: 0.9937363704 | N200: 0.003016370395 | O200: 0.00304462451
B201: Standard Supply Service Charge | D201: Monthly | F201: 0.25 | G201: 1 | H201: 0.25 | J201: 0.25 | K201: 1 | L201: 0.25 | N201: 0 | O201: 0
B202: Debt Retirement Charge (DRC) | D202: per kWh | F202: 0.007 | G202: =+F175 -> 800 | H202: 5.6 | J202: 0.007 | K202: =+F175 -> 800 | L202: 5.6 | N202: 0 | O202: 0
B203: Energy - RPP - Tier 1 | D203: per kWh | F203: 0.078 | G203: =IF($T$1=1,IF($F175>=600,600,IF($F175<600,$F175*(1+$F222),$F175-600)),IF($T$1=2,IF($F175>=1000,1000,IF($F175<1000,$F175*(1+$F222),$F175-1000)))) -> 600 | H203: =G203*F203 -> 46.8 | J203: 0.078 | K203: =IF($T$1=1,IF($F175>=600,600,IF($F175<600,$F175*(1+$J222),$F175-600)),IF($T$1=2,IF($F175>=1000,1000,IF($F175<1000,$F175*(1+$J222),$F175-1000)))) -> 600 | L203: =K203*J203 -> 46.8 | N203: 0 | O203: 0
B204: Energy - RPP - Tier 2 | D204: per kWh | F204: 0.091 | G204: =IF($T$1=1,IF($F175>=600,$F175*(1+$F222)-600,IF($F175<600,0,)), IF($T$1=2,IF($F175>=1000,$F175*(1+$F222)-1000,IF($F175<1000,0)))) -> 225.6 | H204: =G204*F204 -> 20.5296 | J204: 0.091 | K204: =IF($T$1=1,IF($F175>=600,$F175*(1+$J222)-600,IF($F175<600,0,)), IF($T$1=2,IF($F175>=1000,$F175*(1+$J222)-1000,IF($F175<1000,0)))) -> 228.113642 | L204: =K204*J204 -> 20.75834142 | N204: 0.2287414216 | O204: 0.01114203012
B205: TOU - Off Peak | D205: per kWh | F205: 0.067 | G205: =0.64*$F175*(1+$F222) -> 528.384 | H205: =G205*F205 -> 35.401728 | J205: 0.067 | K205: =0.64*$F175*(1+$J222) -> 529.9927309 | L205: =K205*J205 -> 35.50951297 | N205: 0.1077849688 | O205: 0.00304462451
B206: TOU - Mid Peak | D206: per kWh | F206: 0.104 | G206: =0.18*$F175*(1+$F222) -> 148.608 | H206: 15.455232 | J206: 0.104 | K206: =0.18*$F175*(1+$J222) -> 149.0604556 | L206: 15.50228738 | N206: 0.04705537816 | O206: 0.00304462451
B207: TOU - On Peak | D207: per kWh | F207: 0.124 | G207: =0.18*$F175*(1+$F222) -> 148.608 | H207: 18.427392 | J207: 0.124 | K207: =0.18*$F175*(1+$J222) -> 149.0604556 | L207: 18.48349649 | N207: 0.05610448934 | O207: 0.00304462451
B209: Total Bill on RPP (before Taxes) | H209: =SUM(H198:H204) -> 109.76032 | L209: =SUM(L198:L204) -> 110.0395551 | N209: =L209-H209 -> 0.2792351379 | O209: =IF((H209)=0,"",(N209/H209)) -> 0.002544044496
B210: HST | F210: 0.13 | H210: =H209*F210 -> 14.2688416 | J210: 0.13 | L210: =L209*J210 -> 14.30514217 | N210: 0.03630056793 | O210: 0.002544044496
B211: Total Bill (including HST) | H211: =H209+H210 -> 124.0291616 | L211: =L209+L210 -> 124.3446973 | N211: 0.3155357059 | O211: 0.002544044496
B212: Ontario Clean Energy Benefit 1 | H212: =ROUND(-H211*10%,2) -> -12.4 | L212: =ROUND(-L211*10%,2) -> -12.43 | N212: -0.03 | O212: 0.002419354839
B213: Total Bill on RPP (including OCEB) | H213: =SUM(H211:H212) -> 111.6291616 | L213: =SUM(L211:L212) -> 111.9146973 | N213: 0.2855357059 | O213: 0.002557895283
B215: Total Bill on TOU (before Taxes) | H215: =SUM(H198:H202,H205:H207) -> 111.715072 | L215: =SUM(L198:L202,L205:L207) -> 111.9765106 | N215: =L215-H215 -> 0.2614385526 | O215: =IF((H215)=0,"",(N215/H215)) -> 0.002340226327
B216: HST | F216: 0.13 | H216: =H215*F216 -> 14.52295936 | J216: 0.13 | L216: =L215*J216 -> 14.55694637 | N216: 0.03398701184 | O216: 0.002340226327
B217: Total Bill (including HST) | H217: =H215+H216 -> 126.2380314 | L217: =L215+L216 -> 126.5334569 | N217: 0.2954255644 | O217: 0.002340226327
B218: Ontario Clean Energy Benefit 1 | H218: =ROUND(-H217*10%,2) -> -12.62 | L218: =ROUND(-L217*10%,2) -> -12.65 | N218: -0.03 | O218: 0.002377179081
B219: Total Bill on TOU (including OCEB) | H219: =H217+H218 -> 113.6180314 | L219: =L217+L218 -> 113.8834569 | N219: 0.2654255644 | O219: 0.00233612184
B222: Loss Factor (%) | F222: =+F169 -> 0.032 | J222: =+J169 -> 0.03514205249
A224: 1 Applicable to eligible customers only. Refer to the Ontario Clean Energy Benefit Act, 2010.
B226: Customer Class: | D226: Residential
D228: Consumption | F228: 1000 | G228: kWh
F230: Current Board-Approved | J230: Proposed | N230: Impact
D231: Charge Unit | F231: Rate | G231: Volume | H231: Charge | J231: Rate | K231: Volume | L231: Charge | N231: $ Change | O231: % Change
F232: ($) | H232: ($) | J232: ($) | L232: ($)
B233: =B21 -> Monthly Service Charge | D233: Monthly | F233: =F21 -> 9.76 | G233: 1 | H233: =G233*F233 -> 9.76 | J233: =J21 -> 12.53 | K233: 1 | L233: =K233*J233 -> 12.53 | N233: =L233-H233 -> 2.77 | O233: =IF((H233)=0,"",(N233/H233)) -> 0.2838114754
B234: =B22 -> Smart Meter Disposition Rate Rider | D234: Monthly | F234: 0.13 | G234: 1 | H234: =G234*F234 -> 0.13 | J234: 0.13 | K234: 1 | L234: =K234*J234 -> 0.13 | N234: =L234-H234 -> 0 | O234: =IF((H234)=0,"",(N234/H234)) -> 0
B235: =B23 -> Smart Meter Incremental Revenue Rate Rider | D235: Monthly | F235: 1.62 | G235: 1 | H235: 1.62 | J235: 0 | K235: 1 | L235: =K235*J235 -> 0 | N235: =L235-H235 -> -1.62 | O235: =IF((H235)=0,"",(N235/H235)) -> -1
B236: =B24 -> Stranded Meter Rate Rider | D236: =D24 -> Monthly | F236: 0 | G236: 1 | H236: 0 | J236: 2.06 | K236: 1 | L236: 2.06 | N236: 2.06
B237: 0 | D237: 0 | F237: 0 | J237: 0
B238: Distribution Volumetric Rate | D238: per kWh | F238: 0.0173 | G238: =$F228 -> 1000 | H238: 17.3 | J238: 0.01419 | K238: =$F228 -> 1000 | L238: 14.19 | N238: -3.11 | O238: -0.1797687861
B239: LRAM & SSM Rate Rider | D239: per kWh | F239: 0.0003 | G239: =$F228 -> 1000 | H239: 0.3 | J239: 0.0003 | K239: =$F228 -> 1000 | L239: 0.3 | N239: 0 | O239: 0
B240: Tax Change Rate Rider | D240: per kWh | F240: -0.0004 | G240: =$F228 -> 1000 | H240: -0.4 | J240: -0.0004 | K240: =$F228 -> 1000 | L240: -0.4 | N240: 0 | O240: 0
... 131 more rows

Sheet App.2-W_Impacts-GS Less
N1: File Number: | O1: ='LDC Info'!$E$18 -> EB-2013-0147 | T1: 1
N2: Exhibit: | O2: 8
N3: Tab:
N4: Schedule:
N5: Page:
N7: Date:
B10: Appendix 2-W
B11: Bill Impacts
B14: Customer Class: | D14: GS<50kW
D16: Consumption | F16: 1000 | G16: kWh
F18: Current Board-Approved | J18: Proposed | N18: Impact
D19: Charge Unit | F19: Rate | G19: Volume | H19: Charge | J19: Rate | K19: Volume | L19: Charge | N19: $ Change | O19: % Change
F20: ($) | H20: ($) | J20: ($) | L20: ($)
B21: Monthly Service Charge | D21: Monthly | F21: 25.71 | G21: 1 | H21: =G21*F21 -> 25.71 | J21: =+'App.2-V_Rev_Reconciliation'!H17 -> 25.71 | K21: 1 | L21: =K21*J21 -> 25.71 | N21: =L21-H21 -> 0 | O21: =IF((H21)=0,"",(N21/H21)) -> 0
B22: Smart Meter Disposition Rate Rider | D22: Monthly | F22: 8.42 | G22: 1 | H22: =G22*F22 -> 8.42 | J22: 8.42 | K22: 1 | L22: =K22*J22 -> 8.42 | N22: =L22-H22 -> 0 | O22: =IF((H22)=0,"",(N22/H22)) -> 0
B23: Smart Meter Incremental Revenue Rate Rider | D23: Monthly | F23: 5.55 | G23: 1 | H23: 5.55 | J23: 0 | K23: 1 | L23: =K23*J23 -> 0 | N23: =L23-H23 -> -5.55 | O23: =IF((H23)=0,"",(N23/H23)) -> -1
B24: Stranded Meter Rate Rider | D24: Monthly | F24: 0 | G24: 1 | H24: 0 | J24: 8.42 | K24: 1 | L24: 8.42 | N24: 8.42
B26: Distribution Volumetric Rate | D26: per kWh | F26: 0.0124 | G26: =$F16 -> 1000 | H26: =G26*F26 -> 12.4 | J26: =+'App.2-V_Rev_Reconciliation'!I17 -> 0.0102443 | K26: =$F16 -> 1000 | L26: =K26*J26 -> 10.2443 | N26: =L26-H26 -> -2.1557 | O26: =IF((H26)=0,"",(N26/H26)) -> -0.1738467742
B27: LRAM & SSM Rate Rider | D27: per kWh | F27: 0.0001 | G27: =$F16 -> 1000 | H27: 0.1 | J27: 0.0001 | K27: =$F16 -> 1000 | L27: 0.1 | N27: 0 | O27: 0
B28: Tax Change Rate Rider | D28: per kWh | F28: -0.0003 | G28: =$F16 -> 1000 | H28: -0.3 | J28: -0.0003 | K28: =$F16 -> 1000 | L28: -0.3 | N28: 0 | O28: 0
B29: 1576 Rate Rider | D29: per kWh | F29: 0 | G29: =$F16 -> 1000 | H29: 0 | J29: -0.001 | K29: =$F16 -> 1000 | L29: -1 | N29: -1
B30: Sub-Total A | H30: =SUM(H21:H29) -> 51.88 | L30: =SUM(L21:L29) -> 51.5943 | N30: -0.2857 | O30: -0.00550693909
B31: Deferral/Variance Account Disposition Rate Rider | D31: per kWh | F31: 0 | G31: =$F16 -> 1000 | H31: =G31*F31 -> 0 | J31: 0.0001 | K31: =$F16 -> 1000 | L31: =K31*J31 -> 0.1 | N31: =L31-H31 -> 0.1 | O31: =IF((H31)=0,"",(N31/H31)) -> 
B32: Global Adjustment Rate Rider | D32: per kWh | F32: 0 | G32: =$F16 -> 1000 | H32: =G32*F32 -> 0 | J32: 0.0005 | K32: =$F16 -> 1000 | L32: =K32*J32 -> 0.5 | N32: =L32-H32 -> 0.5 | O32: =IF((H32)=0,"",(N32/H32)) -> 
G33: =$F16 -> 1000 | H33: 0 | K33: =$F16 -> 1000 | L33: 0 | N33: 0
B34: Low Voltage Service Charge | G34: =$F16 -> 1000 | H34: =G34*F34 -> 0 | K34: =$F16 -> 1000 | L34: =K34*J34 -> 0 | N34: =L34-H34 -> 0 | O34: =IF((H34)=0,"",(N34/H34)) -> 
B35: Smart Meter Entity Charge | D35: Monthly | F35: 0.79 | G35: 1 | H35: =G35*F35 -> 0.79 | J35: 0.79 | K35: 1 | L35: =K35*J35 -> 0.79 | N35: =L35-H35 -> 0
B36: Sub-Total B - Distribution (includes Sub-Total A) | H36: =SUM(H31:H34)+H30 -> 51.88 | L36: =SUM(L31:L34)+L30 -> 52.1943 | N36: =L36-H36 -> 0.3143 | O36: =IF((H36)=0,"",(N36/H36)) -> 0.006058211257
B37: RTSR - Network | D37: per kWh | F37: 0.0058 | G37: =F16*(1+F63) -> 1032 | H37: =G37*F37 -> 5.9856 | J37: 0.0062 | K37: =F16*(1+J63) -> 1035.142052 | L37: =K37*J37 -> 6.417880725 | N37: 0.4322807255 | O37: 0.07222011586
B38: RTSR - Line and Transformation Connection | D38: per kWh | F38: 0.0013 | G38: =G37 -> 1032 | H38: =G38*F38 -> 1.3416 | J38: 0.0013 | K38: =K37 -> 1035.142052 | L38: =K38*J38 -> 1.345684668 | N38: 0.004084668243 | O38: 0.00304462451
B39: Sub-Total C - Delivery (including Sub-Total B) | H39: =SUM(H36:H38) -> 59.2072 | L39: =SUM(L36:L38) -> 59.95786539 | N39: 0.7506653937 | O39: 0.01267861668
B40: Wholesale Market Service Charge (WMSC) | D40: per kWh | F40: 0.0044 | G40: =G38 -> 1032 | H40: =G40*F40 -> 4.5408 | J40: 0.0044 | K40: =K38 -> 1035.142052 | L40: =K40*J40 -> 4.554625031 | N40: 0.01382503098 | O40: 0.00304462451
B41: Rural and Remote Rate Protection (RRRP) | D41: per kWh | F41: 0.0012 | G41: =G38 -> 1032 | H41: 1.2384 | J41: 0.0012 | K41: =K38 -> 1035.142052 | L41: 1.242170463 | N41: 0.003770462993 | O41: 0.00304462451
B42: Standard Supply Service Charge | D42: Monthly | F42: 0.25 | G42: 1 | H42: 0.25 | J42: 0.25 | K42: 1 | L42: 0.25 | N42: 0 | O42: 0
B43: Debt Retirement Charge (DRC) | D43: per kWh | F43: 0.007 | G43: =+F16 -> 1000 | H43: 7 | J43: 0.007 | K43: =K41 -> 1035.142052 | L43: 7.245994367 | N43: 0.2459943675 | O43: 0.03514205249
B44: Energy - RPP - Tier 1 | D44: per kWh | F44: ='App.2-W_Impacts-Res'!F44 -> 0.078 | G44: =IF($T$1=1,IF($F16>=600,600,IF($F16<600,$F16*(1+$F63),$F16-600)),IF($T$1=2,IF($F16>=1000,1000,IF($F16<1000,$F16*(1+$F63),$F16-1000)))) -> 600 | H44: =G44*F44 -> 46.8 | J44: ='App.2-W_Impacts-Res'!J44 -> 0.078 | K44: =IF($T$1=1,IF($F16>=600,600,IF($F16<600,$F16*(1+$J63),$F16-600)),IF($T$1=2,IF($F16>=1000,1000,IF($F16<1000,$F16*(1+$J63),$F16-1000)))) -> 600 | L44: =K44*J44 -> 46.8 | N44: 0 | O44: 0
B45: Energy - RPP - Tier 2 | D45: per kWh | F45: ='App.2-W_Impacts-Res'!F45 -> 0.091 | G45: =IF($T$1=1,IF($F16>=600,$F16*(1+$F63)-600,IF($F16<600,0,)), IF($T$1=2,IF($F16>=1000,$F16*(1+$F63)-1000,IF($F16<1000,0)))) -> 432 | H45: =G45*F45 -> 39.312 | J45: ='App.2-W_Impacts-Res'!J45 -> 0.091 | K45: =IF($T$1=1,IF($F16>=600,$F16*(1+$J63)-600,IF($F16<600,0,)), IF($T$1=2,IF($F16>=1000,$F16*(1+$J63)-1000,IF($F16<1000,0)))) -> 435.1420525 | L45: =K45*J45 -> 39.59792678 | N45: 0.285926777 | O45: 0.007273269663
B46: TOU - Off Peak | D46: per kWh | F46: ='App.2-W_Impacts-Res'!F46 -> 0.067 | G46: =0.64*$F16*(1+$F63) -> 660.48 | H46: =G46*F46 -> 44.25216 | J46: ='App.2-W_Impacts-Res'!J46 -> 0.067 | K46: =0.64*$F16*(1+$J63) -> 662.4909136 | L46: =K46*J46 -> 44.38689121 | N46: 0.134731211 | O46: 0.00304462451
B47: TOU - Mid Peak | D47: per kWh | F47: ='App.2-W_Impacts-Res'!F47 -> 0.104 | G47: =0.18*$F16*(1+$F63) -> 185.76 | H47: 19.31904 | J47: ='App.2-W_Impacts-Res'!J47 -> 0.104 | K47: =0.18*$F16*(1+$J63) -> 186.3255694 | L47: 19.37785922 | N47: 0.0588192227 | O47: 0.00304462451
B48: TOU - On Peak | D48: per kWh | F48: ='App.2-W_Impacts-Res'!F48 -> 0.124 | G48: =0.18*$F16*(1+$F63) -> 185.76 | H48: 23.03424 | J48: ='App.2-W_Impacts-Res'!J48 -> 0.124 | K48: =0.18*$F16*(1+$J63) -> 186.3255694 | L48: 23.10437061 | N48: 0.07013061168 | O48: 0.00304462451
B50: Total Bill on RPP (before Taxes) | H50: =SUM(H39:H45) -> 158.3484 | L50: =SUM(L39:L45) -> 159.648582 | N50: =L50-H50 -> 1.300182032 | O50: =IF((H50)=0,"",(N50/H50)) -> 0.008210894661
B51: HST | F51: 0.13 | H51: =H50*F51 -> 20.585292 | J51: 0.13 | L51: =L50*J51 -> 20.75431566 | N51: 0.1690236642 | O51: 0.008210894661
B52: Total Bill (including HST) | H52: =H50+H51 -> 178.933692 | L52: =L50+L51 -> 180.4028977 | N52: 1.469205696 | O52: 0.008210894661
B53: Ontario Clean Energy Benefit 1 | H53: =ROUND(-H52*10%,2) -> -17.89 | L53: =ROUND(-L52*10%,2) -> -18.04 | N53: -0.15 | O53: 0.008384572387
B54: Total Bill on RPP (including OCEB) | H54: =SUM(H52:H53) -> 161.043692 | L54: =SUM(L52:L53) -> 162.3628977 | N54: 1.319205696 | O54: 0.008191601173
B56: Total Bill on TOU (before Taxes) | H56: =SUM(H39:H43,H46:H48) -> 158.84184 | L56: =SUM(L39:L43,L46:L48) -> 160.1197763 | N56: =L56-H56 -> 1.2779363 | O56: =IF((H56)=0,"",(N56/H56)) -> 0.008045338057
B57: HST | F57: 0.13 | H57: =H56*F57 -> 20.6494392 | J57: 0.13 | L57: =L56*J57 -> 20.81557092 | N57: 0.1661317191 | O57: 0.008045338057
B58: Total Bill (including HST) | H58: =H56+H57 -> 179.4912792 | L58: =L56+L57 -> 180.9353472 | N58: 1.44406802 | O58: 0.008045338057
B59: Ontario Clean Energy Benefit 1 | H59: =ROUND(-H58*10%,2) -> -17.95 | L59: =ROUND(-L58*10%,2) -> -18.09 | N59: -0.14 | O59: 0.007799442897
B60: Total Bill on TOU (including OCEB) | H60: =H58+H59 -> 161.5412792 | L60: =L58+L59 -> 162.8453472 | N60: 1.30406802 | O60: 0.008072661217
B63: Loss Factor (%) | F63: ='App.2-W_Impacts-Res'!$F$63 -> 0.032 | J63: ='App.2-W_Impacts-Res'!$J$63 -> 0.03514205249
A65: 1 Applicable to eligible customers only. Refer to the Ontario Clean Energy Benefit Act, 2010.
B67: Customer Class: | D67: GS<50kW
D69: Consumption | F69: 2000 | G69: kWh
F71: Current Board-Approved | J71: Proposed | N71: Impact
D72: Charge Unit | F72: Rate | G72: Volume | H72: Charge | J72: Rate | K72: Volume | L72: Charge | N72: $ Change | O72: % Change
F73: ($) | H73: ($) | J73: ($) | L73: ($)
B74: =B21 -> Monthly Service Charge | D74: =D21 -> Monthly | F74: =F21 -> 25.71 | G74: 1 | H74: =G74*F74 -> 25.71 | J74: =J21 -> 25.71 | K74: 1 | L74: =K74*J74 -> 25.71 | N74: =L74-H74 -> 0 | O74: =IF((H74)=0,"",(N74/H74)) -> 0
B75: Smart Meter Disposition Rate Rider | D75: Monthly | F75: 8.42 | G75: 1 | H75: =G75*F75 -> 8.42 | J75: 8.42 | K75: 1 | L75: =K75*J75 -> 8.42 | N75: =L75-H75 -> 0 | O75: =IF((H75)=0,"",(N75/H75)) -> 0
B76: Smart Meter Incremental Revenue Rate Rider | D76: Monthly | F76: 5.55 | G76: 1 | H76: 5.55 | J76: 0 | K76: 1 | L76: =K76*J76 -> 0 | N76: =L76-H76 -> -5.55 | O76: =IF((H76)=0,"",(N76/H76)) -> -1
B77: Stranded Meter Rate Rider | C77: =C24 -> 0 | D77: Monthly | F77: 0 | G77: 1 | H77: 0 | J77: 8.42 | K77: 1 | L77: 8.42 | N77: 8.42
B78: 0 | C78: 0 | D78: 0 | F78: 0 | J78: 0
B79: Distribution Volumetric Rate | D79: per kWh | F79: 0.0124 | G79: =$F69 -> 2000 | H79: =G79*F79 -> 24.8 | J79: 0.0102443 | K79: =$F69 -> 2000 | L79: =K79*J79 -> 20.4886 | N79: =L79-H79 -> -4.3114 | O79: =IF((H79)=0,"",(N79/H79)) -> -0.1738467742
B80: LRAM & SSM Rate Rider | D80: per kWh | F80: 0.0001 | G80: =$F69 -> 2000 | H80: 0.2 | J80: 0.0001 | K80: =$F69 -> 2000 | L80: 0.2 | N80: 0 | O80: 0
B81: Tax Change Rate Rider | D81: per kWh | F81: -0.0003 | G81: =$F69 -> 2000 | H81: -0.6 | J81: -0.0003 | K81: =$F69 -> 2000 | L81: -0.6 | N81: 0 | O81: 0
B82: 1576 Rate Rider | D82: per kWh | F82: 0 | G82: =$F69 -> 2000 | H82: 0 | J82: -0.001 | K82: =$F69 -> 2000 | L82: -2 | N82: -2
B83: Sub-Total A | H83: =SUM(H74:H82) -> 64.08 | L83: =SUM(L74:L82) -> 60.6386 | N83: -3.4414 | O83: -0.05370474407
B84: =B31 -> Deferral/Variance Account Disposition Rate Rider | C84: =C31 -> 0 | D84: =D31 -> per kWh | F84: =F31 -> 0 | G84: =$F69 -> 2000 | H84: =G84*F84 -> 0 | J84: =J31 -> 0.0001 | K84: =$F69 -> 2000 | L84: =K84*J84 -> 0.2 | N84: =L84-H84 -> 0.2 | O84: =IF((H84)=0,"",(N84/H84)) -> 
B85: Global Adjustment Rate Rider | C85: 0 | D85: per kWh | F85: 0 | G85: =$F69 -> 2000 | H85: =G85*F85 -> 0 | J85: 0.0005 | K85: =$F69 -> 2000 | L85: =K85*J85 -> 1 | N85: =L85-H85 -> 1 | O85: =IF((H85)=0,"",(N85/H85)) -> 
B86: 0 | C86: 0 | D86: 0 | F86: 0 | G86: =$F69 -> 2000 | H86: 0 | J86: 0 | K86: =$F69 -> 2000 | L86: 0 | N86: 0
B87: Low Voltage Service Charge | D87: 0 | F87: 0 | G87: =$F69 -> 2000 | H87: =G87*F87 -> 0 | J87: 0 | K87: =$F69 -> 2000 | L87: =K87*J87 -> 0 | N87: =L87-H87 -> 0 | O87: =IF((H87)=0,"",(N87/H87)) -> 
B88: Smart Meter Entity Charge | D88: Monthly | F88: 0.79 | G88: 1 | H88: =G88*F88 -> 0.79 | J88: 0.79 | K88: 1 | L88: =K88*J88 -> 0.79 | N88: =L88-H88 -> 0
B89: Sub-Total B - Distribution (includes Sub-Total A) | H89: =SUM(H84:H87)+H83 -> 64.08 | L89: =SUM(L84:L87)+L83 -> 61.8386 | N89: =L89-H89 -> -2.2414 | O89: =IF((H89)=0,"",(N89/H89)) -> -0.03497815231
B90: RTSR - Network | D90: per kWh | F90: =F37 -> 0.0058 | G90: =F69*(1+F116) -> 2064 | H90: =G90*F90 -> 11.9712 | J90: =J37 -> 0.0062 | K90: =F69*(1+J116) -> 2070.284105 | L90: =K90*J90 -> 12.83576145 | N90: 0.8645614509 | O90: 0.07222011586
B91: RTSR - Line and Transformation Connection | D91: per kWh | F91: 0.0013 | G91: =G90 -> 2064 | H91: =G91*F91 -> 2.6832 | J91: 0.0013 | K91: =K90 -> 2070.284105 | L91: =K91*J91 -> 2.691369336 | N91: 0.008169336486 | O91: 0.00304462451
B92: Sub-Total C - Delivery (including Sub-Total B) | H92: =SUM(H89:H91) -> 78.7344 | L92: =SUM(L89:L91) -> 77.36573079 | N92: -1.368669213 | O92: -0.01738337007
B93: Wholesale Market Service Charge (WMSC) | D93: per kWh | F93: =F40 -> 0.0044 | G93: =G91 -> 2064 | H93: =G93*F93 -> 9.0816 | J93: =J40 -> 0.0044 | K93: =K91 -> 2070.284105 | L93: =K93*J93 -> 9.109250062 | N93: 0.02765006195 | O93: 0.00304462451
B94: Rural and Remote Rate Protection (RRRP) | D94: per kWh | F94: 0.0012 | G94: =G91 -> 2064 | H94: 2.4768 | J94: 0.0012 | K94: =K91 -> 2070.284105 | L94: 2.484340926 | N94: 0.007540925987 | O94: 0.00304462451
B95: Standard Supply Service Charge | D95: Monthly | F95: 0.25 | G95: 1 | H95: 0.25 | J95: 0.25 | K95: 1 | L95: 0.25 | N95: 0 | O95: 0
B96: Debt Retirement Charge (DRC) | D96: per kWh | F96: 0.007 | G96: =+F69 -> 2000 | H96: 14 | J96: 0.007 | K96: =K94 -> 2070.284105 | L96: 14.49198873 | N96: 0.4919887349 | O96: 0.03514205249
B97: Energy - RPP - Tier 1 | D97: per kWh | F97: 0.078 | G97: =IF($T$1=1,IF($F69>=600,600,IF($F69<600,$F69*(1+$F116),$F69-600)),IF($T$1=2,IF($F69>=1000,1000,IF($F69<1000,$F69*(1+$F116),$F69-1000)))) -> 600 | H97: =G97*F97 -> 46.8 | J97: 0.078 | K97: =IF($T$1=1,IF($F69>=600,600,IF($F69<600,$F69*(1+$J116),$F69-600)),IF($T$1=2,IF($F69>=1000,1000,IF($F69<1000,$F69*(1+$J116),$F69-1000)))) -> 600 | L97: =K97*J97 -> 46.8 | N97: 0 | O97: 0
B98: Energy - RPP - Tier 2 | D98: per kWh | F98: 0.091 | G98: =IF($T$1=1,IF($F69>=600,$F69*(1+$F116)-600,IF($F69<600,0,)), IF($T$1=2,IF($F69>=1000,$F69*(1+$F116)-1000,IF($F69<1000,0)))) -> 1464 | H98: =G98*F98 -> 133.224 | J98: 0.091 | K98: =IF($T$1=1,IF($F69>=600,$F69*(1+$J116)-600,IF($F69<600,0,)), IF($T$1=2,IF($F69>=1000,$F69*(1+$J116)-1000,IF($F69<1000,0)))) -> 1470.284105 | L98: =K98*J98 -> 133.7958536 | N98: 0.571853554 | O98: 0.004292421441
B99: TOU - Off Peak | D99: per kWh | F99: 0.067 | G99: =0.64*$F69*(1+$F116) -> 1320.96 | H99: =G99*F99 -> 88.50432 | J99: 0.067 | K99: =0.64*$F69*(1+$J116) -> 1324.981827 | L99: =K99*J99 -> 88.77378242 | N99: 0.2694624219 | O99: 0.00304462451
B100: TOU - Mid Peak | D100: per kWh | F100: 0.104 | G100: =0.18*$F69*(1+$F116) -> 371.52 | H100: 38.63808 | J100: 0.104 | K100: =0.18*$F69*(1+$J116) -> 372.6511389 | L100: 38.75571845 | N100: 0.1176384454 | O100: 0.00304462451
B101: TOU - On Peak | D101: per kWh | F101: 0.124 | G101: =0.18*$F69*(1+$F116) -> 371.52 | H101: 46.06848 | J101: 0.124 | K101: =0.18*$F69*(1+$J116) -> 372.6511389 | L101: 46.20874122 | N101: 0.1402612234 | O101: 0.00304462451
B103: Total Bill on RPP (before Taxes) | H103: =SUM(H92:H98) -> 284.5668 | L103: =SUM(L92:L98) -> 284.2971641 | N103: =L103-H103 -> -0.2696359357 | O103: =IF((H103)=0,"",(N103/H103)) -> -0.0009475312501
B104: HST | F104: 0.13 | H104: =H103*F104 -> 36.993684 | J104: 0.13 | L104: =L103*J104 -> 36.95863133 | N104: -0.03505267164 | O104: -0.0009475312501
B105: Total Bill (including HST) | H105: =H103+H104 -> 321.560484 | L105: =L103+L104 -> 321.2557954 | N105: -0.3046886074 | O105: -0.0009475312501
B106: Ontario Clean Energy Benefit 1 | H106: =ROUND(-H105*10%,2) -> -32.16 | L106: =ROUND(-L105*10%,2) -> -32.13 | N106: 0.03 | O106: -0.0009328358209
B107: Total Bill on RPP (including OCEB) | H107: =SUM(H105:H106) -> 289.400484 | L107: =SUM(L105:L106) -> 289.1257954 | N107: -0.2746886074 | O107: -0.0009491642985
B109: Total Bill on TOU (before Taxes) | H109: =SUM(H92:H96,H99:H101) -> 277.75368 | L109: =SUM(L92:L96,L99:L101) -> 277.4395526 | N109: =L109-H109 -> -0.3141273991 | O109: =IF((H109)=0,"",(N109/H109)) -> -0.001130956749
B110: HST | F110: 0.13 | H110: =H109*F110 -> 36.1079784 | J110: 0.13 | L110: =L109*J110 -> 36.06714184 | N110: -0.04083656188 | O110: -0.001130956749
B111: Total Bill (including HST) | H111: =H109+H110 -> 313.8616584 | L111: =L109+L110 -> 313.5066944 | N111: -0.3549639609 | O111: -0.001130956749
B112: Ontario Clean Energy Benefit 1 | H112: =ROUND(-H111*10%,2) -> -31.39 | L112: =ROUND(-L111*10%,2) -> -31.35 | N112: 0.04 | O112: -0.001274291176
B113: Total Bill on TOU (including OCEB) | H113: =H111+H112 -> 282.4716584 | L113: =L111+L112 -> 282.1566944 | N113: -0.3149639609 | O113: -0.00111502854
B116: Loss Factor (%) | F116: =+F63 -> 0.032 | J116: =+J63 -> 0.03514205249
A118: 1 Applicable to eligible customers only. Refer to the Ontario Clean Energy Benefit Act, 2010.
B120: Customer Class: | D120: GS<50kW
D122: Consumption | F122: 5000 | G122: kWh
F124: Current Board-Approved | J124: Proposed | N124: Impact
D125: Charge Unit | F125: Rate | G125: Volume | H125: Charge | J125: Rate | K125: Volume | L125: Charge | N125: $ Change | O125: % Change
F126: ($) | H126: ($) | J126: ($) | L126: ($)
B127: =B21 -> Monthly Service Charge | D127: =D21 -> Monthly | F127: =F74 -> 25.71 | G127: 1 | H127: =G127*F127 -> 25.71 | J127: =J74 -> 25.71 | K127: 1 | L127: =K127*J127 -> 25.71 | N127: =L127-H127 -> 0 | O127: =IF((H127)=0,"",(N127/H127)) -> 0
B128: Smart Meter Disposition Rate Rider | D128: Monthly | F128: 8.42 | G128: 1 | H128: =G128*F128 -> 8.42 | J128: 8.42 | K128: 1 | L128: =K128*J128 -> 8.42 | N128: =L128-H128 -> 0 | O128: =IF((H128)=0,"",(N128/H128)) -> 0
B129: Smart Meter Incremental Revenue Rate Rider | D129: Monthly | F129: 5.55 | G129: 1 | H129: 5.55 | J129: 0 | K129: 1 | L129: =K129*J129 -> 0 | N129: =L129-H129 -> -5.55 | O129: =IF((H129)=0,"",(N129/H129)) -> -1
B130: Stranded Meter Rate Rider | C130: =C24 -> 0 | D130: Monthly | F130: 0 | G130: 1 | H130: 0 | J130: 8.42 | K130: 1 | L130: 8.42 | N130: 8.42
B131: 0 | C131: 0 | D131: 0 | F131: 0 | J131: 0
B132: Distribution Volumetric Rate | D132: per kWh | F132: 0.0124 | G132: =$F122 -> 5000 | H132: =G132*F132 -> 62 | J132: 0.0102443 | K132: =$F122 -> 5000 | L132: =K132*J132 -> 51.2215 | N132: =L132-H132 -> -10.7785 | O132: =IF((H132)=0,"",(N132/H132)) -> -0.1738467742
B133: LRAM & SSM Rate Rider | D133: per kWh | F133: 0.0001 | G133: =$F122 -> 5000 | H133: 0.5 | J133: 0.0001 | K133: =$F122 -> 5000 | L133: 0.5 | N133: 0 | O133: 0
B134: Tax Change Rate Rider | D134: per kWh | F134: -0.0003 | G134: =$F122 -> 5000 | H134: -1.5 | J134: -0.0003 | K134: =$F122 -> 5000 | L134: -1.5 | N134: 0 | O134: 0
B135: 1576 Rate Rider | D135: per kWh | F135: 0 | G135: =$F122 -> 5000 | H135: 0 | J135: -0.001 | K135: =$F122 -> 5000 | L135: -5 | N135: -5
B136: Sub-Total A | H136: =SUM(H127:H135) -> 100.68 | L136: =SUM(L127:L135) -> 87.7715 | N136: -12.9085 | O136: -0.1282131506
B137: =B31 -> Deferral/Variance Account Disposition Rate Rider | C137: =C31 -> 0 | D137: per kWh | F137: =F84 -> 0 | G137: =$F122 -> 5000 | H137: =G137*F137 -> 0 | J137: =J84 -> 0.0001 | K137: =$F122 -> 5000 | L137: =K137*J137 -> 0.5 | N137: =L137-H137 -> 0.5 | O137: =IF((H137)=0,"",(N137/H137)) -> 
B138: Global Adjustment Rate Rider | C138: 0 | D138: per kWh | F138: 0 | G138: =$F122 -> 5000 | H138: =G138*F138 -> 0 | J138: 0.0005 | K138: =$F122 -> 5000 | L138: =K138*J138 -> 2.5 | N138: =L138-H138 -> 2.5 | O138: =IF((H138)=0,"",(N138/H138)) -> 
B139: 0 | C139: 0 | D139: 0 | F139: 0 | G139: =$F122 -> 5000 | H139: 0 | J139: 0 | K139: =$F122 -> 5000 | L139: 0 | N139: 0
B140: Low Voltage Service Charge | F140: 0 | G140: =$F122 -> 5000 | H140: =G140*F140 -> 0 | J140: 0 | K140: =$F122 -> 5000 | L140: =K140*J140 -> 0 | N140: =L140-H140 -> 0 | O140: =IF((H140)=0,"",(N140/H140)) -> 
B141: Smart Meter Entity Charge | D141: Monthly | F141: 0.79 | G141: 1 | H141: =G141*F141 -> 0.79 | J141: 0.79 | K141: 1 | L141: =K141*J141 -> 0.79 | N141: =L141-H141 -> 0
B142: Sub-Total B - Distribution (includes Sub-Total A) | H142: =SUM(H137:H140)+H136 -> 100.68 | L142: =SUM(L137:L140)+L136 -> 90.7715 | N142: =L142-H142 -> -9.9085 | O142: =IF((H142)=0,"",(N142/H142)) -> -0.09841577275
B143: RTSR - Network | D143: per kWh | F143: =F90 -> 0.0058 | G143: =F122*(1+F169) -> 5160 | H143: =G143*F143 -> 29.928 | J143: =J90 -> 0.0062 | K143: =F122*(1+J169) -> 5175.710262 | L143: =K143*J143 -> 32.08940363 | N143: 2.161403627 | O143: 0.07222011586
B144: RTSR - Line and Transformation Connection | D144: per kWh | F144: 0.0013 | G144: =G143 -> 5160 | H144: =G144*F144 -> 6.708 | J144: 0.0013 | K144: =K143 -> 5175.710262 | L144: =K144*J144 -> 6.728423341 | N144: 0.02042334121 | O144: 0.00304462451
B145: Sub-Total C - Delivery (including Sub-Total B) | H145: =SUM(H142:H144) -> 137.316 | L145: =SUM(L142:L144) -> 129.589327 | N145: -7.726673031 | O145: -0.05626928422
B146: Wholesale Market Service Charge (WMSC) | D146: per kWh | F146: =F93 -> 0.0044 | G146: =G144 -> 5160 | H146: =G146*F146 -> 22.704 | J146: =J93 -> 0.0044 | K146: =K144 -> 5175.710262 | L146: =K146*J146 -> 22.77312515 | N146: 0.06912515488 | O146: 0.00304462451
B147: Rural and Remote Rate Protection (RRRP) | D147: per kWh | F147: 0.0012 | G147: =G144 -> 5160 | H147: 6.192 | J147: 0.0012 | K147: =K144 -> 5175.710262 | L147: 6.210852315 | N147: 0.01885231497 | O147: 0.00304462451
B148: Standard Supply Service Charge | D148: Monthly | F148: 0.25 | G148: 1 | H148: 0.25 | J148: 0.25 | K148: 1 | L148: 0.25 | N148: 0 | O148: 0
B149: Debt Retirement Charge (DRC) | D149: per kWh | F149: 0.007 | G149: =+F122 -> 5000 | H149: 35 | J149: 0.007 | K149: =K147 -> 5175.710262 | L149: 36.22997184 | N149: 1.229971837 | O149: 0.03514205249
B150: Energy - RPP - Tier 1 | D150: per kWh | F150: 0.078 | G150: =IF($T$1=1,IF($F122>=600,600,IF($F122<600,$F122*(1+$F169),$F122-600)),IF($T$1=2,IF($F122>=1000,1000,IF($F122<1000,$F122*(1+$F169),$F122-1000)))) -> 600 | H150: =G150*F150 -> 46.8 | J150: 0.078 | K150: =IF($T$1=1,IF($F122>=600,600,IF($F122<600,$F122*(1+$J169),$F122-600)),IF($T$1=2,IF($F122>=1000,1000,IF($F122<1000,$F122*(1+$J169),$F122-1000)))) -> 600 | L150: =K150*J150 -> 46.8 | N150: 0 | O150: 0
B151: Energy - RPP - Tier 2 | D151: per kWh | F151: 0.091 | G151: =IF($T$1=1,IF($F122>=600,$F122*(1+$F169)-600,IF($F122<600,0,)), IF($T$1=2,IF($F122>=1000,$F122*(1+$F169)-1000,IF($F122<1000,0)))) -> 4560 | H151: =G151*F151 -> 414.96 | J151: 0.091 | K151: =IF($T$1=1,IF($F122>=600,$F122*(1+$J169)-600,IF($F122<600,0,)), IF($T$1=2,IF($F122>=1000,$F122*(1+$J169)-1000,IF($F122<1000,0)))) -> 4575.710262 | L151: =K151*J151 -> 416.3896339 | N151: 1.429633885 | O151: 0.003445232998
B152: TOU - Off Peak | D152: per kWh | F152: 0.067 | G152: =0.64*$F122*(1+$F169) -> 3302.4 | H152: =G152*F152 -> 221.2608 | J152: 0.067 | K152: =0.64*$F122*(1+$J169) -> 3312.454568 | L152: =K152*J152 -> 221.9344561 | N152: 0.6736560548 | O152: 0.00304462451
B153: TOU - Mid Peak | D153: per kWh | F153: 0.104 | G153: =0.18*$F122*(1+$F169) -> 928.8 | H153: 96.5952 | J153: 0.104 | K153: =0.18*$F122*(1+$J169) -> 931.6278472 | L153: 96.88929611 | N153: 0.2940961135 | O153: 0.00304462451
B154: TOU - On Peak | D154: per kWh | F154: 0.124 | G154: =0.18*$F122*(1+$F169) -> 928.8 | H154: 115.1712 | J154: 0.124 | K154: =0.18*$F122*(1+$J169) -> 931.6278472 | L154: 115.5218531 | N154: 0.3506530584 | O154: 0.00304462451
B156: Total Bill on RPP (before Taxes) | H156: =SUM(H145:H151) -> 663.222 | L156: =SUM(L145:L151) -> 658.2429102 | N156: =L156-H156 -> -4.979089839 | O156: =IF((H156)=0,"",(N156/H156)) -> -0.007507425627
B157: HST | F157: 0.13 | H157: =H156*F157 -> 86.21886 | J157: 0.13 | L157: =L156*J157 -> 85.57157832 | N157: -0.6472816791 | O157: -0.007507425627
B158: Total Bill (including HST) | H158: =H156+H157 -> 749.44086 | L158: =L156+L157 -> 743.8144885 | N158: -5.626371518 | O158: -0.007507425627
B159: Ontario Clean Energy Benefit 1 | H159: 0 | L159: 0 | N159: 0
B160: Total Bill on RPP (including OCEB) | H160: =SUM(H158:H159) -> 749.44086 | L160: =SUM(L158:L159) -> 743.8144885 | N160: -5.626371518 | O160: -0.007507425627
B162: Total Bill on TOU (before Taxes) | H162: =SUM(H145:H149,H152:H154) -> 634.4892 | L162: =SUM(L145:L149,L152:L154) -> 629.3988815 | N162: =L162-H162 -> -5.090318498 | O162: =IF((H162)=0,"",(N162/H162)) -> -0.008022703141
B163: HST | F163: 0.13 | H163: =H162*F163 -> 82.483596 | J163: 0.13 | L163: =L162*J163 -> 81.8218546 | N163: -0.6617414047 | O163: -0.008022703141
B164: Total Bill (including HST) | H164: =H162+H163 -> 716.972796 | L164: =L162+L163 -> 711.2207361 | N164: -5.752059902 | O164: -0.008022703141
B165: Ontario Clean Energy Benefit 1 | H165: 0 | L165: 0 | N165: 0
B166: Total Bill on TOU (including OCEB) | H166: =H164+H165 -> 716.972796 | L166: =L164+L165 -> 711.2207361 | N166: -5.752059902 | O166: -0.008022703141
B169: Loss Factor (%) | F169: =+F116 -> 0.032 | J169: =+J116 -> 0.03514205249
A171: 1 Applicable to eligible customers only. Refer to the Ontario Clean Energy Benefit Act, 2010.
B173: Customer Class: | D173: GS<50kW
D175: Consumption | F175: 10000 | G175: kWh
F177: Current Board-Approved | J177: Proposed | N177: Impact
D178: Charge Unit | F178: Rate | G178: Volume | H178: Charge | J178: Rate | K178: Volume | L178: Charge | N178: $ Change | O178: % Change
F179: ($) | H179: ($) | J179: ($) | L179: ($)
B180: =B21 -> Monthly Service Charge | D180: =D21 -> Monthly | F180: =F127 -> 25.71 | G180: 1 | H180: =G180*F180 -> 25.71 | J180: =J127 -> 25.71 | K180: 1 | L180: =K180*J180 -> 25.71 | N180: =L180-H180 -> 0 | O180: =IF((H180)=0,"",(N180/H180)) -> 0
B181: Smart Meter Disposition Rate Rider | D181: Monthly | F181: 8.42 | G181: 1 | H181: =G181*F181 -> 8.42 | J181: 8.42 | K181: 1 | L181: =K181*J181 -> 8.42 | N181: =L181-H181 -> 0 | O181: =IF((H181)=0,"",(N181/H181)) -> 0
B182: Smart Meter Incremental Revenue Rate Rider | D182: Monthly | F182: 5.55 | G182: 1 | H182: 5.55 | J182: 0 | K182: 1 | L182: =K182*J182 -> 0 | N182: =L182-H182 -> -5.55 | O182: =IF((H182)=0,"",(N182/H182)) -> -1
B183: Stranded Meter Rate Rider | C183: =C24 -> 0 | D183: Monthly | F183: 0 | G183: 1 | H183: 0 | J183: 8.42 | K183: 1 | L183: 8.42 | N183: 8.42
B184: 0 | C184: 0 | D184: 0 | F184: 0 | J184: 0
B185: Distribution Volumetric Rate | D185: per kWh | F185: 0.0124 | G185: =$F175 -> 10000 | H185: =G185*F185 -> 124 | J185: 0.0102443 | K185: =$F175 -> 10000 | L185: =K185*J185 -> 102.443 | N185: =L185-H185 -> -21.557 | O185: =IF((H185)=0,"",(N185/H185)) -> -0.1738467742
B186: LRAM & SSM Rate Rider | D186: per kWh | F186: 0.0001 | G186: =$F175 -> 10000 | H186: 1 | J186: 0.0001 | K186: =$F175 -> 10000 | L186: 1 | N186: 0 | O186: 0
B187: Tax Change Rate Rider | D187: per kWh | F187: -0.0003 | G187: =$F175 -> 10000 | H187: -3 | J187: -0.0003 | K187: =$F175 -> 10000 | L187: -3 | N187: 0 | O187: 0
B188: 1576 Rate Rider | D188: per kWh | F188: 0 | G188: =$F175 -> 10000 | H188: 0 | J188: -0.001 | K188: =$F175 -> 10000 | L188: -10 | N188: -10
B189: Sub-Total A | H189: =SUM(H180:H188) -> 161.68 | L189: =SUM(L180:L188) -> 132.993 | N189: -28.687 | O189: -0.1774307274
B190: =B31 -> Deferral/Variance Account Disposition Rate Rider | C190: =C31 -> 0 | D190: per kWh | F190: =F137 -> 0 | G190: =$F175 -> 10000 | H190: =G190*F190 -> 0 | J190: =J137 -> 0.0001 | K190: =$F175 -> 10000 | L190: =K190*J190 -> 1 | N190: =L190-H190 -> 1 | O190: =IF((H190)=0,"",(N190/H190)) -> 
B191: Global Adjustment Rate Rider | C191: 0 | D191: per kWh | F191: 0 | G191: =$F175 -> 10000 | H191: =G191*F191 -> 0 | J191: 0.0005 | K191: =$F175 -> 10000 | L191: =K191*J191 -> 5 | N191: =L191-H191 -> 5 | O191: =IF((H191)=0,"",(N191/H191)) -> 
B192: 0 | C192: 0 | D192: 0 | F192: 0 | G192: =$F175 -> 10000 | H192: 0 | J192: 0 | K192: =$F175 -> 10000 | L192: 0 | N192: 0
B193: Low Voltage Service Charge | F193: 0 | G193: =$F175 -> 10000 | H193: =G193*F193 -> 0 | J193: 0 | K193: =$F175 -> 10000 | L193: =K193*J193 -> 0 | N193: =L193-H193 -> 0 | O193: =IF((H193)=0,"",(N193/H193)) -> 
B194: Smart Meter Entity Charge | D194: Monthly | F194: 0.79 | G194: 1 | H194: =G194*F194 -> 0.79 | J194: 0.79 | K194: 1 | L194: =K194*J194 -> 0.79 | N194: =L194-H194 -> 0
B195: Sub-Total B - Distribution (includes Sub-Total A) | H195: =SUM(H190:H193)+H189 -> 161.68 | L195: =SUM(L190:L193)+L189 -> 138.993 | N195: =L195-H195 -> -22.687 | O195: =IF((H195)=0,"",(N195/H195)) -> -0.1403203859
B196: RTSR - Network | D196: per kWh | F196: =F143 -> 0.0058 | G196: =F175*(1+F222) -> 10320 | H196: =G196*F196 -> 59.856 | J196: =J143 -> 0.0062 | K196: =F175*(1+J222) -> 10351.42052 | L196: =K196*J196 -> 64.17880725 | N196: 4.322807255 | O196: 0.07222011586
B197: RTSR - Line and Transformation Connection | D197: per kWh | F197: 0.0013 | G197: =G196 -> 10320 | H197: =G197*F197 -> 13.416 | J197: 0.0013 | K197: =K196 -> 10351.42052 | L197: =K197*J197 -> 13.45684668 | N197: 0.04084668243 | O197: 0.00304462451
B198: Sub-Total C - Delivery (including Sub-Total B) | H198: =SUM(H195:H197) -> 234.952 | L198: =SUM(L195:L197) -> 216.6286539 | N198: -18.32334606 | O198: -0.07798761476
B199: Wholesale Market Service Charge (WMSC) | D199: per kWh | F199: =F146 -> 0.0044 | G199: =G197 -> 10320 | H199: =G199*F199 -> 45.408 | J199: =J146 -> 0.0044 | K199: =K197 -> 10351.42052 | L199: =K199*J199 -> 45.54625031 | N199: 0.1382503098 | O199: 0.00304462451
B200: Rural and Remote Rate Protection (RRRP) | D200: per kWh | F200: 0.0012 | G200: =G197 -> 10320 | H200: 12.384 | J200: 0.0012 | K200: =K197 -> 10351.42052 | L200: 12.42170463 | N200: 0.03770462993 | O200: 0.00304462451
B201: Standard Supply Service Charge | D201: Monthly | F201: 0.25 | G201: 1 | H201: 0.25 | J201: 0.25 | K201: 1 | L201: 0.25 | N201: 0 | O201: 0
B202: Debt Retirement Charge (DRC) | D202: per kWh | F202: 0.007 | G202: =+F175 -> 10000 | H202: 70 | J202: 0.007 | K202: =K200 -> 10351.42052 | L202: 72.45994367 | N202: 2.459943675 | O202: 0.03514205249
B203: Energy - RPP - Tier 1 | D203: per kWh | F203: 0.078 | G203: =IF($T$1=1,IF($F175>=600,600,IF($F175<600,$F175*(1+$F222),$F175-600)),IF($T$1=2,IF($F175>=1000,1000,IF($F175<1000,$F175*(1+$F222),$F175-1000)))) -> 600 | H203: =G203*F203 -> 46.8 | J203: 0.078 | K203: =IF($T$1=1,IF($F175>=600,600,IF($F175<600,$F175*(1+$J222),$F175-600)),IF($T$1=2,IF($F175>=1000,1000,IF($F175<1000,$F175*(1+$J222),$F175-1000)))) -> 600 | L203: =K203*J203 -> 46.8 | N203: 0 | O203: 0
B204: Energy - RPP - Tier 2 | D204: per kWh | F204: 0.091 | G204: =IF($T$1=1,IF($F175>=600,$F175*(1+$F222)-600,IF($F175<600,0,)), IF($T$1=2,IF($F175>=1000,$F175*(1+$F222)-1000,IF($F175<1000,0)))) -> 9720 | H204: =G204*F204 -> 884.52 | J204: 0.091 | K204: =IF($T$1=1,IF($F175>=600,$F175*(1+$J222)-600,IF($F175<600,0,)), IF($T$1=2,IF($F175>=1000,$F175*(1+$J222)-1000,IF($F175<1000,0)))) -> 9751.420525 | L204: =K204*J204 -> 887.3792678 | N204: 2.85926777 | O204: 0.003232564295
B205: TOU - Off Peak | D205: per kWh | F205: 0.067 | G205: =0.64*$F175*(1+$F222) -> 6604.8 | H205: =G205*F205 -> 442.5216 | J205: 0.067 | K205: =0.64*$F175*(1+$J222) -> 6624.909136 | L205: =K205*J205 -> 443.8689121 | N205: 1.34731211 | O205: 0.00304462451
B206: TOU - Mid Peak | D206: per kWh | F206: 0.104 | G206: =0.18*$F175*(1+$F222) -> 1857.6 | H206: 193.1904 | J206: 0.104 | K206: =0.18*$F175*(1+$J222) -> 1863.255694 | L206: 193.7785922 | N206: 0.588192227 | O206: 0.00304462451
B207: TOU - On Peak | D207: per kWh | F207: 0.124 | G207: =0.18*$F175*(1+$F222) -> 1857.6 | H207: 230.3424 | J207: 0.124 | K207: =0.18*$F175*(1+$J222) -> 1863.255694 | L207: 231.0437061 | N207: 0.7013061168 | O207: 0.00304462451
B209: Total Bill on RPP (before Taxes) | H209: =SUM(H198:H204) -> 1294.314 | L209: =SUM(L198:L204) -> 1281.48582 | N209: =L209-H209 -> -12.82817968 | O209: =IF((H209)=0,"",(N209/H209)) -> -0.009911180501
B210: HST | F210: 0.13 | H210: =H209*F210 -> 168.26082 | J210: 0.13 | L210: =L209*J210 -> 166.5931566 | N210: -1.667663358 | O210: -0.009911180501
B211: Total Bill (including HST) | H211: =H209+H210 -> 1462.57482 | L211: =L209+L210 -> 1448.078977 | N211: -14.49584304 | O211: -0.009911180501
B212: Ontario Clean Energy Benefit 1 | H212: 0 | L212: 0 | N212: 0
B213: Total Bill on RPP (including OCEB) | H213: =SUM(H211:H212) -> 1462.57482 | L213: =SUM(L211:L212) -> 1448.078977 | N213: -14.49584304 | O213: -0.009911180501
B215: Total Bill on TOU (before Taxes) | H215: =SUM(H198:H202,H205:H207) -> 1229.0484 | L215: =SUM(L198:L202,L205:L207) -> 1215.997763 | N215: =L215-H215 -> -13.050637 | O215: =IF((H215)=0,"",(N215/H215)) -> -0.01061848906
B216: HST | F216: 0.13 | H216: =H215*F216 -> 159.776292 | J216: 0.13 | L216: =L215*J216 -> 158.0797092 | N216: -1.696582809 | O216: -0.01061848906
B217: Total Bill (including HST) | H217: =H215+H216 -> 1388.824692 | L217: =L215+L216 -> 1374.077472 | N217: -14.7472198 | O217: -0.01061848906
B218: Ontario Clean Energy Benefit 1 | H218: 0 | L218: 0 | N218: 0
B219: Total Bill on TOU (including OCEB) | H219: =H217+H218 -> 1388.824692 | L219: =L217+L218 -> 1374.077472 | N219: -14.7472198 | O219: -0.01061848906
B222: Loss Factor (%) | F222: =+F169 -> 0.032 | J222: =+J169 -> 0.03514205249
A224: 1 Applicable to eligible customers only. Refer to the Ontario Clean Energy Benefit Act, 2010.
B226: Customer Class: | D226: GS<50kW
D228: Consumption | F228: 15000 | G228: kWh
F230: Current Board-Approved | J230: Proposed | N230: Impact
D231: Charge Unit | F231: Rate | G231: Volume | H231: Charge | J231: Rate | K231: Volume | L231: Charge | N231: $ Change | O231: % Change
F232: ($) | H232: ($) | J232: ($) | L232: ($)
B233: =B21 -> Monthly Service Charge | D233: =D21 -> Monthly | F233: =F180 -> 25.71 | G233: 1 | H233: =G233*F233 -> 25.71 | J233: =J180 -> 25.71 | K233: 1 | L233: =K233*J233 -> 25.71 | N233: =L233-H233 -> 0 | O233: =IF((H233)=0,"",(N233/H233)) -> 0
B234: Smart Meter Disposition Rate Rider | D234: Monthly | F234: 8.42 | G234: 1 | H234: =G234*F234 -> 8.42 | J234: 8.42 | K234: 1 | L234: =K234*J234 -> 8.42 | N234: =L234-H234 -> 0 | O234: =IF((H234)=0,"",(N234/H234)) -> 0
B235: Smart Meter Incremental Revenue Rate Rider | D235: Monthly | F235: 5.55 | G235: 1 | H235: 5.55 | J235: 0 | K235: 1 | L235: =K235*J235 -> 0 | N235: =L235-H235 -> -5.55 | O235: =IF((H235)=0,"",(N235/H235)) -> -1
B236: Stranded Meter Rate Rider | C236: =C24 -> 0 | D236: Monthly | F236: 0 | G236: 1 | H236: 0 | J236: 8.42 | K236: 1 | L236: 8.42 | N236: 8.42
B237: 0 | C237: 0 | D237: 0 | F237: 0 | J237: 0
B238: Distribution Volumetric Rate | D238: per kWh | F238: 0.0124 | G238: =$F228 -> 15000 | H238: =G238*F238 -> 186 | J238: 0.0102443 | K238: =$F228 -> 15000 | L238: =K238*J238 -> 153.6645 | N238: =L238-H238 -> -32.3355 | O238: =IF((H238)=0,"",(N238/H238)) -> -0.1738467742
B239: LRAM & SSM Rate Rider | D239: per kWh | F239: 0.0001 | G239: =$F228 -> 15000 | H239: 1.5 | J239: 0.0001 | K239: =$F228 -> 15000 | L239: 1.5 | N239: 0 | O239: 0
B240: Tax Change Rate Rider | D240: per kWh | F240: -0.0003 | G240: =$F228 -> 15000 | H240: -4.5 | J240: -0.0003 | K240: =$F228 -> 15000 | L240: -4.5 | N240: 0 | O240: 0
... 41 more rows

Sheet App.2-W_Impacts-GS Great
N1: File Number: | O1: ='LDC Info'!$E$18 -> EB-2013-0147 | T1: 1
N2: Exhibit: | O2: 8
N3: Tab:
N4: Schedule:
N5: Page:
N7: Date:
B10: Appendix 2-W
B11: Bill Impacts
B14: Customer Class: | D14: GS>50kW
D16: Consumption | F16: 60 | G16: kW
F17: 20000 | G17: kWh
F19: Current Board-Approved | J19: Proposed | N19: Impact
D20: Charge Unit | F20: Rate | G20: Volume | H20: Charge | J20: Rate | K20: Volume | L20: Charge | N20: $ Change | O20: % Change
F21: ($) | H21: ($) | J21: ($) | L21: ($)
B22: Monthly Service Charge | D22: Monthly | F22: 237.72 | G22: 1 | H22: =G22*F22 -> 237.72 | J22: =+'App.2-V_Rev_Reconciliation'!H18 -> 237.72 | K22: 1 | L22: =K22*J22 -> 237.72 | N22: =L22-H22 -> 0 | O22: =IF((H22)=0,"",(N22/H22)) -> 0
F23: 0 | G23: 1 | H23: =G23*F23 -> 0 | J23: 0 | K23: 1 | L23: =K23*J23 -> 0 | N23: =L23-H23 -> 0 | O23: =IF((H23)=0,"",(N23/H23)) -> 
F24: 0 | G24: 1 | H24: 0 | J24: 0 | K24: 1 | L24: =K24*J24 -> 0 | N24: =L24-H24 -> 0 | O24: =IF((H24)=0,"",(N24/H24)) -> 
F25: 0 | G25: 1 | H25: 0 | J25: 0 | K25: 1 | L25: 0 | N25: 0
F26: 0 | J26: 0
B27: Distribution Volumetric Rate | D27: per kW | F27: 4.0593 | G27: =$F16 -> 60 | H27: =G27*F27 -> 243.558 | J27: =+'App.2-V_Rev_Reconciliation'!J18 -> 3.6425472 | K27: =$F16 -> 60 | L27: =K27*J27 -> 218.552832 | N27: =L27-H27 -> -25.005168 | O27: =IF((H27)=0,"",(N27/H27)) -> -0.102666174
B28: LRAM & SSM Rate Rider | D28: per kW | F28: 0.0172 | G28: =$F16 -> 60 | H28: 1.032 | J28: 0.0172 | K28: =$F16 -> 60 | L28: 1.032 | N28: 0 | O28: 0
B29: Tax Change Rate Rider | D29: per kW | F29: -0.0676 | G29: =$F16 -> 60 | H29: -4.056 | J29: -0.0676 | K29: =$F16 -> 60 | L29: -4.056 | N29: 0 | O29: 0
B30: 1576 Rate Rider | D30: per kW | F30: 0 | G30: =$F16 -> 60 | H30: 0 | J30: -0.2316 | K30: =$F16 -> 60 | L30: -13.896 | N30: -13.896
B31: Sub-Total A | H31: =SUM(H22:H30) -> 478.254 | L31: =SUM(L22:L30) -> 439.352832 | N31: -38.901168 | O31: -0.08133997416
B32: Deferral/Variance Account Disposition Rate Rider | D32: per kW | F32: 0 | G32: =$F16 -> 60 | H32: =G32*F32 -> 0 | J32: -0.0756 | K32: =$F16 -> 60 | L32: =K32*J32 -> -4.536 | N32: =L32-H32 -> -4.536 | O32: =IF((H32)=0,"",(N32/H32)) -> 
B33: Global Adjustment Rate Rider | D33: per kW | F33: 0 | G33: =$F16 -> 60 | H33: =G33*F33 -> 0 | J33: 1.1133 | K33: =$F16 -> 60 | L33: =K33*J33 -> 66.798 | N33: =L33-H33 -> 66.798 | O33: =IF((H33)=0,"",(N33/H33)) -> 
F34: 0 | G34: =$F16 -> 60 | H34: 0 | J34: 0 | K34: =$F16 -> 60 | L34: 0 | N34: 0
B35: Low Voltage Service Charge | G35: =$F16 -> 60 | H35: =G35*F35 -> 0 | K35: =$F16 -> 60 | L35: =K35*J35 -> 0 | N35: =L35-H35 -> 0 | O35: =IF((H35)=0,"",(N35/H35)) -> 
F36: 0 | G36: 1 | H36: =G36*F36 -> 0 | J36: 0 | K36: 1 | L36: =K36*J36 -> 0 | N36: =L36-H36 -> 0
B37: Sub-Total B - Distribution (includes Sub-Total A) | H37: =SUM(H32:H35)+H31 -> 478.254 | L37: =SUM(L32:L35)+L31 -> 501.614832 | N37: =L37-H37 -> 23.360832 | O37: =IF((H37)=0,"",(N37/H37)) -> 0.04884607761
B38: RTSR - Network | D38: per kW | F38: 3.0721 | G38: =F16*(1+F54) -> 61.92 | H38: =G38*F38 -> 190.224432 | J38: 3.2836 | K38: =F16*(1+J54) -> 62.10852315 | L38: =K38*J38 -> 203.9395466 | N38: 13.71511461 | O38: 0.07209964814
B39: RTSR - Line and Transformation Connection | D39: per kW | F39: 0.674 | G39: =G38 -> 61.92 | H39: =G39*F39 -> 41.73408 | J39: 0.6851 | K39: =K38 -> 62.10852315 | L39: =K39*J39 -> 42.55054921 | N39: 0.8164692098 | O39: 0.01956360868
B40: Sub-Total C - Delivery (including Sub-Total B) | H40: =SUM(H37:H39) -> 710.212512 | L40: =SUM(L37:L39) -> 748.1049278 | N40: 37.89241582 | O40: 0.05335363033
B41: Wholesale Market Service Charge (WMSC) | D41: per kWh | F41: 0.0044 | G41: =F17*(1+F54) -> 20640 | H41: =G41*F41 -> 90.816 | J41: 0.0044 | K41: =F17*(1+J54) -> 20702.84105 | L41: =K41*J41 -> 91.09250062 | N41: 0.2765006195 | O41: 0.00304462451
B42: Rural and Remote Rate Protection (RRRP) | D42: per kWh | F42: 0.0012 | G42: =+G41 -> 20640 | H42: 24.768 | J42: 0.0012 | K42: =+K41 -> 20702.84105 | L42: 24.84340926 | N42: 0.07540925987 | O42: 0.00304462451
B43: Standard Supply Service Charge | D43: Monthly | F43: 0.25 | G43: 1 | H43: 0.25 | J43: 0.25 | K43: 1 | L43: 0.25 | N43: 0 | O43: 0
B44: Debt Retirement Charge (DRC) | D44: per kWh | F44: 0.007 | G44: =+F17 -> 20000 | H44: 140 | J44: 0.007 | K44: =+F17 -> 20000 | L44: 140 | N44: 0 | O44: 0
B45: Energy - Non RPP - Spot Price | D45: per kWh | F45: 0.08717 | G45: =+G41 -> 20640 | H45: =G45*F45 -> 1799.1888 | J45: =+F45 -> 0.08717 | K45: =+K41 -> 20702.84105 | L45: =K45*J45 -> 1804.666654 | N45: 5.477854319 | O45: 0.00304462451
B47: Total Bill on RPP (before Taxes) | H47: =SUM(H40:H45) -> 2765.235312 | L47: =SUM(L40:L45) -> 2808.957492 | N47: =L47-H47 -> 43.72218002 | O47: =IF((H47)=0,"",(N47/H47)) -> 0.01581137773
B48: HST | F48: 0.13 | H48: =H47*F48 -> 359.4805906 | J48: 0.13 | L48: =L47*J48 -> 365.164474 | N48: 5.683883403 | O48: 0.01581137773
B49: Total Bill (including HST) | H49: =H47+H48 -> 3124.715903 | L49: =L47+L48 -> 3174.121966 | N49: 49.40606343 | O49: 0.01581137773
B50: Ontario Clean Energy Benefit 1 | H50: 0 | L50: 0 | N50: 0
B51: Total Bill on RPP (including OCEB) | H51: =SUM(H49:H50) -> 3124.715903 | L51: =SUM(L49:L50) -> 3174.121966 | N51: 49.40606343 | O51: 0.01581137773
B54: Loss Factor (%) | F54: ='App.2-W_Impacts-Res'!$F$63 -> 0.032 | J54: ='App.2-W_Impacts-Res'!$J$63 -> 0.03514205249
A56: 1 Applicable to eligible customers only. Refer to the Ontario Clean Energy Benefit Act, 2010.
B58: Customer Class: | D58: =$D$14 -> GS>50kW
D60: Consumption | F60: 100 | G60: kW
F61: 40000 | G61: kWh
F63: Current Board-Approved | J63: Proposed | N63: Impact
D64: Charge Unit | F64: Rate | G64: Volume | H64: Charge | J64: Rate | K64: Volume | L64: Charge | N64: $ Change | O64: % Change
F65: ($) | H65: ($) | J65: ($) | L65: ($)
B66: =B22 -> Monthly Service Charge | D66: =D22 -> Monthly | F66: =F22 -> 237.72 | G66: 1 | H66: =G66*F66 -> 237.72 | J66: =J22 -> 237.72 | K66: 1 | L66: =K66*J66 -> 237.72 | N66: =L66-H66 -> 0 | O66: =IF((H66)=0,"",(N66/H66)) -> 0
B67: 0 | D67: 0 | F67: 0 | G67: 1 | H67: =G67*F67 -> 0 | J67: 0 | K67: 1 | L67: =K67*J67 -> 0 | N67: =L67-H67 -> 0 | O67: =IF((H67)=0,"",(N67/H67)) -> 
B68: 0 | D68: 0 | F68: 0 | G68: 1 | H68: 0 | J68: 0 | K68: 1 | L68: =K68*J68 -> 0 | N68: =L68-H68 -> 0 | O68: =IF((H68)=0,"",(N68/H68)) -> 
B69: 0 | C69: =C25 -> 0 | D69: 0 | F69: 0 | G69: 1 | H69: 0 | J69: 0 | K69: 1 | L69: 0 | N69: 0
B70: 0 | C70: =C26 -> 0 | D70: 0 | F70: 0 | J70: 0
B71: Distribution Volumetric Rate | D71: per kW | F71: 4.0593 | G71: =$F60 -> 100 | H71: =G71*F71 -> 405.93 | J71: 3.6425472 | K71: =$F60 -> 100 | L71: =K71*J71 -> 364.25472 | N71: =L71-H71 -> -41.67528 | O71: =IF((H71)=0,"",(N71/H71)) -> -0.102666174
B72: LRAM & SSM Rate Rider | D72: per kW | F72: 0.0172 | G72: =$F60 -> 100 | H72: 1.72 | J72: 0.0172 | K72: =$F60 -> 100 | L72: 1.72 | N72: 0 | O72: 0
B73: Tax Change Rate Rider | D73: per kW | F73: -0.0676 | G73: =$F60 -> 100 | H73: -6.76 | J73: -0.0676 | K73: =$F60 -> 100 | L73: -6.76 | N73: 0 | O73: 0
B74: 1576 Rate Rider | D74: per kW | F74: 0 | G74: =$F60 -> 100 | H74: 0 | J74: -0.2316 | K74: =$F60 -> 100 | L74: -23.16 | N74: -23.16
B75: Sub-Total A | H75: =SUM(H66:H74) -> 638.61 | L75: =SUM(L66:L74) -> 573.77472 | N75: -64.83528 | O75: -0.101525626
B76: =B32 -> Deferral/Variance Account Disposition Rate Rider | C76: =C32 -> 0 | D76: =D32 -> per kW | F76: =F32 -> 0 | G76: =$F60 -> 100 | H76: =G76*F76 -> 0 | J76: =J32 -> -0.0756 | K76: =$F60 -> 100 | L76: =K76*J76 -> -7.56 | N76: =L76-H76 -> -7.56 | O76: =IF((H76)=0,"",(N76/H76)) -> 
B77: Global Adjustment Rate Rider | C77: =C33 -> 0 | D77: per kW | F77: 0 | G77: =$F60 -> 100 | H77: =G77*F77 -> 0 | J77: 1.1133 | K77: =$F60 -> 100 | L77: =K77*J77 -> 111.33 | N77: =L77-H77 -> 111.33 | O77: =IF((H77)=0,"",(N77/H77)) -> 
B78: 0 | C78: =C34 -> 0 | D78: 0 | F78: 0 | G78: =$F60 -> 100 | H78: 0 | J78: 0 | K78: =$F60 -> 100 | L78: 0 | N78: 0
B79: Low Voltage Service Charge | D79: 0 | F79: 0 | G79: =$F60 -> 100 | H79: =G79*F79 -> 0 | J79: 0 | K79: =$F60 -> 100 | L79: =K79*J79 -> 0 | N79: =L79-H79 -> 0 | O79: =IF((H79)=0,"",(N79/H79)) -> 
B80: 0 | D80: 0 | F80: 0 | G80: 1 | H80: =G80*F80 -> 0 | J80: 0 | K80: 1 | L80: =K80*J80 -> 0 | N80: =L80-H80 -> 0
B81: Sub-Total B - Distribution (includes Sub-Total A) | H81: =SUM(H76:H79)+H75 -> 638.61 | L81: =SUM(L76:L79)+L75 -> 677.54472 | N81: =L81-H81 -> 38.93472 | O81: =IF((H81)=0,"",(N81/H81)) -> 0.06096791469
B82: RTSR - Network | D82: per kW | F82: =F38 -> 3.0721 | G82: =F60*(1+F98) -> 103.2 | H82: =G82*F82 -> 317.04072 | J82: =J38 -> 3.2836 | K82: =F60*(1+J98) -> 103.5142052 | L82: =K82*J82 -> 339.8992444 | N82: 22.85852436 | O82: 0.07209964814
B83: RTSR - Line and Transformation Connection | D83: per kW | F83: 0.674 | G83: =G82 -> 103.2 | H83: =G83*F83 -> 69.5568 | J83: 0.6851 | K83: =K82 -> 103.5142052 | L83: =K83*J83 -> 70.91758202 | N83: 1.360782016 | O83: 0.01956360868
B84: Sub-Total C - Delivery (including Sub-Total B) | H84: =SUM(H81:H83) -> 1025.20752 | L84: =SUM(L81:L83) -> 1088.361546 | N84: 63.15402637 | O84: 0.06160121258
B85: Wholesale Market Service Charge (WMSC) | D85: =D41 -> per kWh | F85: =F41 -> 0.0044 | G85: =F61*(1+F98) -> 41280 | H85: =G85*F85 -> 181.632 | J85: =J41 -> 0.0044 | K85: =F61*(1+J98) -> 41405.6821 | L85: =K85*J85 -> 182.1850012 | N85: 0.553001239 | O85: 0.00304462451
B86: Rural and Remote Rate Protection (RRRP) | D86: per kWh | F86: 0.0012 | G86: =+G85 -> 41280 | H86: 49.536 | J86: 0.0012 | K86: =+K85 -> 41405.6821 | L86: 49.68681852 | N86: 0.1508185197 | O86: 0.00304462451
B87: Standard Supply Service Charge | D87: Monthly | F87: 0.25 | G87: 1 | H87: 0.25 | J87: 0.25 | K87: 1 | L87: 0.25 | N87: 0 | O87: 0
B88: Debt Retirement Charge (DRC) | D88: per kWh | F88: 0.007 | G88: =+F61 -> 40000 | H88: 280 | J88: 0.007 | K88: =+F61 -> 40000 | L88: 280 | N88: 0 | O88: 0
B89: Energy - Non RPP - Spot Price | D89: per kWh | F89: 0.08717 | G89: =+G85 -> 41280 | H89: =G89*F89 -> 3598.3776 | J89: 0.08717 | K89: =+K85 -> 41405.6821 | L89: =K89*J89 -> 3609.333309 | N89: 10.95570864 | O89: 0.00304462451
B91: Total Bill on RPP (before Taxes) | H91: =SUM(H84:H89) -> 5135.00312 | L91: =SUM(L84:L89) -> 5209.816675 | N91: =L91-H91 -> 74.81355477 | O91: =IF((H91)=0,"",(N91/H91)) -> 0.01456932995
B92: HST | F92: 0.13 | H92: =H91*F92 -> 667.5504056 | J92: 0.13 | L92: =L91*J92 -> 677.2761677 | N92: 9.72576212 | O92: 0.01456932995
B93: Total Bill (including HST) | H93: =H91+H92 -> 5802.553526 | L93: =L91+L92 -> 5887.092842 | N93: 84.53931689 | O93: 0.01456932995
B94: Ontario Clean Energy Benefit 1 | H94: 0 | L94: 0 | N94: 0
B95: Total Bill on RPP (including OCEB) | H95: =SUM(H93:H94) -> 5802.553526 | L95: =SUM(L93:L94) -> 5887.092842 | N95: 84.53931689 | O95: 0.01456932995
B98: Loss Factor (%) | F98: =+F54 -> 0.032 | J98: =+J54 -> 0.03514205249
A100: 1 Applicable to eligible customers only. Refer to the Ontario Clean Energy Benefit Act, 2010.
B102: Customer Class: | D102: =$D$14 -> GS>50kW
D104: Consumption | F104: 500 | G104: kW
F105: 250000 | G105: kWh
F107: Current Board-Approved | J107: Proposed | N107: Impact
D108: Charge Unit | F108: Rate | G108: Volume | H108: Charge | J108: Rate | K108: Volume | L108: Charge | N108: $ Change | O108: % Change
F109: ($) | H109: ($) | J109: ($) | L109: ($)
B110: =B22 -> Monthly Service Charge | D110: =D22 -> Monthly | F110: =F22 -> 237.72 | G110: 1 | H110: =G110*F110 -> 237.72 | J110: =J22 -> 237.72 | K110: 1 | L110: =K110*J110 -> 237.72 | N110: =L110-H110 -> 0 | O110: =IF((H110)=0,"",(N110/H110)) -> 0
B111: 0 | D111: 0 | F111: 0 | G111: 1 | H111: =G111*F111 -> 0 | J111: 0 | K111: 1 | L111: =K111*J111 -> 0 | N111: =L111-H111 -> 0 | O111: =IF((H111)=0,"",(N111/H111)) -> 
B112: 0 | D112: 0 | F112: 0 | G112: 1 | H112: 0 | J112: 0 | K112: 1 | L112: =K112*J112 -> 0 | N112: =L112-H112 -> 0 | O112: =IF((H112)=0,"",(N112/H112)) -> 
B113: 0 | C113: =C69 -> 0 | D113: 0 | F113: 0 | G113: 1 | H113: 0 | J113: 0 | K113: 1 | L113: 0 | N113: 0
B114: 0 | C114: =C70 -> 0 | D114: 0 | F114: 0 | J114: 0
B115: Distribution Volumetric Rate | D115: per kW | F115: 4.0593 | G115: =$F104 -> 500 | H115: =G115*F115 -> 2029.65 | J115: 3.6425472 | K115: =$F104 -> 500 | L115: =K115*J115 -> 1821.2736 | N115: =L115-H115 -> -208.3764 | O115: =IF((H115)=0,"",(N115/H115)) -> -0.102666174
B116: LRAM & SSM Rate Rider | D116: per kW | F116: 0.0172 | G116: =$F104 -> 500 | H116: 8.6 | J116: 0.0172 | K116: =$F104 -> 500 | L116: 8.6 | N116: 0 | O116: 0
B117: Tax Change Rate Rider | D117: per kW | F117: -0.0676 | G117: =$F104 -> 500 | H117: -33.8 | J117: -0.0676 | K117: =$F104 -> 500 | L117: -33.8 | N117: 0 | O117: 0
B118: 1576 Rate Rider | D118: per kW | F118: 0 | G118: =$F104 -> 500 | H118: 0 | J118: -0.2316 | K118: =$F104 -> 500 | L118: -115.8 | N118: -115.8
B119: Sub-Total A | H119: =SUM(H110:H118) -> 2242.17 | L119: =SUM(L110:L118) -> 1917.9936 | N119: -324.1764 | O119: -0.1445815438
B120: =B32 -> Deferral/Variance Account Disposition Rate Rider | C120: =C76 -> 0 | D120: =D32 -> per kW | F120: =F32 -> 0 | G120: =$F104 -> 500 | H120: =G120*F120 -> 0 | J120: =J32 -> -0.0756 | K120: =$F104 -> 500 | L120: =K120*J120 -> -37.8 | N120: =L120-H120 -> -37.8 | O120: =IF((H120)=0,"",(N120/H120)) -> 
B121: Global Adjustment Rate Rider | C121: =C77 -> 0 | D121: per kW | F121: 0 | G121: =$F104 -> 500 | H121: =G121*F121 -> 0 | J121: 1.1133 | K121: =$F104 -> 500 | L121: =K121*J121 -> 556.65 | N121: =L121-H121 -> 556.65 | O121: =IF((H121)=0,"",(N121/H121)) -> 
B122: 0 | C122: =C78 -> 0 | D122: 0 | F122: 0 | G122: =$F104 -> 500 | H122: 0 | J122: 0 | K122: =$F104 -> 500 | L122: 0 | N122: 0
B123: Low Voltage Service Charge | D123: 0 | F123: 0 | G123: =$F104 -> 500 | H123: =G123*F123 -> 0 | J123: 0 | K123: =$F104 -> 500 | L123: =K123*J123 -> 0 | N123: =L123-H123 -> 0 | O123: =IF((H123)=0,"",(N123/H123)) -> 
B124: 0 | D124: 0 | F124: 0 | G124: 1 | H124: =G124*F124 -> 0 | J124: 0 | K124: 1 | L124: =K124*J124 -> 0 | N124: =L124-H124 -> 0
B125: Sub-Total B - Distribution (includes Sub-Total A) | H125: =SUM(H120:H123)+H119 -> 2242.17 | L125: =SUM(L120:L123)+L119 -> 2436.8436 | N125: =L125-H125 -> 194.6736 | O125: =IF((H125)=0,"",(N125/H125)) -> 0.08682374664
B126: RTSR - Network | D126: =D82 -> per kW | F126: =F38 -> 3.0721 | G126: =F104*(1+F142) -> 516 | H126: =G126*F126 -> 1585.2036 | J126: =J38 -> 3.2836 | K126: =F104*(1+J142) -> 517.5710262 | L126: =K126*J126 -> 1699.496222 | N126: 114.2926218 | O126: 0.07209964814
B127: RTSR - Line and Transformation Connection | D127: per kW | F127: 0.674 | G127: =G126 -> 516 | H127: =G127*F127 -> 347.784 | J127: 0.6851 | K127: =K126 -> 517.5710262 | L127: =K127*J127 -> 354.5879101 | N127: 6.803910082 | O127: 0.01956360868
B128: Sub-Total C - Delivery (including Sub-Total B) | H128: =SUM(H125:H127) -> 4175.1576 | L128: =SUM(L125:L127) -> 4490.927732 | N128: 315.7701319 | O128: 0.07563070957
B129: Wholesale Market Service Charge (WMSC) | D129: =D41 -> per kWh | F129: =F41 -> 0.0044 | G129: =F105*(1+F142) -> 258000 | H129: =G129*F129 -> 1135.2 | J129: =J41 -> 0.0044 | K129: =F105*(1+J142) -> 258785.5131 | L129: =K129*J129 -> 1138.656258 | N129: 3.456257744 | O129: 0.00304462451
B130: Rural and Remote Rate Protection (RRRP) | D130: per kWh | F130: 0.0012 | G130: =+G129 -> 258000 | H130: 309.6 | J130: 0.0012 | K130: =+K129 -> 258785.5131 | L130: 310.5426157 | N130: 0.9426157483 | O130: 0.00304462451
B131: Standard Supply Service Charge | D131: Monthly | F131: 0.25 | G131: 1 | H131: 0.25 | J131: 0.25 | K131: 1 | L131: 0.25 | N131: 0 | O131: 0
B132: Debt Retirement Charge (DRC) | D132: per kWh | F132: 0.007 | G132: =+F105 -> 250000 | H132: 1750 | J132: 0.007 | K132: =+F105 -> 250000 | L132: 1750 | N132: 0 | O132: 0
B133: Energy - Non RPP - Spot Price | D133: per kWh | F133: 0.08717 | G133: =+G129 -> 258000 | H133: =G133*F133 -> 22489.86 | J133: 0.08717 | K133: =+K129 -> 258785.5131 | L133: =K133*J133 -> 22558.33318 | N133: 68.47317899 | O133: 0.00304462451
B135: Total Bill on RPP (before Taxes) | H135: =SUM(H128:H133) -> 29860.0676 | L135: =SUM(L128:L133) -> 30248.70978 | N135: =L135-H135 -> 388.6421843 | O135: =IF((H135)=0,"",(N135/H135)) -> 0.01301544891
B136: HST | F136: 0.13 | H136: =H135*F136 -> 3881.808788 | J136: 0.13 | L136: =L135*J136 -> 3932.332272 | N136: 50.52348396 | O136: 0.01301544891
B137: Total Bill (including HST) | H137: =H135+H136 -> 33741.87639 | L137: =L135+L136 -> 34181.04206 | N137: 439.1656683 | O137: 0.01301544891
B138: Ontario Clean Energy Benefit 1 | H138: 0 | L138: 0 | N138: 0
B139: Total Bill on RPP (including OCEB) | H139: =SUM(H137:H138) -> 33741.87639 | L139: =SUM(L137:L138) -> 34181.04206 | N139: 439.1656683 | O139: 0.01301544891
B142: Loss Factor (%) | F142: =+F98 -> 0.032 | J142: =+J98 -> 0.03514205249
A144: 1 Applicable to eligible customers only. Refer to the Ontario Clean Energy Benefit Act, 2010.
B146: Customer Class: | D146: =$D$14 -> GS>50kW
D148: Consumption | F148: 1000 | G148: kW
F149: 400000 | G149: kWh
F151: Current Board-Approved | J151: Proposed | N151: Impact
D152: Charge Unit | F152: Rate | G152: Volume | H152: Charge | J152: Rate | K152: Volume | L152: Charge | N152: $ Change | O152: % Change
F153: ($) | H153: ($) | J153: ($) | L153: ($)
B154: =B22 -> Monthly Service Charge | D154: =D22 -> Monthly | F154: =F22 -> 237.72 | G154: 1 | H154: =G154*F154 -> 237.72 | J154: =J22 -> 237.72 | K154: 1 | L154: =K154*J154 -> 237.72 | N154: =L154-H154 -> 0 | O154: =IF((H154)=0,"",(N154/H154)) -> 0
B155: 0 | D155: 0 | F155: 0 | G155: 1 | H155: =G155*F155 -> 0 | J155: 0 | K155: 1 | L155: =K155*J155 -> 0 | N155: =L155-H155 -> 0 | O155: =IF((H155)=0,"",(N155/H155)) -> 
B156: 0 | D156: 0 | F156: 0 | G156: 1 | H156: 0 | J156: 0 | K156: 1 | L156: =K156*J156 -> 0 | N156: =L156-H156 -> 0 | O156: =IF((H156)=0,"",(N156/H156)) -> 
B157: 0 | C157: =C113 -> 0 | D157: 0 | F157: 0 | G157: 1 | H157: 0 | J157: 0 | K157: 1 | L157: 0 | N157: 0
B158: 0 | C158: =C114 -> 0 | D158: 0 | F158: 0 | J158: 0
B159: Distribution Volumetric Rate | D159: per kW | F159: 4.0593 | G159: =$F148 -> 1000 | H159: =G159*F159 -> 4059.3 | J159: 3.6425472 | K159: =$F148 -> 1000 | L159: =K159*J159 -> 3642.5472 | N159: =L159-H159 -> -416.7528 | O159: =IF((H159)=0,"",(N159/H159)) -> -0.102666174
B160: LRAM & SSM Rate Rider | D160: per kW | F160: 0.0172 | G160: =$F148 -> 1000 | H160: 17.2 | J160: 0.0172 | K160: =$F148 -> 1000 | L160: 17.2 | N160: 0 | O160: 0
B161: Tax Change Rate Rider | D161: per kW | F161: -0.0676 | G161: =$F148 -> 1000 | H161: -67.6 | J161: -0.0676 | K161: =$F148 -> 1000 | L161: -67.6 | N161: 0 | O161: 0
B162: 1576 Rate Rider | D162: per kW | F162: 0 | G162: =$F148 -> 1000 | H162: 0 | J162: -0.2316 | K162: =$F148 -> 1000 | L162: -231.6 | N162: -231.6
B163: Sub-Total A | H163: =SUM(H154:H162) -> 4246.62 | L163: =SUM(L154:L162) -> 3598.2672 | N163: -648.3528 | O163: -0.1526750215
B164: =B32 -> Deferral/Variance Account Disposition Rate Rider | C164: =C120 -> 0 | D164: =D32 -> per kW | F164: =F32 -> 0 | G164: =$F148 -> 1000 | H164: =G164*F164 -> 0 | J164: =J32 -> -0.0756 | K164: =$F148 -> 1000 | L164: =K164*J164 -> -75.6 | N164: =L164-H164 -> -75.6 | O164: =IF((H164)=0,"",(N164/H164)) -> 
B165: Global Adjustment Rate Rider | C165: =C121 -> 0 | D165: per kW | F165: 0 | G165: =$F148 -> 1000 | H165: =G165*F165 -> 0 | J165: 1.1133 | K165: =$F148 -> 1000 | L165: =K165*J165 -> 1113.3 | N165: =L165-H165 -> 1113.3 | O165: =IF((H165)=0,"",(N165/H165)) -> 
B166: 0 | C166: =C122 -> 0 | D166: 0 | F166: 0 | G166: =$F148 -> 1000 | H166: 0 | J166: 0 | K166: =$F148 -> 1000 | L166: 0 | N166: 0
B167: Low Voltage Service Charge | D167: 0 | F167: 0 | G167: =$F148 -> 1000 | H167: =G167*F167 -> 0 | J167: 0 | K167: =$F148 -> 1000 | L167: =K167*J167 -> 0 | N167: =L167-H167 -> 0 | O167: =IF((H167)=0,"",(N167/H167)) -> 
B168: 0 | D168: 0 | F168: 0 | G168: 1 | H168: =G168*F168 -> 0 | J168: 0 | K168: 1 | L168: =K168*J168 -> 0 | N168: =L168-H168 -> 0
B169: Sub-Total B - Distribution (includes Sub-Total A) | H169: =SUM(H164:H167)+H163 -> 4246.62 | L169: =SUM(L164:L167)+L163 -> 4635.9672 | N169: =L169-H169 -> 389.3472 | O169: =IF((H169)=0,"",(N169/H169)) -> 0.09168402165
B170: RTSR - Network | D170: =D82 -> per kW | F170: =F38 -> 3.0721 | G170: =F148*(1+F186) -> 1032 | H170: =G170*F170 -> 3170.4072 | J170: =J38 -> 3.2836 | K170: =F148*(1+J186) -> 1035.142052 | L170: =K170*J170 -> 3398.992444 | N170: 228.5852436 | O170: 0.07209964814
B171: RTSR - Line and Transformation Connection | D171: per kW | F171: 0.674 | G171: =G170 -> 1032 | H171: =G171*F171 -> 695.568 | J171: 0.6851 | K171: =K170 -> 1035.142052 | L171: =K171*J171 -> 709.1758202 | N171: 13.60782016 | O171: 0.01956360868
B172: Sub-Total C - Delivery (including Sub-Total B) | H172: =SUM(H169:H171) -> 8112.5952 | L172: =SUM(L169:L171) -> 8744.135464 | N172: 631.5402637 | O172: 0.07784688477
B173: Wholesale Market Service Charge (WMSC) | D173: =D41 -> per kWh | F173: =F41 -> 0.0044 | G173: =F149*(1+F186) -> 412800 | H173: =G173*F173 -> 1816.32 | J173: =J41 -> 0.0044 | K173: =F149*(1+J186) -> 414056.821 | L173: =K173*J173 -> 1821.850012 | N173: 5.53001239 | O173: 0.00304462451
B174: Rural and Remote Rate Protection (RRRP) | D174: per kWh | F174: 0.0012 | G174: =+G173 -> 412800 | H174: 495.36 | J174: 0.0012 | K174: =+K173 -> 414056.821 | L174: 496.8681852 | N174: 1.508185197 | O174: 0.00304462451
B175: Standard Supply Service Charge | D175: Monthly | F175: 0.25 | G175: 1 | H175: 0.25 | J175: 0.25 | K175: 1 | L175: 0.25 | N175: 0 | O175: 0
B176: Debt Retirement Charge (DRC) | D176: per kWh | F176: 0.007 | G176: =+F149 -> 400000 | H176: 2800 | J176: 0.007 | K176: =+F149 -> 400000 | L176: 2800 | N176: 0 | O176: 0
B177: Energy - Non RPP - Spot Price | D177: per kWh | F177: 0.08717 | G177: =+G173 -> 412800 | H177: =G177*F177 -> 35983.776 | J177: 0.08717 | K177: =+K173 -> 414056.821 | L177: =K177*J177 -> 36093.33309 | N177: 109.5570864 | O177: 0.00304462451
B179: Total Bill on RPP (before Taxes) | H179: =SUM(H172:H177) -> 49208.3012 | L179: =SUM(L172:L177) -> 49956.43675 | N179: =L179-H179 -> 748.1355477 | O179: =IF((H179)=0,"",(N179/H179)) -> 0.01520344189
B180: HST | F180: 0.13 | H180: =H179*F180 -> 6397.079156 | J180: 0.13 | L180: =L179*J180 -> 6494.336777 | N180: 97.2576212 | O180: 0.01520344189
B181: Total Bill (including HST) | H181: =H179+H180 -> 55605.38036 | L181: =L179+L180 -> 56450.77352 | N181: 845.3931689 | O181: 0.01520344189
B182: Ontario Clean Energy Benefit 1 | H182: 0 | L182: 0 | N182: 0
B183: Total Bill on RPP (including OCEB) | H183: =SUM(H181:H182) -> 55605.38036 | L183: =SUM(L181:L182) -> 56450.77352 | N183: 845.3931689 | O183: 0.01520344189
B186: Loss Factor (%) | F186: =+F142 -> 0.032 | J186: =+J142 -> 0.03514205249
A188: 1 Applicable to eligible customers only. Refer to the Ontario Clean Energy Benefit Act, 2010.
A190: Note that the "Charge $" columns provide breakdowns of the amounts that each bill component contributes to the total monthly bill at the referenced
A191: consumption level at existing and proposed rates.
A193: Applicants must provide bill impacts for residential at 800 kWh and GS<50kW at 2000 kWh. In addition, their filing should cover the range that is relevant
A194: to their service territory, class by class. A general guideline of consumption levels follows:
A196: Residential (kWh) - 100, 250, 500, 800, 1000, 1500, 2000
A197: GS<50kW (kWh) - 1000, 2000, 5000, 10000, 15000
A198: GS>50kW (kW) - 60, 100, 500, 1000
A199: Large User - range appropriate for utility
A200: Lighting Classes and USL - 150 kWh and 1 kW, range appropriate for utility.

Sheet App.2-W_Impacts-LU
N1: File Number: | O1: ='LDC Info'!$E$18 -> EB-2013-0147 | T1: 1
N2: Exhibit: | O2: 8
N3: Tab:
N4: Schedule:
N5: Page:
N7: Date:
B10: Appendix 2-W
B11: Bill Impacts
B14: Customer Class: | D14: Large User
C16: Consumption | F16: 5250 | G16: kW
F17: 2650000 | G17: kWh
F19: Current Board-Approved | J19: Proposed | N19: Impact
D20: Charge Unit | F20: Rate | G20: Volume | H20: Charge | J20: Rate | K20: Volume | L20: Charge | N20: $ Change | O20: % Change
F21: ($) | H21: ($) | J21: ($) | L21: ($)
B22: Monthly Service Charge | D22: Monthly | F22: 14501.61 | G22: 1 | H22: =G22*F22 -> 14501.61 | J22: =+'App.2-V_Rev_Reconciliation'!H19 -> 14501.61 | K22: 1 | L22: =K22*J22 -> 14501.61 | N22: =L22-H22 -> 0 | O22: =IF((H22)=0,"",(N22/H22)) -> 0
F23: 0 | G23: 1 | H23: =G23*F23 -> 0 | J23: 0 | K23: 1 | L23: =K23*J23 -> 0 | N23: =L23-H23 -> 0 | O23: =IF((H23)=0,"",(N23/H23)) -> 
F24: 0 | G24: 1 | H24: 0 | J24: 0 | K24: 1 | L24: =K24*J24 -> 0 | N24: =L24-H24 -> 0 | O24: =IF((H24)=0,"",(N24/H24)) -> 
F25: 0 | G25: 1 | H25: 0 | J25: 0 | K25: 1 | L25: 0 | N25: 0
F26: 0 | J26: 0
B27: Distribution Volumetric Rate | D27: per kW | F27: 1.382 | G27: =$F16 -> 5250 | H27: =G27*F27 -> 7255.5 | J27: =+'App.2-V_Rev_Reconciliation'!J19 -> 1.8916767 | K27: =$F16 -> 5250 | L27: =K27*J27 -> 9931.302675 | N27: =L27-H27 -> 2675.802675 | O27: =IF((H27)=0,"",(N27/H27)) -> 0.3687964544
B28: LRAM & SSM Rate Rider | D28: per kW | F28: 0 | G28: =$F16 -> 5250 | H28: 0 | J28: 0 | K28: =$F16 -> 5250 | L28: 0 | N28: 0
B29: Tax Change Rate Rider | D29: per kW | F29: -0.0488 | G29: =$F16 -> 5250 | H29: -256.2 | J29: -0.0488 | K29: =$F16 -> 5250 | L29: -256.2 | N29: 0 | O29: 0
B30: 1576 Rate Rider | D30: per kW | F30: 0 | G30: =$F16 -> 5250 | H30: 0 | J30: -0.3615 | K30: =$F16 -> 5250 | L30: -1897.875 | N30: -1897.875
B31: Sub-Total A | H31: =SUM(H22:H30) -> 21500.91 | L31: =SUM(L22:L30) -> 22278.83767 | N31: 777.927675 | O31: 0.03618115117
B32: Deferral/Variance Account Disposition Rate Rider | D32: per kW | F32: 0 | G32: =$F16 -> 5250 | H32: =G32*F32 -> 0 | J32: -0.2364 | K32: =$F16 -> 5250 | L32: =K32*J32 -> -1241.1 | N32: =L32-H32 -> -1241.1 | O32: =IF((H32)=0,"",(N32/H32)) -> 
B33: Global Adjustment Rate Rider | D33: per kW | F33: 0 | G33: =$F16 -> 5250 | H33: =G33*F33 -> 0 | J33: 3.5634 | K33: =$F16 -> 5250 | L33: =K33*J33 -> 18707.85 | N33: =L33-H33 -> 18707.85 | O33: =IF((H33)=0,"",(N33/H33)) -> 
F34: 0 | G34: =$F16 -> 5250 | H34: 0 | J34: 0 | K34: =$F16 -> 5250 | L34: 0 | N34: 0
B35: Low Voltage Service Charge | F35: 0 | G35: =$F16 -> 5250 | H35: =G35*F35 -> 0 | J35: 0 | K35: =$F16 -> 5250 | L35: =K35*J35 -> 0 | N35: =L35-H35 -> 0 | O35: =IF((H35)=0,"",(N35/H35)) -> 
F36: 0 | G36: 1 | H36: =G36*F36 -> 0 | J36: 0 | K36: 1 | L36: =K36*J36 -> 0 | N36: =L36-H36 -> 0
B37: Sub-Total B - Distribution (includes Sub-Total A) | H37: =SUM(H32:H35)+H31 -> 21500.91 | L37: =SUM(L32:L35)+L31 -> 39745.58768 | N37: =L37-H37 -> 18244.67768 | O37: =IF((H37)=0,"",(N37/H37)) -> 0.8485537438
B38: RTSR - Network | D38: per kW | F38: 2.8874 | G38: =F16*(1+F54) -> 5277.825 | H38: =G38*F38 -> 15239.19191 | J38: 3.0862 | K38: =F16*(1+J54) -> 5277.825 | L38: =K38*J38 -> 16288.42352 | N38: 1049.23161 | O38: 0.06885086929
B39: RTSR - Line and Transformation Connection | D39: per kW | F39: 0.6335 | G39: =G38 -> 5277.825 | H39: =G39*F39 -> 3343.502138 | J39: 0.644 | K39: =K38 -> 5277.825 | L39: =K39*J39 -> 3398.9193 | N39: 55.4171625 | O39: 0.01657458564
B40: Sub-Total C - Delivery (including Sub-Total B) | H40: =SUM(H37:H39) -> 40083.60404 | L40: =SUM(L37:L39) -> 59432.93049 | N40: 19349.32645 | O40: 0.4827242188
B41: Wholesale Market Service Charge (WMSC) | D41: per kWh | F41: 0.0044 | G41: =F17*(1+F54) -> 2664045 | H41: =G41*F41 -> 11721.798 | J41: 0.0044 | K41: =F17*(1+J54) -> 2664045 | L41: =K41*J41 -> 11721.798 | N41: 0 | O41: 0
B42: Rural and Remote Rate Protection (RRRP) | D42: per kWh | F42: 0.0012 | G42: =+G41 -> 2664045 | H42: 3196.854 | J42: 0.0012 | K42: =+K41 -> 2664045 | L42: 3196.854 | N42: 0 | O42: 0
B43: Standard Supply Service Charge | D43: Monthly | F43: 0.25 | G43: 1 | H43: 0.25 | J43: 0.25 | K43: 1 | L43: 0.25 | N43: 0 | O43: 0
B44: Debt Retirement Charge (DRC) | D44: per kWh | F44: 0.007 | G44: =+F17 -> 2650000 | H44: 18550 | J44: 0.007 | K44: =+F17 -> 2650000 | L44: 18550 | N44: 0 | O44: 0
B45: Energy - Non RPP - Spot Price | D45: per kWh | F45: 0.08717 | G45: =+G41 -> 2664045 | H45: =G45*F45 -> 232224.8026 | J45: =+F45 -> 0.08717 | K45: =+K41 -> 2664045 | L45: =K45*J45 -> 232224.8026 | N45: 0 | O45: 0
B47: Total Bill on RPP (before Taxes) | H47: =SUM(H40:H45) -> 305777.3087 | L47: =SUM(L40:L45) -> 325126.6351 | N47: =L47-H47 -> 19349.32645 | O47: =IF((H47)=0,"",(N47/H47)) -> 0.06327914432
B48: HST | F48: 0.13 | H48: =H47*F48 -> 39751.05013 | J48: 0.13 | L48: =L47*J48 -> 42266.46257 | N48: 2515.412438 | O48: 0.06327914432
B49: Total Bill (including HST) | H49: =H47+H48 -> 345528.3588 | L49: =L47+L48 -> 367393.0977 | N49: 21864.73889 | O49: 0.06327914432
B50: Ontario Clean Energy Benefit 1 | H50: 0 | L50: 0 | N50: 0
B51: Total Bill on RPP (including OCEB) | H51: =SUM(H49:H50) -> 345528.3588 | L51: =SUM(L49:L50) -> 367393.0977 | N51: 21864.73889 | O51: 0.06327914432
B54: Loss Factor (%) | F54: 0.0053 | J54: 0.0053
A56: 1 Applicable to eligible customers only. Refer to the Ontario Clean Energy Benefit Act, 2010.
A58: Note that the "Charge $" columns provide breakdowns of the amounts that each bill component contributes to the total monthly bill at the referenced
A59: consumption level at existing and proposed rates.
A61: Applicants must provide bill impacts for residential at 800 kWh and GS<50kW at 2000 kWh. In addition, their filing should cover the range that is relevant
A62: to their service territory, class by class. A general guideline of consumption levels follows:
A64: Residential (kWh) - 100, 250, 500, 800, 1000, 1500, 2000
A65: GS<50kW (kWh) - 1000, 2000, 5000, 10000, 15000
A66: GS>50kW (kW) - 60, 100, 500, 1000
A67: Large User - range appropriate for utility
A68: Lighting Classes and USL - 150 kWh and 1 kW, range appropriate for utility.

Sheet App.2-W_Impacts-SL
N1: File Number: | O1: ='LDC Info'!$E$18 -> EB-2013-0147 | T1: 1
N2: Exhibit: | O2: 8
N3: Tab:
N4: Schedule:
N5: Page:
N7: Date:
B10: Appendix 2-W
B11: Bill Impacts
B14: Customer Class: | D14: Street Lighting
C16: Consumption | F16: 37 | G16: kW
F17: 750 | G17: kWh
F19: Current Board-Approved | J19: Proposed | N19: Impact
D20: Charge Unit | F20: Rate | G20: Volume | H20: Charge | J20: Rate | K20: Volume | L20: Charge | N20: $ Change | O20: % Change
F21: ($) | H21: ($) | J21: ($) | L21: ($)
B22: Monthly Service Charge | D22: Monthly | F22: 0.8 | G22: 1 | H22: =G22*F22 -> 0.8 | J22: =+'App.2-V_Rev_Reconciliation'!H20 -> 0.8 | K22: 1 | L22: =K22*J22 -> 0.8 | N22: =L22-H22 -> 0 | O22: =IF((H22)=0,"",(N22/H22)) -> 0
F23: 0 | G23: 1 | H23: =G23*F23 -> 0 | J23: 0 | K23: 1 | L23: =K23*J23 -> 0 | N23: =L23-H23 -> 0 | O23: =IF((H23)=0,"",(N23/H23)) -> 
F24: 0 | G24: 1 | H24: 0 | J24: 0 | K24: 1 | L24: =K24*J24 -> 0 | N24: =L24-H24 -> 0 | O24: =IF((H24)=0,"",(N24/H24)) -> 
F25: 0 | G25: 1 | H25: 0 | J25: 0 | K25: 1 | L25: 0 | N25: 0
F26: 0 | J26: 0
B27: Distribution Volumetric Rate | D27: per kW | F27: 5.3386 | G27: =$F16 -> 37 | H27: =G27*F27 -> 197.5282 | J27: =+'App.2-V_Rev_Reconciliation'!J20 -> 3.8404674 | K27: =$F16 -> 37 | L27: =K27*J27 -> 142.0972938 | N27: =L27-H27 -> -55.4309062 | O27: =IF((H27)=0,"",(N27/H27)) -> -0.2806227475
B28: LRAM & SSM Rate Rider | D28: per kW | F28: 0 | G28: =$F16 -> 37 | H28: 0 | J28: 0 | K28: =$F16 -> 37 | L28: 0 | N28: 0
B29: Tax Change Rate Rider | D29: per kW | F29: -0.1278 | G29: =$F16 -> 37 | H29: -4.7286 | J29: -0.1278 | K29: =$F16 -> 37 | L29: -4.7286 | N29: 0 | O29: 0
B30: 1576 Rate Rider | D30: per kW | F30: 0 | G30: =$F16 -> 37 | H30: 0 | J30: -0.435 | K30: =$F16 -> 37 | L30: -16.095 | N30: -16.095
B31: Sub-Total A | H31: =SUM(H22:H30) -> 193.5996 | L31: =SUM(L22:L30) -> 122.0736938 | N31: -71.5259062 | O31: -0.3694527582
B32: Deferral/Variance Account Disposition Rate Rider | D32: per kW | F32: 0 | G32: =$F16 -> 37 | H32: =G32*F32 -> 0 | J32: -0.1568 | K32: =$F16 -> 37 | L32: =K32*J32 -> -5.8016 | N32: =L32-H32 -> -5.8016 | O32: =IF((H32)=0,"",(N32/H32)) -> 
B33: Global Adjustment Rate Rider | D33: per kW | F33: 0 | G33: =$F16 -> 37 | H33: =G33*F33 -> 0 | J33: 1.163 | K33: =$F16 -> 37 | L33: =K33*J33 -> 43.031 | N33: =L33-H33 -> 43.031 | O33: =IF((H33)=0,"",(N33/H33)) -> 
F34: 0 | G34: =$F16 -> 37 | H34: 0 | J34: 0 | K34: =$F16 -> 37 | L34: 0 | N34: 0
B35: Low Voltage Service Charge | F35: 0 | G35: =$F16 -> 37 | H35: =G35*F35 -> 0 | J35: 0 | K35: =$F16 -> 37 | L35: =K35*J35 -> 0 | N35: =L35-H35 -> 0 | O35: =IF((H35)=0,"",(N35/H35)) -> 
F36: 0 | G36: 1 | H36: =G36*F36 -> 0 | J36: 0 | K36: 1 | L36: =K36*J36 -> 0 | N36: =L36-H36 -> 0
B37: Sub-Total B - Distribution (includes Sub-Total A) | H37: =SUM(H32:H35)+H31 -> 193.5996 | L37: =SUM(L32:L35)+L31 -> 159.3030938 | N37: =L37-H37 -> -34.2965062 | O37: =IF((H37)=0,"",(N37/H37)) -> -0.177151741
B38: RTSR - Network | D38: per kW | F38: 1.8681 | G38: =F16*(1+F54) -> 38.184 | H38: =G38*F38 -> 71.3315304 | J38: 1.9967 | K38: =F16*(1+J54) -> 38.30025594 | L38: =K38*J38 -> 76.47412104 | N38: 5.14259064 | O38: 0.07209421431
B39: RTSR - Line and Transformation Connection | D39: per kW | F39: 0.4101 | G39: =G38 -> 38.184 | H39: =G39*F39 -> 15.6592584 | J39: 0.4169 | K39: =K38 -> 38.30025594 | L39: =K39*J39 -> 15.9673767 | N39: 0.3081183023 | O39: 0.01967643004
B40: Sub-Total C - Delivery (including Sub-Total B) | H40: =SUM(H37:H39) -> 280.5903888 | L40: =SUM(L37:L39) -> 251.7445915 | N40: -28.84579726 | O40: -0.1028039392
B41: Wholesale Market Service Charge (WMSC) | D41: per kWh | F41: 0.0044 | G41: =F17*(1+F54) -> 774 | H41: =G41*F41 -> 3.4056 | J41: 0.0044 | K41: =F17*(1+J54) -> 776.3565394 | L41: =K41*J41 -> 3.415968773 | N41: 0.01036877323 | O41: 0.00304462451
B42: Rural and Remote Rate Protection (RRRP) | D42: per kWh | F42: 0.0012 | G42: =+G41 -> 774 | H42: 0.9288 | J42: 0.0012 | K42: =+K41 -> 776.3565394 | L42: 0.9316278472 | N42: 0.002827847245 | O42: 0.00304462451
B43: Standard Supply Service Charge | D43: Monthly | F43: 0.25 | G43: 1 | H43: 0.25 | J43: 0.25 | K43: 1 | L43: 0.25 | N43: 0 | O43: 0
B44: Debt Retirement Charge (DRC) | D44: per kWh | F44: 0.007 | G44: =+F17 -> 750 | H44: 5.25 | J44: 0.007 | K44: =+F17 -> 750 | L44: 5.25 | N44: 0 | O44: 0
B45: Energy - Non RPP - Spot Price | D45: per kWh | F45: 0.08717 | G45: =+G41 -> 774 | H45: =G45*F45 -> 67.46958 | J45: =+F45 -> 0.08717 | K45: =+K41 -> 776.3565394 | L45: =K45*J45 -> 67.67499954 | N45: 0.205419537 | O45: 0.00304462451
B47: Total Bill on RPP (before Taxes) | H47: =SUM(H40:H45) -> 357.8943688 | L47: =SUM(L40:L45) -> 329.2671877 | N47: =L47-H47 -> -28.6271811 | O47: =IF((H47)=0,"",(N47/H47)) -> -0.07998779415
B48: HST | F48: 0.13 | H48: =H47*F48 -> 46.52626794 | J48: 0.13 | L48: =L47*J48 -> 42.8047344 | N48: -3.721533543 | O48: -0.07998779415
B49: Total Bill (including HST) | H49: =H47+H48 -> 404.4206367 | L49: =L47+L48 -> 372.0719221 | N49: -32.34871464 | O49: -0.07998779415
B50: Ontario Clean Energy Benefit 1 | H50: 0 | L50: 0 | N50: 0
B51: Total Bill on RPP (including OCEB) | H51: =SUM(H49:H50) -> 404.4206367 | L51: =SUM(L49:L50) -> 372.0719221 | N51: -32.34871464 | O51: -0.07998779415
B54: Loss Factor (%) | F54: ='App.2-W_Impacts-Res'!$F$63 -> 0.032 | J54: ='App.2-W_Impacts-Res'!$J$63 -> 0.03514205249
A56: 1 Applicable to eligible customers only. Refer to the Ontario Clean Energy Benefit Act, 2010.
A58: Note that the "Charge $" columns provide breakdowns of the amounts that each bill component contributes to the total monthly bill at the referenced
A59: consumption level at existing and proposed rates.
A61: Applicants must provide bill impacts for residential at 800 kWh and GS<50kW at 2000 kWh. In addition, their filing should cover the range that is relevant
A62: to their service territory, class by class. A general guideline of consumption levels follows:
A64: Residential (kWh) - 100, 250, 500, 800, 1000, 1500, 2000
A65: GS<50kW (kWh) - 1000, 2000, 5000, 10000, 15000
A66: GS>50kW (kW) - 60, 100, 500, 1000
A67: Large User - range appropriate for utility
A68: Lighting Classes and USL - 150 kWh and 1 kW, range appropriate for utility.

Sheet App.2-W_Impacts-USL
N1: File Number: | O1: ='LDC Info'!$E$18 -> EB-2013-0147 | T1: 1
N2: Exhibit: | O2: 8
N3: Tab:
N4: Schedule:
N5: Page:
N7: Date:
B10: Appendix 2-W
B11: Bill Impacts
B14: Customer Class: | D14: Unmetered Scattered Load
D16: Consumption | F16: 2000 | G16: kWh
F18: Current Board-Approved | J18: Proposed | N18: Impact
D19: Charge Unit | F19: Rate | G19: Volume | H19: Charge | J19: Rate | K19: Volume | L19: Charge | N19: $ Change | O19: % Change
F20: ($) | H20: ($) | J20: ($) | L20: ($)
B21: Monthly Service Charge | D21: Monthly | F21: 8.52 | G21: 1 | H21: =G21*F21 -> 8.52 | J21: 8.52 | K21: 1 | L21: =K21*J21 -> 8.52 | N21: =L21-H21 -> 0 | O21: =IF((H21)=0,"",(N21/H21)) -> 0
F22: 0 | G22: 1 | H22: =G22*F22 -> 0 | J22: 0 | K22: 1 | L22: =K22*J22 -> 0 | N22: =L22-H22 -> 0 | O22: =IF((H22)=0,"",(N22/H22)) -> 
F23: 0 | G23: 1 | H23: 0 | J23: 0 | K23: 1 | L23: =K23*J23 -> 0 | N23: =L23-H23 -> 0 | O23: =IF((H23)=0,"",(N23/H23)) -> 
F24: 0 | G24: 1 | H24: 0 | J24: 0 | K24: 1 | L24: 0 | N24: 0
F25: 0 | J25: 0
B26: Distribution Volumetric Rate | D26: per kWh | F26: 0.0166 | G26: =$F16 -> 2000 | H26: =G26*F26 -> 33.2 | J26: 0.0061 | K26: =$F16 -> 2000 | L26: =K26*J26 -> 12.2 | N26: =L26-H26 -> -21 | O26: =IF((H26)=0,"",(N26/H26)) -> -0.6325301205
B27: LRAM & SSM Rate Rider | D27: per kWh | F27: 0.0045 | G27: =$F16 -> 2000 | H27: 9 | J27: 0.0045 | K27: =$F16 -> 2000 | L27: 9 | N27: 0 | O27: 0
B28: Tax Change Rate Rider | D28: per kWh | F28: -0.0005 | G28: =$F16 -> 2000 | H28: -1 | J28: -0.0005 | K28: =$F16 -> 2000 | L28: -1 | N28: 0 | O28: 0
B29: 1576 Rate Rider | D29: per kWh | F29: 0 | G29: =$F16 -> 2000 | H29: 0 | J29: -0.0019 | K29: =$F16 -> 2000 | L29: -3.8 | N29: -3.8
B30: Sub-Total A | H30: =SUM(H21:H29) -> 49.72 | L30: =SUM(L21:L29) -> 24.92 | N30: -24.8 | O30: -0.4987932422
B31: Deferral/Variance Account Disposition Rate Rider | D31: per kWh | F31: 0 | G31: =$F16 -> 2000 | H31: =G31*F31 -> 0 | J31: -0.0008 | K31: =$F16 -> 2000 | L31: =K31*J31 -> -1.6 | N31: =L31-H31 -> -1.6 | O31: =IF((H31)=0,"",(N31/H31)) -> 
F32: 0 | G32: =$F16 -> 2000 | H32: =G32*F32 -> 0 | J32: 0 | K32: =$F16 -> 2000 | L32: =K32*J32 -> 0 | N32: =L32-H32 -> 0 | O32: =IF((H32)=0,"",(N32/H32)) -> 
F33: 0 | G33: =$F16 -> 2000 | H33: 0 | J33: 0 | K33: =$F16 -> 2000 | L33: 0 | N33: 0
B34: Low Voltage Service Charge | F34: 0 | G34: =$F16 -> 2000 | H34: =G34*F34 -> 0 | J34: 0 | K34: =$F16 -> 2000 | L34: =K34*J34 -> 0 | N34: =L34-H34 -> 0 | O34: =IF((H34)=0,"",(N34/H34)) -> 
F35: 0 | H35: =G35*F35 -> 0 | J35: 0 | L35: =K35*J35 -> 0 | N35: =L35-H35 -> 0
B36: Sub-Total B - Distribution (includes Sub-Total A) | H36: =SUM(H31:H34)+H30 -> 49.72 | L36: =SUM(L31:L34)+L30 -> 23.32 | N36: =L36-H36 -> -26.4 | O36: =IF((H36)=0,"",(N36/H36)) -> -0.5309734513
B37: RTSR - Network | D37: per kWh | F37: 0.0058 | G37: =F16*(1+F63) -> 2064 | H37: =G37*F37 -> 11.9712 | J37: 0.0062 | K37: =F16*(1+J63) -> 2070.284105 | L37: =K37*J37 -> 12.83576145 | N37: 0.8645614509 | O37: 0.07222011586
B38: RTSR - Line and Transformation Connection | D38: per kWh | F38: 0.0013 | G38: =G37 -> 2064 | H38: =G38*F38 -> 2.6832 | J38: 0.0013 | K38: =K37 -> 2070.284105 | L38: =K38*J38 -> 2.691369336 | N38: 0.008169336486 | O38: 0.00304462451
B39: Sub-Total C - Delivery (including Sub-Total B) | H39: =SUM(H36:H38) -> 64.3744 | L39: =SUM(L36:L38) -> 38.84713079 | N39: -25.52726921 | O39: -0.3965438002
B40: Wholesale Market Service Charge (WMSC) | D40: per kWh | F40: 0.0044 | G40: =G38 -> 2064 | H40: =G40*F40 -> 9.0816 | J40: 0.0044 | K40: =K38 -> 2070.284105 | L40: =K40*J40 -> 9.109250062 | N40: 0.02765006195 | O40: 0.00304462451
B41: Rural and Remote Rate Protection (RRRP) | D41: per kWh | F41: 0.0012 | G41: =G38 -> 2064 | H41: 2.4768 | J41: 0.0012 | K41: =K38 -> 2070.284105 | L41: 2.484340926 | N41: 0.007540925987 | O41: 0.00304462451
B42: Standard Supply Service Charge | D42: Monthly | F42: 0.25 | G42: 1 | H42: 0.25 | J42: 0.25 | K42: 1 | L42: 0.25 | N42: 0 | O42: 0
B43: Debt Retirement Charge (DRC) | D43: per kWh | F43: 0.007 | G43: =+F16 -> 2000 | H43: 14 | J43: 0.007 | K43: =K41 -> 2070.284105 | L43: 14.49198873 | N43: 0.4919887349 | O43: 0.03514205249
B44: Energy - RPP - Tier 1 | D44: per kWh | F44: ='App.2-W_Impacts-Res'!F44 -> 0.078 | G44: =IF($T$1=1,IF($F16>=600,600,IF($F16<600,$F16*(1+$F63),$F16-600)),IF($T$1=2,IF($F16>=1000,1000,IF($F16<1000,$F16*(1+$F63),$F16-1000)))) -> 600 | H44: =G44*F44 -> 46.8 | J44: ='App.2-W_Impacts-Res'!J44 -> 0.078 | K44: =IF($T$1=1,IF($F16>=600,600,IF($F16<600,$F16*(1+$J63),$F16-600)),IF($T$1=2,IF($F16>=1000,1000,IF($F16<1000,$F16*(1+$J63),$F16-1000)))) -> 600 | L44: =K44*J44 -> 46.8 | N44: 0 | O44: 0
B45: Energy - RPP - Tier 2 | D45: per kWh | F45: ='App.2-W_Impacts-Res'!F45 -> 0.091 | G45: =IF($T$1=1,IF($F16>=600,$F16*(1+$F63)-600,IF($F16<600,0,)), IF($T$1=2,IF($F16>=1000,$F16*(1+$F63)-1000,IF($F16<1000,0)))) -> 1464 | H45: =G45*F45 -> 133.224 | J45: ='App.2-W_Impacts-Res'!J45 -> 0.091 | K45: =IF($T$1=1,IF($F16>=600,$F16*(1+$J63)-600,IF($F16<600,0,)), IF($T$1=2,IF($F16>=1000,$F16*(1+$J63)-1000,IF($F16<1000,0)))) -> 1470.284105 | L45: =K45*J45 -> 133.7958536 | N45: 0.571853554 | O45: 0.004292421441
B46: TOU - Off Peak | D46: per kWh | F46: ='App.2-W_Impacts-Res'!F46 -> 0.067 | G46: =0.64*$F16*(1+$F63) -> 1320.96 | H46: =G46*F46 -> 88.50432 | J46: ='App.2-W_Impacts-Res'!J46 -> 0.067 | K46: =0.64*$F16*(1+$J63) -> 1324.981827 | L46: =K46*J46 -> 88.77378242 | N46: 0.2694624219 | O46: 0.00304462451
B47: TOU - Mid Peak | D47: per kWh | F47: ='App.2-W_Impacts-Res'!F47 -> 0.104 | G47: =0.18*$F16*(1+$F63) -> 371.52 | H47: 38.63808 | J47: ='App.2-W_Impacts-Res'!J47 -> 0.104 | K47: =0.18*$F16*(1+$J63) -> 372.6511389 | L47: 38.75571845 | N47: 0.1176384454 | O47: 0.00304462451
B48: TOU - On Peak | D48: per kWh | F48: ='App.2-W_Impacts-Res'!F48 -> 0.124 | G48: =0.18*$F16*(1+$F63) -> 371.52 | H48: 46.06848 | J48: ='App.2-W_Impacts-Res'!J48 -> 0.124 | K48: =0.18*$F16*(1+$J63) -> 372.6511389 | L48: 46.20874122 | N48: 0.1402612234 | O48: 0.00304462451
B50: Total Bill on RPP (before Taxes) | H50: =SUM(H39:H45) -> 270.2068 | L50: =SUM(L39:L45) -> 245.7785641 | N50: =L50-H50 -> -24.42823594 | O50: =IF((H50)=0,"",(N50/H50)) -> -0.09040570384
B51: HST | F51: 0.13 | H51: =H50*F51 -> 35.126884 | J51: 0.13 | L51: =L50*J51 -> 31.95121333 | N51: -3.175670672 | O51: -0.09040570384
B52: Total Bill (including HST) | H52: =H50+H51 -> 305.333684 | L52: =L50+L51 -> 277.7297774 | N52: -27.60390661 | O52: -0.09040570384
B53: Ontario Clean Energy Benefit 1 | H53: 0 | L53: 0 | N53: 0
B54: Total Bill on RPP (including OCEB) | H54: =SUM(H52:H53) -> 305.333684 | L54: =SUM(L52:L53) -> 277.7297774 | N54: -27.60390661 | O54: -0.09040570384
B56: Total Bill on TOU (before Taxes) | H56: =SUM(H39:H43,H46:H48) -> 263.39368 | L56: =SUM(L39:L43,L46:L48) -> 238.9209526 | N56: =L56-H56 -> -24.4727274 | O56: =IF((H56)=0,"",(N56/H56)) -> -0.09291311545
B57: HST | F57: 0.13 | H57: =H56*F57 -> 34.2411784 | J57: 0.13 | L57: =L56*J57 -> 31.05972384 | N57: -3.181454562 | O57: -0.09291311545
B58: Total Bill (including HST) | H58: =H56+H57 -> 297.6348584 | L58: =L56+L57 -> 269.9806764 | N58: -27.65418196 | O58: -0.09291311545
B59: Ontario Clean Energy Benefit 1 | H59: 0 | L59: 0 | N59: 0
B60: Total Bill on TOU (including OCEB) | H60: =H58+H59 -> 297.6348584 | L60: =L58+L59 -> 269.9806764 | N60: -27.65418196 | O60: -0.09291311545
B63: Loss Factor (%) | F63: ='App.2-W_Impacts-Res'!$F$63 -> 0.032 | J63: ='App.2-W_Impacts-Res'!$J$63 -> 0.03514205249
A65: 1 Applicable to eligible customers only. Refer to the Ontario Clean Energy Benefit Act, 2010.
A67: Note that the "Charge $" columns provide breakdowns of the amounts that each bill component contributes to the total monthly bill at the referenced
A68: consumption level at existing and proposed rates.
A70: Applicants must provide bill impacts for residential at 800 kWh and GS<50kW at 2000 kWh. In addition, their filing should cover the range that is relevant
A71: to their service territory, class by class. A general guideline of consumption levels follows:
A73: Residential (kWh) - 100, 250, 500, 800, 1000, 1500, 2000
A74: GS<50kW (kWh) - 1000, 2000, 5000, 10000, 15000
A75: GS>50kW (kW) - 60, 100, 500, 1000
A76: Large User - range appropriate for utility
A77: Lighting Classes and USL - 150 kWh and 1 kW, range appropriate for utility.

Sheet Appendix 2-YB
H1: File Number: | I1: =EBNUMBER -> EB-2013-0147
H2: Exhibit:
H3: Tab:
H4: Schedule:
H5: Page:
H7: Date:
A9: Appendix 2-YB
A10: Summary of Impacts to Revenue Requirement
A11: from Accounting Changes under CGAAP or ASPE
A15: Revenue Requirement Component | D15: =TestYear -> 2014 | E15: =TestYear -> 2014 | F15: Difference | G15: Reasons why the revenue requirement
D16: CGAAP or ASPE | E16: CGAAP | G16: component is different under
D17: with the | E17: without the | G17: CGAAP or ASPE with the changes to the policies
D18: changes to | E18: changes to | G18: versus CGAAP without the changes to the policies
D19: the policies | E19: the policies
A20: Closing NBV 2013 | D20: 178179559.7 | E20: 172001316 | F20: =+D20-E20 -> 6178243.704 | G20: Increased burdens offset by higher annual amortization pre-2012 CGAAP
A21: Closing NBV 2014 | D21: 187667038 | E21: 178764327 | F21: 8902711.024 | G21: Increased burdens offset by higher annual amortization pre-2012 CGAAP
A22: Average NBV | D22: =(D20+D21)/2 -> 182923298.9 | E22: =(E20+E21)/2 -> 175382821.5 | F22: =(F20+F21)/2 -> 7540477.364 | G22: Increased burdens offset by higher annual amortization pre-2012 CGAAP
A23: Working Capital | D23: 26438702.17 | E23: 26126852.62 | F23: 311849.5445 | G23: Higher distribution expenses post-2011 CGAAP
A24: Rate Base | D24: =SUM(D22:D23) -> 209362001 | E24: =SUM(E22:E23) -> 201509674.1 | F24: =SUM(F22:F23) -> 7852326.909 | G24: Increased burdens offset by higher annual amortization pre-2012 CGAAP
A26: Return on Rate Base | D26: 12539688.06 | E26: 12069374.76 | F26: =+D26-E26 -> 470313.2973 | G26: Higher rate base post-2011 CGAAP
F27: 0
A28: OM&A | D28: 18918000 | E28: 16519157.35 | F28: 2398842.65 | G28: Less burdening and increased expenses post-2011 CGAAP
A29: Depreciation | D29: 7562852.68 | E29: 12934143 | F29: -5371290.32 | G29: Revised service lives and burden policies post-2011 CGAAP
A30: PILs or Income Taxes | D30: 433327.3166 | E30: 2190045.483 | F30: -1756718.166 | G30: Changes to Schedule 1 Tax adjustments due to booked depreciation
F31: 0
A32: Less: Revenue Offsets | D32: -2039200 | E32: =D32 -> -2039200 | F32: 0 | G32: No change
F33: 0
F34: 0
F35: 0
A36: Insert description of additional item(s) and new rows if needed. | F36: 0
A37: Total Base Revenue Requirement | D37: =SUM(D26:D36) -> 37414668.06 | E37: =SUM(E26:E36) -> 41673520.59 | F37: =SUM(F26:F36) -> -4258852.539
A40: For CGAAP or ASPE applications, the applicants must provide a summary of the dollar impacts of CGAAP or ASPE to each component of the revenue requirement (e.g. rate base, operating costs, etc.), including the overall impact on the proposed revenue requirement. Accordingly, the applicants must identify financial differences and resulting revenue requirement impacts arising from making capitalization and depreciation expense policy changes under CGAAP or ASPE.
